{"text_format":"1","workbook":"xlsx","n_sheets":15,"sheets":["Oznámení","Data","List č. 01","List č. 02","List č. 03","List č. 04","List č. 05","List č. 06","List č. 07","List č. 08","List č. 09","List č. 10 - právnická osoba","List č. 10 - fyzická osoba","List č. 10 - jiný zdroj","List č. 11"],"not_rendered":{"charts":0,"images":2,"macros":1,"external_links":0,"defined_names":16,"comments":14,"pivot_tables":0},"unopened":[],"bounds":{"document_bytes":16777216,"sheet_cells":100000,"rows_first":2000,"rows_last":500,"rows_between":2000,"halvings":0,"cell_chars":16384,"cell_head_chars":4096},"cells_cut":0,"cells_raw":0,"read":"whole","date_system":"1900"}

{"sheet":"Oznámení","index":0,"n_rows":352,"n_cols":5,"rows_kept":352,"cut":false,"hidden":false,"merged":[[287,0,287,3],[280,0,280,1],[283,0,283,1],[298,0,349,2],[351,0,352,2],[290,0,297,2],[289,0,289,2],[158,0,158,1],[267,0,267,1],[281,0,281,1],[272,0,273,1],[270,0,270,1],[279,0,279,1],[269,0,269,1],[268,0,268,1],[271,0,271,1],[278,0,278,1],[274,0,274,1],[275,0,275,1],[276,0,276,1],[115,0,115,1],[272,2,273,2],[286,1,286,2],[282,0,282,1],[277,0,277,1],[136,0,136,1],[148,0,148,1],[149,0,149,1],[150,0,151,2],[180,0,180,1],[181,0,181,1],[185,0,185,1],[237,0,237,1],[186,0,187,2],[184,0,184,1],[239,0,239,2],[46,0,46,1],[266,0,266,2],[262,0,263,2],[238,0,238,1],[32,0,32,2],[131,0,135,2],[242,0,244,2],[259,0,259,1],[260,0,260,1],[172,0,174,2],[250,0,250,1],[232,1,232,2],[127,0,127,1],[124,0,124,1],[97,0,97,1],[106,0,106,1],[86,0,86,1],[87,0,87,1],[16,0,16,2],[72,0,72,1],[20,0,20,1],[25,0,25,1],[60,0,60,1],[61,0,61,1],[52,0,53,2],[42,0,43,2],[51,0,51,1],[37,0,38,2],[50,0,50,1],[71,0,71,1],[62,0,63,2],[29,0,29,1],[0,0,0,2],[5,0,5,1],[6,0,6,1],[11,0,11,1],[2,0,2,1],[1,0,1,2],[3,0,3,1],[30,0,30,2],[128,0,128,1],[159,0,159,1],[171,0,171,1],[166,0,166,1],[170,0,170,1],[129,0,130,0],[160,0,161,2],[129,1,130,1],[125,0,125,1],[34,0,35,2],[74,0,75,2],[89,0,90,2],[40,0,40,1],[41,0,41,1],[79,0,79,1]]}
["OZNÁMENÍ O ČINNOSTECH, MAJETKU, PŘÍJMECH A ZÁVAZCÍCH",null,null,null,{"$f":"Data!W2","v":1}]
["Při vyplňování se prosím řiďte Pokyny k vyplnění průběžného oznámení a Metodikou k podávání oznámení veřejnými funkcionáři podle zákona \no střetu zájmů."]
["Všechna pole označena * jsou povinná."]
["Označení � odkazuje na Základní poučení na straně číslo 5 nebo 6."]
[2021]
["Oddíl I."]
["Všeobecné údaje"]
["Jméno*, příjmení*, titul"]
["Datum narození*"]
["Obec*, stát narození*"]
[]
["Adresa pro doručování"]
["Pracovní e-mail**"]
["Telefon/Datová schránka"]
["Adresa"]
["**) Souhlasím se zasláním informace o zaevidovaném oznámení na shora uvedený pracovní e-mail"]
["Pokud nesouhlasíte se zasláním informace o zaevidovaní oznámení na e-mail a trváte na zasílání v listinné podobě, vyplňte "]
["zde nesouhlasím."]
["Poznámka"]
[]
["Údaje o funkci a organizaci, ve které veřejný funkcionář působí"]
["Organizace 1)*"]
[{"$f":"IF(Data!W2=0,\"Funkce 2)*  �\",\"Funkce 2)*\")","v":"Funkce 2)*"},"Vyberte funkci"]
["Poznámka 3)"]
[]
["Druh oznámení"]
["Druh oznámení*","Průběžné oznámení"]
[]
[]
["Období, za které se oznámení podává"]
[{"$f":"CONCATENATE(\"       Ve výkonu funkce soudce/soudkyně jsem byl/a celý rok \",A5,\" a období, za které oznámení podávám je:\")","v":"       Ve výkonu funkce soudce/soudkyně jsem byl/a celý rok 2021 a období, za které oznámení podávám je:"}]
["Od—Do 4)*","1.1.2021 - 31.12.2021"]
[{"$f":"CONCATENATE(\"         V roce \",A5,\" jsem zahájil/a výkon funkce a období, za které oznámení podávám je:***\")","v":"         V roce 2021 jsem zahájil/a výkon funkce a období, za které oznámení podávám je:***"}]
["Od—Do 4)*"]
["***) Vyplňte pouze tehdy, podáváte-li oznámení za jiné období než je předvyplněno v kolonce \"Od—Do\", tj. podáváte-li průběžné oznámení za rok, ve kterém jste zahájil/a výkon funkce. Poté uvedete datum zahájení výkonu funkce=datum složení slibu a datum 31. 12. daného roku."]
[]
[]
[{"$f":"IF(B34=\"\",CONCATENATE(\"Uvádějte pouze činnosti, majetek a příjmy, které jste vykonávali resp. nově nabyli za rok \",A5,\", ev. část kalendářního roku \",A5,\", ve kterém jste byli ve výkonu funkce a výši existujících a dosud nesplacených závazků k 31. prosinci \",A5,\".\"),CONCATENATE(\"Uvádějte pouze činnosti, majetek a příjmy, které jste vykonávali resp. nově nabyli za období \",B34,\", ve kterém jste byli ve výkonu funkce a výši existujících a dosud nesplacených závazků k 31. prosinci daného roku.\"))","v":"Uvádějte pouze činnosti, majetek a příjmy, které jste vykonávali resp. nově nabyli za rok 2021, ev. část kalendářního roku 2021, ve kterém jste byli ve výkonu funkce a výši existujících a dosud nesplacených závazků k 31. prosinci 2021."}]
[]
[]
["Oddíl II."]
["Oznámení o činnostech"]
["Podnikání nebo provozování jiné samostatné výdělečné činnosti 5)"]
[]
[{"$f":"IF(Data!W3=2,\"Předmět 6)\",\"Předmět 6)*\")","v":"Předmět 6)"}]
[{"$f":"IF(Data!W2=0,\"Způsob 7)*  �\",IF(Data!W3=2,\"Způsob 7)\",\"Způsob 7)*\"))","v":"Způsob 7)"},"Vyberte způsob podnikání"]
[{"$f":"IF(Data!W3=2,\"Místo výkonu podnikání nebo provozování jiné samostatné výdělečné činnosti 8)\",\"Místo výkonu podnikání nebo provozování jiné samostatné výdělečné činnosti 8)*\")","v":"Místo výkonu podnikání nebo provozování jiné samostatné výdělečné činnosti 8)"}]
[{"$f":"IF(Data!W3=2,\"Obec, PSČ, stát\",\"Obec*, PSČ*, stát*\")","v":"Obec, PSČ, stát"}]
[{"$f":"IF(Data!W3=2,\"Ulice, č.p./č.o.\",\"Ulice*, č.p./č.o.*\")","v":"Ulice, č.p./č.o."}]
["Poznámka  9)"]
["Další údaje jsou na samostatném listu (vyberte jednu z variant)"]
[{"$f":"IF(Data!W4=0,\"Při nedostatku místa vytiskněte a vyplňte List č. 01, jenž naleznete zde →       List č. 01\",IF(Data!W4=1,\"Vyplňte a následně vytiskněte List č. 01, který naleznete v další záložce tohoto souboru.\",\"\"))","v":""}]
["Společník nebo člen podnikající právnické osoby 10)"]
[]
[{"$f":"IF(Data!W5=2,\"Obchodní firma/název 11)\",\"Obchodní firma/název 11)*\")","v":"Obchodní firma/název 11)"}]
[{"$f":"IF(Data!W5=2,\"IČO 12)\",\"IČO 12)*\")","v":"IČO 12)"}]
[{"$f":"IF(Data!W5=2,\"Sídlo právnické osoby 13)\",\"Sídlo právnické osoby 13)*\")","v":"Sídlo právnické osoby 13)"}]
[{"$f":"IF(Data!W5=2,\"Obec, PSČ, stát\",\"Obec*, PSČ*, stát*\")","v":"Obec, PSČ, stát"}]
[{"$f":"IF(Data!W5=2,\"Ulice, č.p./č.o.\",\"Ulice*, č.p./č.o.*\")","v":"Ulice, č.p./č.o."}]
["Poznámka 14)"]
["Další údaje jsou na samostatném listu (vyberte jednu z variant)"]
[{"$f":"IF(Data!W6=0,\"Při nedostatku místa vytiskněte a vyplňte List č. 02, jenž naleznete zde →       List č. 02\",IF(Data!W6=1,\"Vyplňte a následně vytiskněte List č. 02, který naleznete v další záložce tohoto souboru.\",\"\"))","v":""}]
["Člen statutárního orgánu, člen řídícího, dozorčího nebo kontrolního orgánu \npodnikající právnické osoby 15)"]
[]
[{"$f":"IF(Data!W7=2,\"Obchodní firma/název 16)\",\"Obchodní firma/název 16)*\")","v":"Obchodní firma/název 16)"}]
[{"$f":"IF(Data!W7=2,\"IČO 17)\",\"IČO 17)*\")","v":"IČO 17)"}]
[{"$f":"IF(Data!W2=0,\"Druh orgánu 18)*  �\",IF(Data!W7=2,\"Druh orgánu 18)\",\"Druh orgánu 18)*\"))","v":"Druh orgánu 18)"},"Vyberte druh orgánu"]
[{"$f":"IF(Data!W7=2,\"Sídlo právnické osoby 19)\",\"Sídlo právnické osoby 19)*\")","v":"Sídlo právnické osoby 19)"}]
[{"$f":"IF(Data!W7=2,\"Obec, PSČ, stát\",\"Obec*, PSČ*, stát*\")","v":"Obec, PSČ, stát"}]
[{"$f":"IF(Data!W7=2,\"Ulice, č.p./č.o.\",\"Ulice*, č.p./č.o.*\")","v":"Ulice, č.p./č.o."}]
["Poznámka 20)"]
["Další údaje jsou na samostatném listu (vyberte jednu z variant)"]
[{"$f":"IF(Data!W8=0,\"Při nedostatku místa vytiskněte a vyplňte List č. 03, jenž naleznete zde →       List č. 03\",IF(Data!W8=1,\"Vyplňte a následně vytiskněte List č. 03, který naleznete v další záložce tohoto souboru.\",\"\"))","v":""}]
[]
["Provozování rozhlasového nebo televizního vysílání nebo vydávání periodického \ntisku 21)"]
[]
[{"$f":"IF(Data!W2=0,\"Předmět 22)*  �\",IF(Data!W9=2,\"Předmět 22)\",\"Předmět 22)*\"))","v":"Předmět 22)"},"Vyberte předmět"]
[{"$f":"IF(Data!W2=0,\"Způsob 23)*    �\",IF(Data!W9=2,\"Způsob 23)\",\"Způsob 23)*\"))","v":"Způsob 23)"},"Vyberte způsob"]
["Název média 24)"]
["V případě, že zvolíte jako způsob provozování: \"jako společník, člen nebo ovládající osoba právnické osoby\", vyplňte dále obchodní firmu (název, IČO a sídlo této právnické osoby)."]
[{"$f":"IF(Data!W9=2,\"Obchodní firma/název (provozovatele/vydavatele) 25)\",IF(OR(B78=\"samostatně\",B78=\"Vyberte způsob\"),\"Obchodní firma/název (provozovatele/vydavatele) 25)\",\"Obchodní firma/název (provozovatele/vydavatele) 25)*\"))","v":"Obchodní firma/název (provozovatele/vydavatele) 25)"}]
[{"$f":"IF(Data!W9=2,\"IČO 26)\",IF(OR(B78=\"samostatně\",B78=\"Vyberte způsob\"),\"IČO 26)\",\"IČO 26)*\"))","v":"IČO 26)"}]
[{"$f":"IF(OR(B78=\"samostatně\",B78=\"Vyberte způsob\"),\"Sídlo právnické osoby 27)\",\"Sídlo právnické osoby 27)*\")","v":"Sídlo právnické osoby 27)"}]
[{"$f":"IF(OR(B78=\"samostatně\",B78=\"Vyberte způsob\"),\"Obec, PSČ, stát\",\"Obec*, PSČ*, stát*\")","v":"Obec, PSČ, stát"}]
[{"$f":"IF(OR(B78=\"samostatně\",B78=\"Vyberte způsob\"),\"Ulice, č.p./č.o.\",\"Ulice*, č.p./č.o.*\")","v":"Ulice, č.p./č.o."}]
["Poznámka 28)"]
["Další údaje jsou na samostatném listu (vyberte jednu z variant)"]
[{"$f":"IF(Data!W10=0,\"Při nedostatku místa vytiskněte a vyplňte List č. 04, jenž naleznete zde →       List č. 04\",IF(Data!W10=1,\"Vyplňte a následně vytiskněte List č. 04, který naleznete v další záložce tohoto souboru.\",\"\"))","v":""}]
[]
["Další činnost v pracovněprávním nebo obdobném vztahu nebo ve služebním \npoměru, nejde-li o vztah nebo poměr, v němž působí jako veřejný funkcionář 29)"]
[]
[]
[null,{"$f":"IF(Data!W11=2,\"Zaměstnavatel - podnikající fyzická osoba nebo právnická osoba\",\"Zaměstnavatel - podnikající fyzická osoba nebo právnická osoba*\")","v":"Zaměstnavatel - podnikající fyzická osoba nebo právnická osoba"}]
[{"$f":"IF(Data!W2=0,\"Druh činnosti 30)*  �\",IF(Data!W11=2,\"Druh činnosti 30)\",\"Druh činnosti 30)*\"))","v":"Druh činnosti 30)"},"Vyberte druh činnosti"]
["Specifikace"]
[{"$f":"IF(Data!W11=2,\"Jméno/název 31)\",\"Jméno/název 31)*\")","v":"Jméno/název 31)"}]
[{"$f":"IF(Data!W11=2,\"IČO 32)\",\"IČO 32)*\")","v":"IČO 32)"}]
[{"$f":"IF(Data!W11=2,\"Místo výkonu podnikaní/sídlo právnické osoby 33)\",\"Místo výkonu podnikaní/sídlo právnické osoby 33)*\")","v":"Místo výkonu podnikaní/sídlo právnické osoby 33)"}]
[{"$f":"IF(Data!W11=2,\"Obec, PSČ, stát\",\"Obec*, PSČ*, stát*\")","v":"Obec, PSČ, stát"}]
[{"$f":"IF(Data!W11=2,\"Ulice, č.p./č.o.\",\"Ulice*, č.p./č.o.*\")","v":"Ulice, č.p./č.o."}]
["Poznámka 34)"]
[null,{"$f":"IF(Data!W11=2,\"Zaměstnavatel - podnikající fyzická osoba nebo právnická osoba\",\"Zaměstnavatel - podnikající fyzická osoba nebo právnická osoba*\")","v":"Zaměstnavatel - podnikající fyzická osoba nebo právnická osoba"}]
[{"$f":"IF(Data!W2=0,\"Druh činnosti 30)*  �\",IF(Data!W11=2,\"Druh činnosti 30)\",\"Druh činnosti 30)*\"))","v":"Druh činnosti 30)"},"Vyberte druh činnosti"]
["Specifikace"]
[{"$f":"IF(Data!W11=2,\"Jméno/název 31)\",\"Jméno/název 31)*\")","v":"Jméno/název 31)"}]
[{"$f":"IF(Data!W11=2,\"IČO 32)\",\"IČO 32)*\")","v":"IČO 32)"}]
[{"$f":"IF(Data!W11=2,\"Místo výkonu podnikaní/sídlo právnické osoby 33)\",\"Místo výkonu podnikaní/sídlo právnické osoby 33)*\")","v":"Místo výkonu podnikaní/sídlo právnické osoby 33)"}]
[{"$f":"IF(Data!W11=2,\"Obec, PSČ, stát\",\"Obec*, PSČ*, stát*\")","v":"Obec, PSČ, stát"}]
[{"$f":"IF(Data!W11=2,\"Ulice, č.p./č.o.\",\"Ulice*, č.p./č.o.*\")","v":"Ulice, č.p./č.o."}]
["Poznámka 34)"]
[null,{"$f":"IF(Data!W11=2,\"Zaměstnavatel - podnikající fyzická osoba nebo právnická osoba\",\"Zaměstnavatel - podnikající fyzická osoba nebo právnická osoba*\")","v":"Zaměstnavatel - podnikající fyzická osoba nebo právnická osoba"}]
[{"$f":"IF(Data!W2=0,\"Druh činnosti 30)*  �\",IF(Data!W11=2,\"Druh činnosti 30)\",\"Druh činnosti 30)*\"))","v":"Druh činnosti 30)"},"Vyberte druh činnosti"]
["Specifikace"]
[{"$f":"IF(Data!W11=2,\"Jméno/název 31)\",\"Jméno/název 31)*\")","v":"Jméno/název 31)"}]
[{"$f":"IF(Data!W11=2,\"IČO 32)\",\"IČO 32)*\")","v":"IČO 32)"}]
[{"$f":"IF(Data!W11=2,\"Místo výkonu podnikaní/sídlo právnické osoby 33)\",\"Místo výkonu podnikaní/sídlo právnické osoby 33)*\")","v":"Místo výkonu podnikaní/sídlo právnické osoby 33)"}]
[{"$f":"IF(Data!W11=2,\"Obec, PSČ, stát\",\"Obec*, PSČ*, stát*\")","v":"Obec, PSČ, stát"}]
[{"$f":"IF(Data!W11=2,\"Ulice, č.p./č.o.\",\"Ulice*, č.p./č.o.*\")","v":"Ulice, č.p./č.o."}]
["Poznámka 34)"]
[null,{"$f":"IF(Data!W11=2,\"Zaměstnavatel - nepodnikající fyzická osoba\",\"Zaměstnavatel - nepodnikající fyzická osoba*\")","v":"Zaměstnavatel - nepodnikající fyzická osoba"}]
[{"$f":"IF(Data!W2=0,\"Druh činnosti 30)*  �\",IF(Data!W11=2,\"Druh činnosti 30)\",\"Druh činnosti 30)*\"))","v":"Druh činnosti 30)"},"Vyberte druh činnosti"]
["Specifikace"]
[{"$f":"IF(Data!W11=2,\"Jméno, příjmení 35)\",\"Jméno*, příjmení 35)*\")","v":"Jméno, příjmení 35)"}]
["Poznámka 34)"]
["Další činnosti jsou na samostatném listu (vyberte jednu z variant)"]
[{"$f":"IF(Data!W12=0,\"Při nedostatku místa vytiskněte a vyplňte List č. 05, jenž naleznete zde →       List č. 05\",IF(Data!W12=1,\"Vyplňte a následně vytiskněte List č. 05, který naleznete v další záložce tohoto souboru.\",\"\"))","v":""}]
[]
["Oddíl III."]
["Oznámení o majetku, který veřejný funkcionář nabyl v průběhu funkce"]
["Věci nemovité 36)","Seznam druhů nemovitých věcí a k nim seznam specifikace druhu naleznete\nna straně číslo 6 v části Základní poučení."]
[]
["Uveďte nemovité věci zapsané v katastru nemovitostí i nemovité věci nezapsané v katastru nemovitostí (např. nemovitost v zahraničí, drobnou stavbu), které jste nově nabyl/a za období uvedené na první straně tohoto oznámení. Nemovitosti zapsané v katastru nemovitostí označte podle údajů zapsaných na listu vlastnictví z katastru nemovitostí. Nemovité věci neevidované v katastru nemovitostí označte druhem nemovité věci. Jedná-li se o nemovitou věc v zahraničí, tak ta se označí pomocí dostupných identifikátorů (např. obec, ulice, č. p.). Podzemní stavby se samostatným účelovým určením a drobné stavby se označí jménem ulice, názvem obce a poštovním směrovacím číslem.  37)"]
[]
[]
[]
[]
["Postupujte podle Návodu na vyplňování Oddílu III. - část Věci nemovité."]
[{"$f":"IF(Data!W2=0,\"Druh nemovité věci 38)*�\",IF(OR(B138=\"pozemek\",B138=\"stavba\",B138=\"jednotka\",B138=\"právo stavby\",B138=\"jiné\"),\"Druh nemovité věci 38)*\",IF(Data!W13=2,\"Druh nemovité věci 38)\",\"Druh nemovité věci 38)*\")))","v":"Druh nemovité věci 38)"},"Vyberte druh nemovité věci"]
[{"$f":"IF(Data!W2=0,\"Specifikace druhu 39)*�\",IF(OR(B138=\"pozemek\",B138=\"stavba\",B138=\"jednotka\"),\"Specifikace druhu 39)*\",IF(OR(Data!W13=2,B138=\"právo stavby\",B138=\"jiné\"),\"Specifikace druhu 39)\",\"Specifikace druhu 39)*\")))","v":"Specifikace druhu 39)"},"Vyberte specifikaci druhu"]
[{"$f":"IF(Data!W2=0,\"Způsob nabytí 40)*        �\",IF(OR(B138=\"pozemek\",B138=\"stavba\",B138=\"jednotka\",B138=\"právo stavby\",B138=\"jiné\"),\"Způsob nabytí 40)*\",IF(Data!W13=2,\"Způsob nabytí 40)\",\"Způsob nabytí 40)*\")))","v":"Způsob nabytí 40)"},"Vyberte způsob nabytí"]
[{"$f":"IF(OR(B138=\"pozemek\",B138=\"stavba\",B138=\"jednotka\",B138=\"právo stavby\",B138=\"jiné\"),\"Pořizovací cena v Kč 41)*\",IF(Data!W13=2,\"Pořizovací cena v Kč 41)\",\"Pořizovací cena v Kč 41)*\"))","v":"Pořizovací cena v Kč 41)"}]
[{"$f":"IF(OR(B138=\"pozemek\",B138=\"stavba\",B138=\"jednotka\",B138=\"právo stavby\"),\"Obec - katastrální území*\",IF(OR(Data!W13=2,B138=\"jiné\"),\"Obec - katastrální území\",\"Obec - katastrální území*\"))","v":"Obec - katastrální území"},null," "]
[{"$f":"IF(OR(B138=\"pozemek\",B138=\"stavba\",B138=\"jednotka\",B138=\"právo stavby\"),\"Číslo LV 42)*\",IF(OR(Data!W13=2,B138=\"jiné\"),\"Číslo LV 42)\",\"Číslo LV 42)*\"))","v":"Číslo LV 42)"}]
[{"$f":"IF(OR(B138=\"pozemek\",B138=\"stavba\",B138=\"jednotka\",B138=\"právo stavby\",Data!W13=1,Data!W13=0,B138=\"jiné\"),\"Parcelní číslo 42)*\",\"Parcelní číslo 42)\")","v":"Parcelní číslo 42)"}]
[{"$f":"IF(OR(AND(B138=\"stavba\",B139=Data!$M$31),AND(B138=\"stavba\",B139=Data!$M$32),AND(B138=\"stavba\",Oznámení!B139=Data!$M$29),AND(B138=\"stavba\",B139=\"\")),\"Číslo popisné/evidenční 43)*\",IF(OR(B138=\"jiné\",B138=\"pozemek\",B138=\"právo stavby\",B138=\"jednotka\",B139=Data!$M$30,B139=Data!$M$33,B139=Data!$M$34,B139=Data!$M$35,Data!$W$13=2),\"Číslo popisné/evidenční 43)\",\"Číslo popisné/evidenční 43)*\"))","v":"Číslo popisné/evidenční 43)"}]
["Stát, Obec, PSČ"]
[{"$f":"IF(Data!W2=0,\"Vlastnictví 44)                 �\",\"Vlastnictví 44)\")","v":"Vlastnictví 44)"},"Vyberte typ vlastnictví"]
["Poznámka 45)"]
["Další nemovité věci jsou na samostatném listu (vyberte jednu z variant)"]
[{"$f":"IF(Data!W14=0,\"Při nedostatku místa vytiskněte a vyplňte List č. 06, jenž naleznete zde →       List č. 06\",IF(Data!W14=1,\"Vyplňte a následně vytiskněte List č. 06, který naleznete v další záložce tohoto souboru.\",\"\"))","v":""}]
["Cenné papíry, zaknihované cenné papíry nebo práva s nimi spojená 46)"]
[]
[{"$f":"IF(Data!W2=0,\"Druh 47)*         �\",IF(Data!W15=2,\"Druh 47)\",\"Druh 47)*\"))","v":"Druh 47)"},"Vyberte druh"]
[{"$f":"IF(Data!W15=2,\"Emitent 48)\",\"Emitent 48)*\")","v":"Emitent 48)"}]
["Počet"]
[{"$f":"IF(Data!W2=0,\"Vlastnictví 49)  �\",\"Vlastnictví 49)\")","v":"Vlastnictví 49)"},"Vyberte typ vlastnictví"]
["Pořizovací cena v Kč 50)"]
["Poznámka 51)"]
["Další údaje jsou na samostatném listu (vyberte jednu z variant)"]
[{"$f":"IF(Data!W16=0,\"Při nedostatku místa vytiskněte a vyplňte List č. 07, jenž naleznete zde →       List č. 07\",IF(Data!W16=1,\"Vyplňte a následně vytiskněte List č. 07, který naleznete v další záložce tohoto souboru.\",\"\"))","v":""}]
["Podíl v obchodní korporaci nepředstavovaný cenným papírem nebo \nzaknihovaným cenným papírem 52)"]
[]
[{"$f":"IF(Data!W17=2,\"Obchodní firma/název obchodní korporace 53)\",\"Obchodní firma/název obchodní korporace 53)*\")","v":"Obchodní firma/název obchodní korporace 53)"}]
[{"$f":"IF(Data!W17=2,\"IČO 54)\",\"IČO 54)*\")","v":"IČO 54)"}]
[{"$f":"IF(Data!W17=2,\"Velikost podílu v %\",\"Velikost podílu v %*\")","v":"Velikost podílu v %"}]
[{"$f":"IF(Data!W2=0,\"Vlastnictví 55)     �\",\"Vlastnictví 55)\")","v":"Vlastnictví 55)"},"Vyberte typ vlastnictví"]
[{"$f":"IF(Data!W17=2,\"Sídlo obchodní korporace 56)\",\"Sídlo obchodní korporace 56)*\")","v":"Sídlo obchodní korporace 56)"}]
[{"$f":"IF(Data!W17=2,\"Obec, PSČ, stát\",\"Obec*, PSČ*, stát*\")","v":"Obec, PSČ, stát"}]
[{"$f":"IF(Data!W17=2,\"Ulice, č.p./č.o.\",\"Ulice*, č.p./č.o.*\")","v":"Ulice, č.p./č.o."}]
["Poznámka  57)"]
["Další podíly jsou na samostatném listu (vyberte jednu z variant)"]
[{"$f":"IF(Data!W18=0,\"Při nedostatku místa vytiskněte a vyplňte List č. 08, jenž naleznete zde →       List č. 08\",IF(Data!W18=1,\"Vyplňte a následně vytiskněte List č. 08, který naleznete v další záložce tohoto souboru.\",\"\"))","v":""}]
["Jiné věci movité určené podle druhu, nabyté v průběhu kalendářního roku, \njejichž hodnota ve svém souhrnu, do něhož se nezapočítávají věci, jejichž \nhodnota je nižší než 50 000 Kč, přesáhla částku 500 000 Kč  58)"]
[]
[]
[{"$f":"IF(Data!W19=2,\"Druh movité věci 59)\",\"Druh movité věci 59)*\")","v":"Druh movité věci 59)"}]
[{"$f":"IF(Data!W19=2,\"Pořizovací cena v Kč 60)\",\"Pořizovací cena v Kč 60)*\")","v":"Pořizovací cena v Kč 60)"}]
[{"$f":"IF(Data!W2=0,\"Způsob nabytí 61)*  �\",IF(Data!W19=2,\"Způsob nabytí 61)\",\"Způsob nabytí 61)*\"))","v":"Způsob nabytí 61)"},"Vyberte způsob nabytí"]
[{"$f":"IF(Data!W2=0,\"Vlastnictví 62)          �\",\"Vlastnictví 62)\")","v":"Vlastnictví 62)"},"Vyberte typ vlastnictví"]
["Poznámka 63)"]
["Další jiné věci movité jsou na samostatném listu (vyberte jednu z variant)"]
[{"$f":"IF(Data!W20=0,\"Při nedostatku místa vytiskněte a vyplňte List č. 09, jenž naleznete zde →       List č. 09\",IF(Data!W20=1,\"Vyplňte a následně vytiskněte List č. 09, který naleznete v další záložce tohoto souboru.\",\"\"))","v":""}]
[]
[]
["ODDÍL IV."]
["Oznámení o příjmech a závazcích"]
["Jakékoliv peněžité příjmy nebo jiné majetkové výhody a dary, pokud jejich \nsouhrnná výše přesáhne v kalendářním roce částku 100 000 Kč 64)"]
[]
["Do souhrnné výše příjmů a jiných majetkových výhod se nezapočítávají dary, jejichž cena je nižší než 10 000 Kč."]
[]
[null,{"$f":"IF(Data!W21=2,\"Zdroj - právnická osoba\",\"Zdroj - právnická osoba*\")","v":"Zdroj - právnická osoba"}]
[{"$f":"IF(Data!W2=0,\"Druh příjmu 65)*  �\",IF(Data!W21=2,\"Druh příjmu 65)\",\"Druh příjmu 65)*\"))","v":"Druh příjmu 65)"},"Vyberte druh příjmu"]
["Specifikace"]
[{"$f":"IF(Data!W21=2,\"Výše příjmu v Kč 66)\",\"Výše příjmu v Kč 66)*\")","v":"Výše příjmu v Kč 66)"}]
[{"$f":"IF(Data!W21=2,\"Obchodní firma/název 67)\",\"Obchodní firma/název 67)*\")","v":"Obchodní firma/název 67)"}]
[{"$f":"IF(Data!W21=2,\"IČO 68)\",\"IČO 68)*\")","v":"IČO 68)"}]
[{"$f":"IF(Data!W21=2,\"Sídlo právnické osoby 69)\",\"Sídlo právnické osoby 69)*\")","v":"Sídlo právnické osoby 69)"}]
[{"$f":"IF(Data!W21=2,\"Obec, PSČ, stát\",\"Obec*, PSČ*, stát*\")","v":"Obec, PSČ, stát"}]
[{"$f":"IF(Data!W21=2,\"Ulice, č.p./č.o.\",\"Ulice*, č.p./č.o.*\")","v":"Ulice, č.p./č.o."}]
["Poznámka 70)"]
[null,{"$f":"IF(Data!W21=2,\"Zdroj - právnická osoba\",\"Zdroj - právnická osoba*\")","v":"Zdroj - právnická osoba"}]
[{"$f":"IF(Data!W2=0,\"Druh příjmu 65)*  �\",IF(Data!W21=2,\"Druh příjmu 65)\",\"Druh příjmu 65)*\"))","v":"Druh příjmu 65)"},"Vyberte druh příjmu"]
["Specifikace"]
[{"$f":"IF(Data!W21=2,\"Výše příjmu v Kč 66)\",\"Výše příjmu v Kč 66)*\")","v":"Výše příjmu v Kč 66)"}]
[{"$f":"IF(Data!W21=2,\"Obchodní firma/název 67)\",\"Obchodní firma/název 67)*\")","v":"Obchodní firma/název 67)"}]
[{"$f":"IF(Data!W21=2,\"IČO 68)\",\"IČO 68)*\")","v":"IČO 68)"}]
[{"$f":"IF(Data!W21=2,\"Sídlo právnické osoby 69)\",\"Sídlo právnické osoby 69)*\")","v":"Sídlo právnické osoby 69)"}]
[{"$f":"IF(Data!W21=2,\"Obec, PSČ, stát\",\"Obec*, PSČ*, stát*\")","v":"Obec, PSČ, stát"}]
[{"$f":"IF(Data!W21=2,\"Ulice, č.p./č.o.\",\"Ulice*, č.p./č.o.*\")","v":"Ulice, č.p./č.o."}]
["Poznámka 70)"]
[null,{"$f":"IF(Data!W21=2,\"Zdroj - právnická osoba\",\"Zdroj - právnická osoba*\")","v":"Zdroj - právnická osoba"}]
[{"$f":"IF(Data!W2=0,\"Druh příjmu 65)*  �\",IF(Data!W21=2,\"Druh příjmu 65)\",\"Druh příjmu 65)*\"))","v":"Druh příjmu 65)"},"Vyberte druh příjmu"]
["Specifikace"]
[{"$f":"IF(Data!W21=2,\"Výše příjmu v Kč 66)\",\"Výše příjmu v Kč 66)*\")","v":"Výše příjmu v Kč 66)"}]
[{"$f":"IF(Data!W21=2,\"Obchodní firma/název 67)\",\"Obchodní firma/název 67)*\")","v":"Obchodní firma/název 67)"}]
[{"$f":"IF(Data!W21=2,\"IČO 68)\",\"IČO 68)*\")","v":"IČO 68)"}]
[{"$f":"IF(Data!W21=2,\"Sídlo právnické osoby 69)\",\"Sídlo právnické osoby 69)*\")","v":"Sídlo právnické osoby 69)"}]
[{"$f":"IF(Data!W21=2,\"Obec, PSČ, stát\",\"Obec*, PSČ*, stát*\")","v":"Obec, PSČ, stát"}]
[{"$f":"IF(Data!W21=2,\"Ulice, č.p./č.o.\",\"Ulice*, č.p./č.o.*\")","v":"Ulice, č.p./č.o."}]
["Poznámka 70)"]
[null,{"$f":"IF(Data!W21=2,\"Zdroj - fyzická osoba\",\"Zdroj - fyzická osoba*\")","v":"Zdroj - fyzická osoba"}]
[{"$f":"IF(Data!W2=0,\"Druh příjmu 65)*  �\",IF(Data!W21=2,\"Druh příjmu 65)\",\"Druh příjmu 65)*\"))","v":"Druh příjmu 65)"},"Vyberte druh příjmu"]
["Specifikace"]
[{"$f":"IF(Data!W21=2,\"Výše příjmu v Kč 66)\",\"Výše příjmu v Kč 66)*\")","v":"Výše příjmu v Kč 66)"}]
[{"$f":"IF(Data!W21=2,\"Jméno, příjmení\",\"Jméno*, příjmení*\")","v":"Jméno, příjmení"}]
["Poznámka 70)"]
[null,{"$f":"IF(Data!W21=2,\"Zdroj - fyzická osoba\",\"Zdroj - fyzická osoba*\")","v":"Zdroj - fyzická osoba"}]
[{"$f":"IF(Data!W2=0,\"Druh příjmu 65)*  �\",IF(Data!W21=2,\"Druh příjmu 65)\",\"Druh příjmu 65)*\"))","v":"Druh příjmu 65)"},"Vyberte druh příjmu"]
["Specifikace"]
[{"$f":"IF(Data!W21=2,\"Výše příjmu v Kč 66)\",\"Výše příjmu v Kč 66)*\")","v":"Výše příjmu v Kč 66)"}]
[{"$f":"IF(Data!W21=2,\"Jméno, příjmení\",\"Jméno*, příjmení*\")","v":"Jméno, příjmení"}]
["Poznámka 70)"]
[null,{"$f":"IF(Data!W21=2,\"Zdroj - jiný 71)\",\"Zdroj - jiný 71)*\")","v":"Zdroj - jiný 71)"}]
[{"$f":"IF(Data!W2=0,\"Druh příjmu 65)*  �\",IF(Data!W21=2,\"Druh příjmu 65)\",\"Druh příjmu 65)*\"))","v":"Druh příjmu 65)"},"Vyberte druh příjmu"]
["Specifikace"]
[{"$f":"IF(Data!W21=2,\"Výše příjmu v Kč 66)\",\"Výše příjmu v Kč 66)*\")","v":"Výše příjmu v Kč 66)"}]
["Poznámka 70)"]
["Další příjmy jsou na samostatném listu (vyberte jednu z variant)"]
[{"$f":"IF(Data!W22=0,\"Při nedostatku místa vytiskněte a vyplňte List č. 10, jenž naleznete níže ↓ \",IF(Data!W22=1,\"Vyplňte a následně vytiskněte List č. 10, který naleznete v další záložce tohoto souboru.\",\"\"))","v":""}]
[{"$f":"IF(Data!W21=0,\"List č. 10 — zdroj právnická osoba                            List č. 10 — zdroj fyzická osoba                                List č. 10 — jiný zdroj\",\"\")","v":""}]
[]
[]
["Nesplacené závazky, zejména půjčky a úvěry, pokud jejich souhrnná výše přesáhla ke dni 31. prosince kalendářního roku, za který se oznámení podává, částku 100 000 Kč 72)"]
[]
[]
[null,{"$f":"IF(Data!W23=2,\"Věřitel - právnická osoba\",\"Věřitel - právnická osoba*\")","v":"Věřitel - právnická osoba"}]
[{"$f":"IF(Data!W23=2,\"Druh závazku 73)\",\"Druh závazku 73)*\")","v":"Druh závazku 73)"}]
[{"$f":"IF(Data!W23=2,\"Výše závazku v Kč 74)\",\"Výše závazku v Kč 74)*\")","v":"Výše závazku v Kč 74)"}]
[{"$f":"IF(Data!W23=2,\"Obchodní firma/název 75)\",\"Obchodní firma/název 75)*\")","v":"Obchodní firma/název 75)"}]
[{"$f":"IF(Data!W23=2,\"IČO 76)\",\"IČO 76)*\")","v":"IČO 76)"}]
[{"$f":"IF(Data!W23=2,\"Sídlo právnické osoby 77)\",\"Sídlo právnické osoby 77)*\")","v":"Sídlo právnické osoby 77)"}]
[{"$f":"IF(Data!W23=2,\"Obec, PSČ, stát\",\"Obec*, PSČ*, stát*\")","v":"Obec, PSČ, stát"}]
[{"$f":"IF(Data!W23=2,\"Ulice, č.p./č.o.\",\"Ulice*, č.p./č.o.*\")","v":"Ulice, č.p./č.o."}]
["Poznámka 78)"]
[null,{"$f":"IF(Data!W23=2,\"Věřitel - fyzická osoba\",\"Věřitel - fyzická osoba*\")","v":"Věřitel - fyzická osoba"}]
[{"$f":"IF(Data!W23=2,\"Druh závazku 73)\",\"Druh závazku 73)*\")","v":"Druh závazku 73)"}]
[{"$f":"IF(Data!W23=2,\"Výše závazku v Kč 74)\",\"Výše závazku v Kč 74)*\")","v":"Výše závazku v Kč 74)"}]
[{"$f":"IF(Data!W23=2,\"Jméno, příjmení\",\"Jméno*, příjmení*\")","v":"Jméno, příjmení"}]
["Poznámka 78)"]
["Další závazky jsou na samostatném listu (vyberte jednu z variant)"]
[{"$f":"IF(Data!W24=0,\"Při nedostatku místa vytiskněte a vyplňte List č. 11, jenž naleznete zde →       List č. 11\",IF(Data!W24=1,\"Vyplňte a následně vytiskněte List č. 11, který naleznete v další záložce tohoto souboru.\",\"\"))","v":""}]
[]
["Vyplněné oznámení vlastnoručně podepište a podejte i v případě, že nenastaly žádné skutečnosti, které by podléhaly oznamovací povinnosti."]
[]
[]
[]
["Přílohy 79)"]
["Název",null,"Počet"]
["List č. 01 - Podnikání nebo provozování jiné samostatné výdělečné činnosti"]
["List č. 02 - Společník nebo člen podnikající právnické osoby"]
["List č. 03 - Člen statutárního orgánu, člen řídícího, dozorčího nebo kontrolního orgánu podnikající právnické osoby"]
["List č. 04 - Provozování rozhlasového nebo televizního vysílání nebo vydávání periodického tisku"]
["List č. 05 - Další činnost v pracovněprávním nebo obdobném vztahu nebo ve služebním poměru, nejde-li o vztah nebo poměr, v němž působí jako veřejný funkcionář"]
[]
["List č. 06 - Věci nemovité"]
["List č. 07 - Cenné papíry, zaknihované cenné papíry nebo práva s nimi spojená"]
["List č. 08 - Podíl v obchodní korporaci nepředstavovaný cenným papírem nebo zaknihovaným cenným papírem"]
["List č. 09 - Jiné věci movité"]
["List č. 10 -  Jakékoliv peněžité příjmy nebo jiné majetkové výhody a dary"]
["List č. 11 - Nesplacené závazky"]
["Ostatní přílohy"]
[]
[]
["Celkem",null,{"$f":"IF(B8=\"\",\"\",SUM(C269:C283))","v":""}]
[]
[]
["Datum a podpis"]
[]
[]
["Základní poučení"]
["Vyplňujete klasický tiskopis, jenž neumožňuje aktivaci označení povinných položek na základě zvoleného výběru, výběry ze seznamu povolených hodnot a zobrazování komentářů jak je tomu v interaktivním formuláři. Proto  prosím dodržujte následující poučení.\n\nKomentáře ke kolonkám označeným např. „1)“ jsou blíže rozepsány v Pokynech pro vyplnění průběžného oznámení. V číselně označených kolonkách se uvádí jedna z uvedených hodnot, jiný text není přípustný. Výjimku tvoří část Věci nemovité, u nichž jsou povinné položky závislé na zvoleném druhu nemovité věci. Seznam hodnot naleznete níže.  "]
[]
[]
[]
[]
[]
[]
[]
["2)* – Zvolte dle nabízených možností funkci: předsedkyně/předseda, místopředsedkyně/místopředseda, předsedkyně senátu/předseda senátu, předsedkyně kolegia/ předseda kolegia, soudkyně/ soudce.\n7)* – Zvolte dle nabízených možností: prostřednictvím odpovědného zástupce, samostatně. \n18)* – Uveďte příslušný orgán z nabídky: dozorčí orgán, kontrolní orgán, řídící orgán, statutární orgán, jiné; jde-li o jiný, než uvedený orgán, vyberte možnost \"jiné\" a konkretizujte jej v poznámce.\n22)* – Zvolte předmět z nabízených možností: provozování rozhlasového vysílání, provozování televizního vysílání, vydávání periodického tisku.\n23)* – Vyberte z nabízených možností způsob: jako společník, člen nebo ovládající osoba právnické osoby, která je provozovatelem rozhlasového nebo televizního vysílání nebo vydavatelem periodického tisku; samostatně.\n30)* – Uveďte druh vykonávané činnosti z nabídky: pracovněprávní vztah, služební poměr, obdobný vztah. Obdobným vztahem se rozumí např. dohoda o pracovní činnosti nebo dohoda o provedení práce.\n38)* – Vyberte z nabízených možností druh nemovité věci, který jste nabyl/a: pozemek, stavba, jednotka, právo stavby, jiné.\n39)* – V závislosti na zvoleném druhu nemovité věci zvolte specifikaci druhu:\n- pozemek: chmelnice, lesní pozemek, orná půda, ostatní plocha, ovocný sad, trvalý travní porost, vinice, vodní plocha, zahrada, zastavěná plocha a nádvoří;\n- stavba: budova bez čísla popisného nebo evidenčního, budova s číslem evidenčním, budova s číslem popisným, budova s rozestavěnými jednotkami, rozestavěná budova, vodní díllo;\n- jednotka: ateliér, byt, dílna nebo provozovna, garáž, jiný nebytový prostor, rozestavěná jednotka, skupina bytů, skupina bytů a  nebytových prostorů, skupina nebytových prostorů;\n- právo stavby: specifikace druhu se nevyplňuje;\n- jiné: specifikace druhu se nevyplňuje.\n\nVýčet povinných položek v závislosti na volbě druhu nemovité věci:\n- Při výběru: „Pozemek“, jsou povinné položky: Druh nemovité věci, Specifikace druhu, Způsob nabytí, Pořizovací cena,  Obec – katastrální území, Číslo LV, Parcelní číslo. \n- Při výběru: „Stavba“, je povinnost vyplnit: Druh nemovité věci, Specifikace druhu, Způsob nabytí, Pořizovací cena,  Obec – katastrální území, Číslo LV, Parcelní číslo, Číslo popisné/evidenční (je-li přiděleno). \n- Při výběru: „Jednotka“, je povinnost vyplnit: Druh nemovité věci, Specifikace druhu, Způsob nabytí, Pořizovací cena,  Obec – katastrální území, Číslo LV, Parcelní číslo.\n- Při výběru: „Právo stavby“, je povinnost vyplnit: Druh nemovité věci, Způsob nabytí, Pořizovací cena, Obec – katastrální území, Číslo LV, Parcelní číslo.\n- Při výběru: „Jiné“, je povinnost vyplnit: Druh nemovité věci, Způsob nabytí, Pořizovací cena, Parcelní číslo.\nJedná-li se o: \n- nemovitou věc v zahraničí, ta se dále označí pomocí dostupných identifikátorů (např.: obec, ulice, č. p.),\n- podzemní stavbu se samostatným účelovým určením a drobnou stavbu, ta se označí jménem ulice, názvem obce a  poštovním směrovacím číslem.\n\n40)* – Vyberte položku v závislosti na tom, jakým způsobem jste nemovitou věc nabyl/a: darovací smlouva, dědění, kupní smlouva, odkaz, směnná smlouva, smlouva o dílo, výstavba, jiné.\n44) – Vyberte z možností druh vlastnictví: výlučné, spoluvlastnictví, společné jmění manželů.\n47)* – Vyberte z nabízených možností: akcie, dluhopis, investiční list, kmenový list, podílový list, směnka, zatímní list nebo jiné; pokud vyberete možnost jiné, konkretizujte tento údaj v poznámce (např. šeky, náložné listy, skladištní listy).\n49) – Vyberte z možností druh vlastnictví: výlučné, spoluvlastnictví, společné jmění manželů.\n55) – Vyberte z možností druh vlastnictví: výlučné, spoluvlastnictví, společné jmění manželů.\n61)* – Vyberte z nabídky způsob nabytí v závislosti na tom, jakým způsobem jste movitou věc nabyl/a: darovací smlouva, dědění, kupní smlouva, odkaz, směnná smlouva, jiné; v případě výběru položky jiné, konkretizujte tento výběr v poznámce (např. výhra, nález).\n62) – Vyberte z možností druh vlastnictví: výlučné, spoluvlastnictví, společné jmění manželů.\n65)* – Vyberte z nabízených možností, o jaký druh příjmu se jedná: dar, dohoda o pracovní činnosti, dohoda o provedení práce, pracovní poměr, příjem z podnikatelské nebo jiné samostatné výdělečné činnosti, příjem z účasti nebo činnosti v podnikající právnické osobě, služební poměr, jiná majetková výhoda, jiný peněžitý příjem. \n"]
[]
[]
[]
[]
[]
[]
[]
[]
[]
[]
[]
[]
[]
[]
[]
[]
[]
[]
[]
[]
[]
[]
[]
[]
[]
[]
[]
[]
[]
[]
[]
[]
[]
[]
[]
[]
[]
[]
[]
[]
[]
[]
[]
[]
[]
[]
[]
[]
[]
[]
[]
[]
["Toto poučení nenahrazuje zákon č. 159/2006 Sb., o střetu zájmů, ve znění pozdějších předpisů a Metodiku k podávání oznámení veřejnými funkcionáři podle zákona o střetu zájmů."]

{"sheet":"Data","index":1,"n_rows":157,"n_cols":28,"rows_kept":157,"cut":false,"hidden":true,"merged":[]}
[null,null,null,null,null,null,null,null,null,null,null,null,null,null,null,null,null,null,null,null,null,null,"hodnoty k přepínačům","buňka"]
["funkce (2)","Podnikání(3)","Člen statutárního orgánu(4)","Společník","Provozování rozhlasu(5)","Provozování rozhlasu(6)","Obdobný vztah(7)","Zaměstnavatel","Nemovité věci 8+9+10","Sloupec1","Sloupec1","1 nemovitosti",null,"Cenné papíry (11)","Cenné papíry 12","Obchodní podíl nepředstavovaný CP(13)","Jiné věci movité (14)","Jiné věci movité (15)","Příjmy","Příjmy","Závazky",null,1,"typ oznámení",null,2018,"1.1.2018—31.12.2018","Obecné poučení"]
["Vyberte funkci","Vyberte způsob podnikání","Vyberte druh orgánu",null,"Vyberte předmět","Vyberte způsob","Vyberte druh činnosti","Vyberte zaměstnavatele","Vyberte druh nemovité věci","Vyberte způsob nabytí","Vyberte typ vlastnictví",{"$f":"IF(Oznámení!$B$138=\"vyberte druh nemovité věci\",\"Vyberte specifikaci druhu\",IF(Oznámení!$B$138=\"pozemek\",M16,IF(Oznámení!$B$138=\"stavba\",M29,IF(Oznámení!$B$138=\"jednotka\",M42,IF(Oznámení!$B$138=\"jiné\",M68,IF(Oznámení!$B$138=\"právo stavby\",M55,\"\"))))))","v":"Vyberte specifikaci druhu"},null,"Vyberte druh","Vyberte typ vlastnictví","Vyberte typ vlastnictví","Vyberte způsob nabytí","Vyberte typ vlastnictví","Vyberte druh příjmu","Vyberte zdroj příjmu","Vyberte věřitele",null,2,"podnikání ",null,2019,"1.1.2019—31.12.2019"]
["Předsedkyně/Předseda","prostřednictvím odpovědného zástupce","dozorčí orgán",null,"provozování rozhlasového vysílání","jako společník, člen nebo ovládající osoba právnické osoby, která je provozovatelem rozhlasového nebo televizního vysílání nebo vydavatelem periodického tisku","pracovněprávní vztah","nepodnikající fyzická osoba","pozemek","darovací smlouva","společné jmění manželů",{"$f":"IF(Oznámení!$B$138=\"vyberte druh nemovité věci\",\"Nezvolili jste druh nemovité věci\",IF(Oznámení!$B$138=\"pozemek\",M17,IF(Oznámení!$B$138=\"stavba\",M30,IF(Oznámení!$B$138=\"jednotka\",M43,IF(Oznámení!$B$138=\"jiné\",M69,IF(Oznámení!$B$138=\"právo stavby\",M56,\"\"))))))","v":"Nezvolili jste druh nemovité věci"},null,"akcie","společné jmění manželů","společné jmění manželů","darovací smlouva","společné jmění manželů","dar","fyzická osoba","Fyzická osoba",null,2,"podnikání listy",null,2020,"1.1.2020—31.12.2020","Uvádějte pouze činnosti, majetek a příjmy, které jste vykonávali resp. nově nabyli za Vámi zadané období, ve kterém jste byli ve výkonu funkce a výši existujících a dosud nesplacených závazků k 31. prosinci daného roku."]
["Místopředsedkyně/Místopředseda","samostatně","kontrolní orgán",null,"provozování televizního vysílání","samostatně","služební poměr","podnikající fyzická osoba nebo právnická osoba","stavba","dědění","spoluvlastnictví",{"$f":"IF(Oznámení!$B$138=\"vyberte druh nemovité věci\",\"\",IF(Oznámení!$B$138=\"pozemek\",M18,IF(Oznámení!$B$138=\"stavba\",M31,IF(Oznámení!$B$138=\"jednotka\",M44,IF(Oznámení!$B$138=\"jiné\",M70,IF(Oznámení!$B$138=\"právo stavby\",M57,\"\"))))))","v":""},null,"dluhopis","spoluvlastnictví","spoluvlastnictví","dědění","spoluvlastnictví","dohoda o pracovní činnosti","právnická osoba","Právnická osoba",null,2,"společník",null,2021,"1.1.2021—31.12.2021","Uvádějte pouze činnosti, majetek a příjmy, které jste vykonávali resp. nově nabyli za rok 2019, ev. část kalendářního roku 2019, ve kterém jste byli ve výkonu funkce a výši existujících a dosud nesplacených závazků k 31. prosinci 2019."]
["Předsedkyně senátu/Předseda senátu",null,"řídící orgán",null,"vydávání periodického tisku",null,"obdobný vztah",null,"jednotka","kupní smlouva","výlučné",{"$f":"IF(Oznámení!$B$138=\"vyberte druh nemovité věci\",\"\",IF(Oznámení!$B$138=\"pozemek\",M19,IF(Oznámení!$B$138=\"stavba\",M32,IF(Oznámení!$B$138=\"jednotka\",M45,IF(Oznámení!$B$138=\"jiné\",M71,IF(Oznámení!$B$138=\"právo stavby\",M58,\"\"))))))","v":""},null,"investiční list","výlučné","výlučné","kupní smlouva","výlučné","dohoda o provedení práce","jiný zdroj",null,null,2,"společník -list",null,2022,"1.1.2022—31.12.2022"]
["Předsedkyně kolegia/Předseda kolegia",null,"statutární orgán",null,null,null,null,null,"právo stavby","odkaz",null,{"$f":"IF(Oznámení!$B$138=\"vyberte druh nemovité věci\",\"\",IF(Oznámení!$B$138=\"pozemek\",M20,IF(Oznámení!$B$138=\"stavba\",M33,IF(Oznámení!$B$138=\"jednotka\",M46,IF(Oznámení!$B$138=\"jiné\",M72,IF(Oznámení!$B$138=\"právo stavby\",M59,\"\"))))))","v":""},null,"kmenový list",null,null,"odkaz",null,"pracovní poměr",null,null,null,2,"člen statut.",null,2023,"1.1.2023—31.12.2023"]
["Soudkyně/Soudce",null,"jiné",null,null,null,null,null,"jiné","směnná smlouva",null,{"$f":"IF(Oznámení!$B$138=\"vyberte druh nemovité věci\",\"\",IF(Oznámení!$B$138=\"pozemek\",M21,IF(Oznámení!$B$138=\"stavba\",M34,IF(Oznámení!$B$138=\"jednotka\",M47,IF(Oznámení!$B$138=\"jiné\",M73,IF(Oznámení!$B$138=\"právo stavby\",M60,\"\"))))))","v":""},null,"podílový list",null,null,"směnná smlouva",null,"příjem z podnikatelské nebo jiné samostatné výdělečné činnosti",null,null,null,2,"člen sta.- list",null,2024,"1.1.2024—31.12.2024"]
[null,null,null,null,null,null,null,null,null,"smlouva o dílo",null,{"$f":"IF(Oznámení!$B$138=\"vyberte druh nemovité věci\",\"\",IF(Oznámení!$B$138=\"pozemek\",M22,IF(Oznámení!$B$138=\"stavba\",M35,IF(Oznámení!$B$138=\"jednotka\",M48,IF(Oznámení!$B$138=\"jiné\",M74,IF(Oznámení!$B$138=\"právo stavby\",M61,\"\"))))))","v":""},null,"směnka",null,null,"jiné - blíže specifikovat",null,"příjem z účasti nebo činnosti v podnikající právnické osobě",null,null,null,2,"rozhlas",null,2025,"1.1.2025—31.12.2025"]
[null,null,null,null,null,null,null,null,null,"výstavba",null,{"$f":"IF(Oznámení!$B$138=\"vyberte druh nemovité věci\",\"\",IF(Oznámení!$B$138=\"pozemek\",M23,IF(Oznámení!$B$138=\"stavba\",M36,IF(Oznámení!$B$138=\"jednotka\",M49,IF(Oznámení!$B$138=\"jiné\",M75,IF(Oznámení!$B$138=\"právo stavby\",M62,\"\"))))))","v":""},null,"zatímní list",null,null,null,null,"služební poměr",null,null,null,2,"rozhlas - list",null,2026,"1.1.2026—31.12.2026"]
[null,null,null,null,null,null,null,null,null,"jiné - blíže specifikovat v poznámce",null,{"$f":"IF(Oznámení!$B$138=\"vyberte druh nemovité věci\",\"\",IF(Oznámení!$B$138=\"pozemek\",M24,IF(Oznámení!$B$138=\"stavba\",M37,IF(Oznámení!$B$138=\"jednotka\",M50,IF(Oznámení!$B$138=\"jiné\",M76,IF(Oznámení!$B$138=\"právo stavby\",M63,\"\"))))))","v":""},null,"jiné - blíže specifikovat",null,null,null,null,"jiná majetková výhoda",null,null,null,2,"dal. činnosti",null,2027,"1.1.2027—31.12.2027"]
[null,null,null,null,null,null,null,null,null,null,null,{"$f":"IF(Oznámení!$B$138=\"vyberte druh nemovité věci\",\"\",IF(Oznámení!$B$138=\"pozemek\",M25,IF(Oznámení!$B$138=\"stavba\",M38,IF(Oznámení!$B$138=\"jednotka\",M51,IF(Oznámení!$B$138=\"jiné\",M77,IF(Oznámení!$B$138=\"právo stavby\",M64,\"\"))))))","v":""},null,null,null,null,null,null,"jiný peněžitý příjem",null,null,null,2,"d. činno - list",null,2028,"1.1.2028—31.12.2028"]
[null,null,null,null,null,null,null,null,null,null,null,{"$f":"IF(Oznámení!$B$138=\"vyberte druh nemovité věci\",\"\",IF(Oznámení!$B$138=\"pozemek\",M26,IF(Oznámení!$B$138=\"stavba\",M39,IF(Oznámení!$B$138=\"jednotka\",M52,IF(Oznámení!$B$138=\"jiné\",M78,IF(Oznámení!$B$138=\"právo stavby\",M65,\"\"))))))","v":""},null,null,null,null,null,null,null,null,null,null,2,"KN",null,2029,"1.1.2029—31.12.2029"]
[null,null,null,null,null,null,null,null,null,null,null,"2 nemovitost","Specifikace druhu",null,null,null,null,null,null,null,null,null,2,"KN - list",null,2030,"1.1.2030—31.12.2030"]
[null,null,null,null,null,null,null,null,null,null,null,{"$f":"IF('List č. 06'!$B$13=\"vyberte druh nemovité věci\",\"Vyberte specifikaci druhu\",IF('List č. 06'!$B$13=\"pozemek\",M16,IF('List č. 06'!$B$13=\"stavba\",M29,IF('List č. 06'!$B$13=\"jednotka\",M42,IF('List č. 06'!$B$13=\"jiné\",M68,IF('List č. 06'!$B$13=\"právo stavby\",M55,\"\"))))))","v":"Vyberte specifikaci druhu"},"pozemek",null,null,null,null,null,null,null,null,null,2,"CP",null,2031,"1.1.2031—31.12.2031"]
[null,null,null,null,null,null,null,null,null,null,null,{"$f":"IF('List č. 06'!$B$13=\"vyberte druh nemovité věci\",\"Nezvolili jste druh nemovité věci\",IF('List č. 06'!$B$13=\"pozemek\",M17,IF('List č. 06'!$B$13=\"stavba\",M30,IF('List č. 06'!$B$13=\"jednotka\",M43,IF('List č. 06'!$B$13=\"jiné\",M69,IF('List č. 06'!$B$13=\"právo stavby\",M56,\"\"))))))","v":"Nezvolili jste druh nemovité věci"},"Vyberte specifikaci druhu",null,null,null,null,null,null,null,null,null,2,"CP - list",null,2032,"1.1.2032—31.12.2032"]
[null,null,null,null,null,null,null,null,null,null,null,{"$f":"IF('List č. 06'!$B$13=\"vyberte druh nemovité věci\",\"\",IF('List č. 06'!$B$13=\"pozemek\",M18,IF('List č. 06'!$B$13=\"stavba\",M31,IF('List č. 06'!$B$13=\"jednotka\",M44,IF('List č. 06'!$B$13=\"jiné\",M70,IF('List č. 06'!$B$13=\"právo stavby\",M57,\"\"))))))","v":""},"chmelnice",null,null,null,null,null,null,null,null,null,2,"Obch. pod.",null,2033,"1.1.2033—31.12.2033"]
[null,null,null,null,null,null,null,null,null,null,null,{"$f":"IF('List č. 06'!$B$13=\"vyberte druh nemovité věci\",\"\",IF('List č. 06'!$B$13=\"pozemek\",M19,IF('List č. 06'!$B$13=\"stavba\",M32,IF('List č. 06'!$B$13=\"jednotka\",M45,IF('List č. 06'!$B$13=\"jiné\",M71,IF('List č. 06'!$B$13=\"právo stavby\",M58,\"\"))))))","v":""},"lesní pozemek",null,null,null,null,null,null,null,null,null,2,"Obch. pod.",null,2034,"1.1.2034—31.12.2034"]
[null,null,null,null,null,null,null,null,null,null,null,{"$f":"IF('List č. 06'!$B$13=\"vyberte druh nemovité věci\",\"\",IF('List č. 06'!$B$13=\"pozemek\",M20,IF('List č. 06'!$B$13=\"stavba\",M33,IF('List č. 06'!$B$13=\"jednotka\",M46,IF('List č. 06'!$B$13=\"jiné\",M72,IF('List č. 06'!$B$13=\"právo stavby\",M59,\"\"))))))","v":""},"orná půda",null,null,null,null,null,null,null,null,null,2,"movitosti",null,2035,"1.1.2035—31.12.2035"]
[null,null,null,null,null,null,null,null,null,null,null,{"$f":"IF('List č. 06'!$B$13=\"vyberte druh nemovité věci\",\"\",IF('List č. 06'!$B$13=\"pozemek\",M21,IF('List č. 06'!$B$13=\"stavba\",M34,IF('List č. 06'!$B$13=\"jednotka\",M47,IF('List č. 06'!$B$13=\"jiné\",M73,IF('List č. 06'!$B$13=\"právo stavby\",M60,\"\"))))))","v":""},"ostatní plocha",null,null,null,null,null,null,null,null,null,2,"movit - list",null,2036,"1.1.2036—31.12.2036"]
[null,null,null,null,null,null,null,null,null,null,null,{"$f":"IF('List č. 06'!$B$13=\"vyberte druh nemovité věci\",\"\",IF('List č. 06'!$B$13=\"pozemek\",M22,IF('List č. 06'!$B$13=\"stavba\",M35,IF('List č. 06'!$B$13=\"jednotka\",M48,IF('List č. 06'!$B$13=\"jiné\",M74,IF('List č. 06'!$B$13=\"právo stavby\",M61,\"\"))))))","v":""},"ovocný sad",null,null,null,null,null,null,null,null,null,2,"příjmy",null,2037,"1.1.2037—31.12.2037"]
[null,null,null,null,null,null,null,null,null,null,null,{"$f":"IF('List č. 06'!$B$13=\"vyberte druh nemovité věci\",\"\",IF('List č. 06'!$B$13=\"pozemek\",M23,IF('List č. 06'!$B$13=\"stavba\",M36,IF('List č. 06'!$B$13=\"jednotka\",M49,IF('List č. 06'!$B$13=\"jiné\",M75,IF('List č. 06'!$B$13=\"právo stavby\",M62,\"\"))))))","v":""},"trvalý travní porost",null,null,null,null,null,null,null,null,null,2,"příjmy - listy",null,2038,"1.1.2038—31.12.2038"]
[null,null,null,null,null,null,null,null,null,null,null,{"$f":"IF('List č. 06'!$B$13=\"vyberte druh nemovité věci\",\"\",IF('List č. 06'!$B$13=\"pozemek\",M24,IF('List č. 06'!$B$13=\"stavba\",M37,IF('List č. 06'!$B$13=\"jednotka\",M50,IF('List č. 06'!$B$13=\"jiné\",M76,IF('List č. 06'!$B$13=\"právo stavby\",M63,\"\"))))))","v":""},"vinice",null,null,null,null,null,null,null,null,null,2,"závazky",null,2039,"1.1.2039—31.12.2039"]
[null,null,null,null,null,null,null,null,null,null,null,{"$f":"IF('List č. 06'!$B$13=\"vyberte druh nemovité věci\",\"\",IF('List č. 06'!$B$13=\"pozemek\",M25,IF('List č. 06'!$B$13=\"stavba\",M38,IF('List č. 06'!$B$13=\"jednotka\",M51,IF('List č. 06'!$B$13=\"jiné\",M77,IF('List č. 06'!$B$13=\"právo stavby\",M64,\"\"))))))","v":""},"vodní plocha",null,null,null,null,null,null,null,null,null,2,"závazky - listy"]
[null,null,null,null,null,null,null,null,null,null,null,{"$f":"IF('List č. 06'!$B$13=\"vyberte druh nemovité věci\",\"\",IF('List č. 06'!$B$13=\"pozemek\",M26,IF('List č. 06'!$B$13=\"stavba\",M39,IF('List č. 06'!$B$13=\"jednotka\",M52,IF('List č. 06'!$B$13=\"jiné\",M78,IF('List č. 06'!$B$13=\"právo stavby\",M65,\"\"))))))","v":""},"zahrada"]
[null,null,null,null,null,null,null,null,null,null,null,"3 nemovitost","zastavěná plocha a nádvoří"]
[null,null,null,null,null,null,null,null,null,null,null,{"$f":"IF('List č. 06'!$B$24=\"vyberte druh nemovité věci\",\"Vyberte specifikaci druhu\",IF('List č. 06'!$B$24=\"pozemek\",M16,IF('List č. 06'!$B$24=\"stavba\",M29,IF('List č. 06'!$B$24=\"jednotka\",M42,IF('List č. 06'!$B$24=\"jiné\",M68,IF('List č. 06'!$B$24=\"právo stavby\",M55,\"\"))))))","v":"Vyberte specifikaci druhu"}," "]
[null,null,null,null,null,null,null,null,null,null,null,{"$f":"IF('List č. 06'!$B$24=\"vyberte druh nemovité věci\",\"Nezvolili jste druh nemovité věci\",IF('List č. 06'!$B$24=\"pozemek\",M17,IF('List č. 06'!$B$24=\"stavba\",M30,IF('List č. 06'!$B$24=\"jednotka\",M43,IF('List č. 06'!$B$24=\"jiné\",M69,IF('List č. 06'!$B$24=\"právo stavby\",M56,\"\"))))))","v":"Nezvolili jste druh nemovité věci"},"stavba"]
[null,null,null,null,null,null,null,null,null,null,null,{"$f":"IF('List č. 06'!$B$24=\"vyberte druh nemovité věci\",\"\",IF('List č. 06'!$B$24=\"pozemek\",M18,IF('List č. 06'!$B$24=\"stavba\",M31,IF('List č. 06'!$B$24=\"jednotka\",M44,IF('List č. 06'!$B$24=\"jiné\",M70,IF('List č. 06'!$B$24=\"právo stavby\",M57,\"\"))))))","v":""},"Vyberte specifikaci druhu"]
[null,null,null,null,null,null,null,null,null,null,null,{"$f":"IF('List č. 06'!$B$24=\"vyberte druh nemovité věci\",\"\",IF('List č. 06'!$B$24=\"pozemek\",M19,IF('List č. 06'!$B$24=\"stavba\",M32,IF('List č. 06'!$B$24=\"jednotka\",M45,IF('List č. 06'!$B$24=\"jiné\",M71,IF('List č. 06'!$B$24=\"právo stavby\",M58,\"\"))))))","v":""},"budova bez č. p./č. e."]
[null,null,null,null,null,null,null,null,null,null,null,{"$f":"IF('List č. 06'!$B$24=\"vyberte druh nemovité věci\",\"\",IF('List č. 06'!$B$24=\"pozemek\",M20,IF('List č. 06'!$B$24=\"stavba\",M33,IF('List č. 06'!$B$24=\"jednotka\",M46,IF('List č. 06'!$B$24=\"jiné\",M72,IF('List č. 06'!$B$24=\"právo stavby\",M59,\"\"))))))","v":""},"budova s č. p."]
[null,null,null,null,null,null,null,null,null,null,null,{"$f":"IF('List č. 06'!$B$24=\"vyberte druh nemovité věci\",\"\",IF('List č. 06'!$B$24=\"pozemek\",M21,IF('List č. 06'!$B$24=\"stavba\",M34,IF('List č. 06'!$B$24=\"jednotka\",M47,IF('List č. 06'!$B$24=\"jiné\",M73,IF('List č. 06'!$B$24=\"právo stavby\",M60,\"\"))))))","v":""},"budova s č. e. "]
[null,null,null,null,null,null,null,null,null,null,null,{"$f":"IF('List č. 06'!$B$24=\"vyberte druh nemovité věci\",\"\",IF('List č. 06'!$B$24=\"pozemek\",M22,IF('List č. 06'!$B$24=\"stavba\",M35,IF('List č. 06'!$B$24=\"jednotka\",M48,IF('List č. 06'!$B$24=\"jiné\",M74,IF('List č. 06'!$B$24=\"právo stavby\",M61,\"\"))))))","v":""},"budova s rozestavěnými jednotkami"]
[null,null,null,null,null,null,null,null,null,null,null,{"$f":"IF('List č. 06'!$B$24=\"vyberte druh nemovité věci\",\"\",IF('List č. 06'!$B$24=\"pozemek\",M23,IF('List č. 06'!$B$24=\"stavba\",M36,IF('List č. 06'!$B$24=\"jednotka\",M49,IF('List č. 06'!$B$24=\"jiné\",M75,IF('List č. 06'!$B$24=\"právo stavby\",M62,\"\"))))))","v":""},"rozestavěná budova"]
[null,null,null,null,null,null,null,null,null,null,null,{"$f":"IF('List č. 06'!$B$24=\"vyberte druh nemovité věci\",\"\",IF('List č. 06'!$B$24=\"pozemek\",M24,IF('List č. 06'!$B$24=\"stavba\",M37,IF('List č. 06'!$B$24=\"jednotka\",M50,IF('List č. 06'!$B$24=\"jiné\",M76,IF('List č. 06'!$B$24=\"právo stavby\",M63,\"\"))))))","v":""},"vodní dílo"]
[null,null,null,null,null,null,null,null,null,null,null,{"$f":"IF('List č. 06'!$B$24=\"vyberte druh nemovité věci\",\"\",IF('List č. 06'!$B$24=\"pozemek\",M25,IF('List č. 06'!$B$24=\"stavba\",M38,IF('List č. 06'!$B$24=\"jednotka\",M51,IF('List č. 06'!$B$24=\"jiné\",M77,IF('List č. 06'!$B$24=\"právo stavby\",M64,\"\"))))))","v":""}," "]
[null,null,null,null,null,null,null,null,null,null,null,{"$f":"IF('List č. 06'!$B$24=\"vyberte druh nemovité věci\",\"\",IF('List č. 06'!$B$24=\"pozemek\",M26,IF('List č. 06'!$B$24=\"stavba\",M39,IF('List č. 06'!$B$24=\"jednotka\",M52,IF('List č. 06'!$B$24=\"jiné\",M78,IF('List č. 06'!$B$24=\"právo stavby\",M65,\"\"))))))","v":""}," "]
[null,null,null,null,null,null,null,null,null,null,null,"4 nemovitost"," "]
[null,null,null,null,null,null,null,null,null,null,null,{"$f":"IF('List č. 06'!$B$35=\"vyberte druh nemovité věci\",\"Vyberte specifikaci druhu\",IF('List č. 06'!$B$35=\"pozemek\",M16,IF('List č. 06'!$B$35=\"stavba\",M29,IF('List č. 06'!$B$35=\"jednotka\",M42,IF('List č. 06'!$B$35=\"jiné\",M68,IF('List č. 06'!$B$35=\"právo stavby\",M55,\"\"))))))","v":"Vyberte specifikaci druhu"}," "]
[null,null,null,null,null,null,null,null,null,null,null,{"$f":"IF('List č. 06'!$B$35=\"vyberte druh nemovité věci\",\"Nezvolili jste druh nemovité věci\",IF('List č. 06'!$B$35=\"pozemek\",M17,IF('List č. 06'!$B$35=\"stavba\",M30,IF('List č. 06'!$B$35=\"jednotka\",M43,IF('List č. 06'!$B$35=\"jiné\",M69,IF('List č. 06'!$B$35=\"právo stavby\",M56,\"\"))))))","v":"Nezvolili jste druh nemovité věci"}]
[null,null,null,null,null,null,null,null,null,null,null,{"$f":"IF('List č. 06'!$B$35=\"vyberte druh nemovité věci\",\"\",IF('List č. 06'!$B$35=\"pozemek\",M18,IF('List č. 06'!$B$35=\"stavba\",M31,IF('List č. 06'!$B$35=\"jednotka\",M44,IF('List č. 06'!$B$35=\"jiné\",M70,IF('List č. 06'!$B$35=\"právo stavby\",M57,\"\"))))))","v":""},"jednotka"]
[null,null,null,null,null,null,null,null,null,null,null,{"$f":"IF('List č. 06'!$B$35=\"vyberte druh nemovité věci\",\"\",IF('List č. 06'!$B$35=\"pozemek\",M19,IF('List č. 06'!$B$35=\"stavba\",M32,IF('List č. 06'!$B$35=\"jednotka\",M45,IF('List č. 06'!$B$35=\"jiné\",M71,IF('List č. 06'!$B$35=\"právo stavby\",M58,\"\"))))))","v":""},"Vyberte specifikaci druhu"]
[null,null,null,null,null,null,null,null,null,null,null,{"$f":"IF('List č. 06'!$B$35=\"vyberte druh nemovité věci\",\"\",IF('List č. 06'!$B$35=\"pozemek\",M20,IF('List č. 06'!$B$35=\"stavba\",M33,IF('List č. 06'!$B$35=\"jednotka\",M46,IF('List č. 06'!$B$35=\"jiné\",M72,IF('List č. 06'!$B$35=\"právo stavby\",M59,\"\"))))))","v":""},"ateliér"]
[null,null,null,null,null,null,null,null,null,null,null,{"$f":"IF('List č. 06'!$B$35=\"vyberte druh nemovité věci\",\"\",IF('List č. 06'!$B$35=\"pozemek\",M21,IF('List č. 06'!$B$35=\"stavba\",M34,IF('List č. 06'!$B$35=\"jednotka\",M47,IF('List č. 06'!$B$35=\"jiné\",M73,IF('List č. 06'!$B$35=\"právo stavby\",M60,\"\"))))))","v":""},"byt"]
[null,null,null,null,null,null,null,null,null,null,null,{"$f":"IF('List č. 06'!$B$35=\"vyberte druh nemovité věci\",\"\",IF('List č. 06'!$B$35=\"pozemek\",M22,IF('List č. 06'!$B$35=\"stavba\",M35,IF('List č. 06'!$B$35=\"jednotka\",M48,IF('List č. 06'!$B$35=\"jiné\",M74,IF('List č. 06'!$B$35=\"právo stavby\",M61,\"\"))))))","v":""},"dílna nebo provozovna"]
[null,null,null,null,null,null,null,null,null,null,null,{"$f":"IF('List č. 06'!$B$35=\"vyberte druh nemovité věci\",\"\",IF('List č. 06'!$B$35=\"pozemek\",M23,IF('List č. 06'!$B$35=\"stavba\",M36,IF('List č. 06'!$B$35=\"jednotka\",M49,IF('List č. 06'!$B$35=\"jiné\",M75,IF('List č. 06'!$B$35=\"právo stavby\",M62,\"\"))))))","v":""},"garáž"]
[null,null,null,null,null,null,null,null,null,null,null,{"$f":"IF('List č. 06'!$B$35=\"vyberte druh nemovité věci\",\"\",IF('List č. 06'!$B$35=\"pozemek\",M24,IF('List č. 06'!$B$35=\"stavba\",M37,IF('List č. 06'!$B$35=\"jednotka\",M50,IF('List č. 06'!$B$35=\"jiné\",M76,IF('List č. 06'!$B$35=\"právo stavby\",M63,\"\"))))))","v":""},"jiný nebytový prostor"]
[null,null,null,null,null,null,null,null,null,null,null,{"$f":"IF('List č. 06'!$B$35=\"vyberte druh nemovité věci\",\"\",IF('List č. 06'!$B$35=\"pozemek\",M25,IF('List č. 06'!$B$35=\"stavba\",M38,IF('List č. 06'!$B$35=\"jednotka\",M51,IF('List č. 06'!$B$35=\"jiné\",M77,IF('List č. 06'!$B$35=\"právo stavby\",M64,\"\"))))))","v":""},"rozestavěná jednotka"]
[null,null,null,null,null,null,null,null,null,null,null,{"$f":"IF('List č. 06'!$B$35=\"vyberte druh nemovité věci\",\"\",IF('List č. 06'!$B$35=\"pozemek\",M26,IF('List č. 06'!$B$35=\"stavba\",M39,IF('List č. 06'!$B$35=\"jednotka\",M52,IF('List č. 06'!$B$35=\"jiné\",M78,IF('List č. 06'!$B$35=\"právo stavby\",M65,\"\"))))))","v":""},"skupina bytů"]
[null,null,null,null,null,null,null,null,null,null,null,"5 nemovitost","skupina bytů a nebytových prostorů"]
[null,null,null,null,null,null,null,null,null,null,null,{"$f":"IF('List č. 06'!$B$46=\"vyberte druh nemovité věci\",\"Vyberte specifikaci druhu\",IF('List č. 06'!$B$46=\"pozemek\",M16,IF('List č. 06'!$B$46=\"stavba\",M29,IF('List č. 06'!$B$46=\"jednotka\",M42,IF('List č. 06'!$B$46=\"jiné\",M68,IF('List č. 06'!$B$46=\"právo stavby\",M55,\"\"))))))","v":"Vyberte specifikaci druhu"},"skupina nebytových prostorů"]
[null,null,null,null,null,null,null,null,null,null,null,{"$f":"IF('List č. 06'!$B$46=\"vyberte druh nemovité věci\",\"Nezvolili jste druh nemovité věci\",IF('List č. 06'!$B$46=\"pozemek\",M17,IF('List č. 06'!$B$46=\"stavba\",M30,IF('List č. 06'!$B$46=\"jednotka\",M43,IF('List č. 06'!$B$46=\"jiné\",M69,IF('List č. 06'!$B$46=\"právo stavby\",M56,\"\"))))))","v":"Nezvolili jste druh nemovité věci"}," "]
[null,null,null,null,null,null,null,null,null,null,null,{"$f":"IF('List č. 06'!$B$46=\"vyberte druh nemovité věci\",\"\",IF('List č. 06'!$B$46=\"pozemek\",M18,IF('List č. 06'!$B$46=\"stavba\",M31,IF('List č. 06'!$B$46=\"jednotka\",M44,IF('List č. 06'!$B$46=\"jiné\",M70,IF('List č. 06'!$B$46=\"právo stavby\",M57,\"\"))))))","v":""}," "]
[null,null,null,null,null,null,null,null,null,null,null,{"$f":"IF('List č. 06'!$B$46=\"vyberte druh nemovité věci\",\"\",IF('List č. 06'!$B$46=\"pozemek\",M19,IF('List č. 06'!$B$46=\"stavba\",M32,IF('List č. 06'!$B$46=\"jednotka\",M45,IF('List č. 06'!$B$46=\"jiné\",M71,IF('List č. 06'!$B$46=\"právo stavby\",M58,\"\"))))))","v":""},"právo stavby"]
[null,null,null,null,null,null,null,null,null,null,null,{"$f":"IF('List č. 06'!$B$46=\"vyberte druh nemovité věci\",\"\",IF('List č. 06'!$B$46=\"pozemek\",M20,IF('List č. 06'!$B$46=\"stavba\",M33,IF('List č. 06'!$B$46=\"jednotka\",M46,IF('List č. 06'!$B$46=\"jiné\",M72,IF('List č. 06'!$B$46=\"právo stavby\",M59,\"\"))))))","v":""},"Vyberte specifikaci druhu"]
[null,null,null,null,null,null,null,null,null,null,null,{"$f":"IF('List č. 06'!$B$46=\"vyberte druh nemovité věci\",\"\",IF('List č. 06'!$B$46=\"pozemek\",M21,IF('List č. 06'!$B$46=\"stavba\",M34,IF('List č. 06'!$B$46=\"jednotka\",M47,IF('List č. 06'!$B$46=\"jiné\",M73,IF('List č. 06'!$B$46=\"právo stavby\",M60,\"\"))))))","v":""},"Položka není povinná."]
[null,null,null,null,null,null,null,null,null,null,null,{"$f":"IF('List č. 06'!$B$46=\"vyberte druh nemovité věci\",\"\",IF('List č. 06'!$B$46=\"pozemek\",M22,IF('List č. 06'!$B$46=\"stavba\",M35,IF('List č. 06'!$B$46=\"jednotka\",M48,IF('List č. 06'!$B$46=\"jiné\",M74,IF('List č. 06'!$B$46=\"právo stavby\",M61,\"\"))))))","v":""}," "]
[null,null,null,null,null,null,null,null,null,null,null,{"$f":"IF('List č. 06'!$B$46=\"vyberte druh nemovité věci\",\"\",IF('List č. 06'!$B$46=\"pozemek\",M23,IF('List č. 06'!$B$46=\"stavba\",M36,IF('List č. 06'!$B$46=\"jednotka\",M49,IF('List č. 06'!$B$46=\"jiné\",M75,IF('List č. 06'!$B$46=\"právo stavby\",M62,\"\"))))))","v":""}," "]
[null,null,null,null,null,null,null,null,null,null,null,{"$f":"IF('List č. 06'!$B$46=\"vyberte druh nemovité věci\",\"\",IF('List č. 06'!$B$46=\"pozemek\",M24,IF('List č. 06'!$B$46=\"stavba\",M37,IF('List č. 06'!$B$46=\"jednotka\",M50,IF('List č. 06'!$B$46=\"jiné\",M76,IF('List č. 06'!$B$46=\"právo stavby\",M63,\"\"))))))","v":""}," "]
[null,null,null,null,null,null,null,null,null,null,null,{"$f":"IF('List č. 06'!$B$46=\"vyberte druh nemovité věci\",\"\",IF('List č. 06'!$B$46=\"pozemek\",M25,IF('List č. 06'!$B$46=\"stavba\",M38,IF('List č. 06'!$B$46=\"jednotka\",M51,IF('List č. 06'!$B$46=\"jiné\",M77,IF('List č. 06'!$B$46=\"právo stavby\",M64,\"\"))))))","v":""}," "]
[null,null,null,null,null,null,null,null,null,null,null,{"$f":"IF('List č. 06'!$B$46=\"vyberte druh nemovité věci\",\"\",IF('List č. 06'!$B$46=\"pozemek\",M26,IF('List č. 06'!$B$46=\"stavba\",M39,IF('List č. 06'!$B$46=\"jednotka\",M52,IF('List č. 06'!$B$46=\"jiné\",M78,IF('List č. 06'!$B$46=\"právo stavby\",M65,\"\"))))))","v":""}," "]
[null,null,null,null,null,null,null,null,null,null,null,"6 nemovitost"," "]
[null,null,null,null,null,null,null,null,null,null,null,{"$f":"IF('List č. 06'!$B$57=\"vyberte druh nemovité věci\",\"Vyberte specifikaci druhu\",IF('List č. 06'!$B$57=\"pozemek\",M16,IF('List č. 06'!$B$57=\"stavba\",M29,IF('List č. 06'!$B$57=\"jednotka\",M42,IF('List č. 06'!$B$57=\"jiné\",M68,IF('List č. 06'!$B$57=\"právo stavby\",M55,\"\"))))))","v":"Vyberte specifikaci druhu"}," "]
[null,null,null,null,null,null,null,null,null,null,null,{"$f":"IF('List č. 06'!$B$57=\"vyberte druh nemovité věci\",\"Nezvolili jste druh nemovité věci\",IF('List č. 06'!$B$57=\"pozemek\",M17,IF('List č. 06'!$B$57=\"stavba\",M30,IF('List č. 06'!$B$57=\"jednotka\",M43,IF('List č. 06'!$B$57=\"jiné\",M69,IF('List č. 06'!$B$57=\"právo stavby\",M56,\"\"))))))","v":"Nezvolili jste druh nemovité věci"}," "]
[null,null,null,null,null,null,null,null,null,null,null,{"$f":"IF('List č. 06'!$B$57=\"vyberte druh nemovité věci\",\"\",IF('List č. 06'!$B$57=\"pozemek\",M18,IF('List č. 06'!$B$57=\"stavba\",M31,IF('List č. 06'!$B$57=\"jednotka\",M44,IF('List č. 06'!$B$57=\"jiné\",M70,IF('List č. 06'!$B$57=\"právo stavby\",M57,\"\"))))))","v":""}," "]
[null,null,null,null,null,null,null,null,null,null,null,{"$f":"IF('List č. 06'!$B$57=\"vyberte druh nemovité věci\",\"\",IF('List č. 06'!$B$57=\"pozemek\",M19,IF('List č. 06'!$B$57=\"stavba\",M32,IF('List č. 06'!$B$57=\"jednotka\",M45,IF('List č. 06'!$B$57=\"jiné\",M71,IF('List č. 06'!$B$57=\"právo stavby\",M58,\"\"))))))","v":""}]
[null,null,null,null,null,null,null,null,null,null,null,{"$f":"IF('List č. 06'!$B$57=\"vyberte druh nemovité věci\",\"\",IF('List č. 06'!$B$57=\"pozemek\",M20,IF('List č. 06'!$B$57=\"stavba\",M33,IF('List č. 06'!$B$57=\"jednotka\",M46,IF('List č. 06'!$B$57=\"jiné\",M72,IF('List č. 06'!$B$57=\"právo stavby\",M59,\"\"))))))","v":""},"jiný"]
[null,null,null,null,null,null,null,null,null,null,null,{"$f":"IF('List č. 06'!$B$57=\"vyberte druh nemovité věci\",\"\",IF('List č. 06'!$B$57=\"pozemek\",M21,IF('List č. 06'!$B$57=\"stavba\",M34,IF('List č. 06'!$B$57=\"jednotka\",M47,IF('List č. 06'!$B$57=\"jiné\",M73,IF('List č. 06'!$B$57=\"právo stavby\",M60,\"\"))))))","v":""},"Vyberte specifikaci druhu"]
[null,null,null,null,null,null,null,null,null,null,null,{"$f":"IF('List č. 06'!$B$57=\"vyberte druh nemovité věci\",\"\",IF('List č. 06'!$B$57=\"pozemek\",M22,IF('List č. 06'!$B$57=\"stavba\",M35,IF('List č. 06'!$B$57=\"jednotka\",M48,IF('List č. 06'!$B$57=\"jiné\",M74,IF('List č. 06'!$B$57=\"právo stavby\",M61,\"\"))))))","v":""},"Položka není povinná."]
[null,null,null,null,null,null,null,null,null,null,null,{"$f":"IF('List č. 06'!$B$57=\"vyberte druh nemovité věci\",\"\",IF('List č. 06'!$B$57=\"pozemek\",M23,IF('List č. 06'!$B$57=\"stavba\",M36,IF('List č. 06'!$B$57=\"jednotka\",M49,IF('List č. 06'!$B$57=\"jiné\",M75,IF('List č. 06'!$B$57=\"právo stavby\",M62,\"\"))))))","v":""}," "]
[null,null,null,null,null,null,null,null,null,null,null,{"$f":"IF('List č. 06'!$B$57=\"vyberte druh nemovité věci\",\"\",IF('List č. 06'!$B$57=\"pozemek\",M24,IF('List č. 06'!$B$57=\"stavba\",M37,IF('List č. 06'!$B$57=\"jednotka\",M50,IF('List č. 06'!$B$57=\"jiné\",M76,IF('List č. 06'!$B$57=\"právo stavby\",M63,\"\"))))))","v":""}," "]
[null,null,null,null,null,null,null,null,null,null,null,{"$f":"IF('List č. 06'!$B$57=\"vyberte druh nemovité věci\",\"\",IF('List č. 06'!$B$57=\"pozemek\",M25,IF('List č. 06'!$B$57=\"stavba\",M38,IF('List č. 06'!$B$57=\"jednotka\",M51,IF('List č. 06'!$B$57=\"jiné\",M77,IF('List č. 06'!$B$57=\"právo stavby\",M64,\"\"))))))","v":""}," "]
[null,null,null,null,null,null,null,null,null,null,null,{"$f":"IF('List č. 06'!$B$57=\"vyberte druh nemovité věci\",\"\",IF('List č. 06'!$B$57=\"pozemek\",M26,IF('List č. 06'!$B$57=\"stavba\",M39,IF('List č. 06'!$B$57=\"jednotka\",M52,IF('List č. 06'!$B$57=\"jiné\",M78,IF('List č. 06'!$B$57=\"právo stavby\",M65,\"\"))))))","v":""}," "]
[null,null,null,null,null,null,null,null,null,null,null,"7 nemovitost"," "]
[null,null,null,null,null,null,null,null,null,null,null,{"$f":"IF('List č. 06'!$B$68=\"vyberte druh nemovité věci\",\"Vyberte specifikaci druhu\",IF('List č. 06'!$B$68=\"pozemek\",M16,IF('List č. 06'!$B$68=\"stavba\",M29,IF('List č. 06'!$B$68=\"jednotka\",M42,IF('List č. 06'!$B$68=\"jiné\",M68,IF('List č. 06'!$B$68=\"právo stavby\",M55,\"\"))))))","v":"Vyberte specifikaci druhu"}," "]
[null,null,null,null,null,null,null,null,null,null,null,{"$f":"IF('List č. 06'!$B$68=\"vyberte druh nemovité věci\",\"Nezvolili jste druh nemovité věci\",IF('List č. 06'!$B$68=\"pozemek\",M17,IF('List č. 06'!$B$68=\"stavba\",M30,IF('List č. 06'!$B$68=\"jednotka\",M43,IF('List č. 06'!$B$68=\"jiné\",M69,IF('List č. 06'!$B$68=\"právo stavby\",M56,\"\"))))))","v":"Nezvolili jste druh nemovité věci"}," "]
[null,null,null,null,null,null,null,null,null,null,null,{"$f":"IF('List č. 06'!$B$68=\"vyberte druh nemovité věci\",\"\",IF('List č. 06'!$B$68=\"pozemek\",M18,IF('List č. 06'!$B$68=\"stavba\",M31,IF('List č. 06'!$B$68=\"jednotka\",M44,IF('List č. 06'!$B$68=\"jiné\",M70,IF('List č. 06'!$B$68=\"právo stavby\",M57,\"\"))))))","v":""}," "]
[null,null,null,null,null,null,null,null,null,null,null,{"$f":"IF('List č. 06'!$B$68=\"vyberte druh nemovité věci\",\"\",IF('List č. 06'!$B$68=\"pozemek\",M19,IF('List č. 06'!$B$68=\"stavba\",M32,IF('List č. 06'!$B$68=\"jednotka\",M45,IF('List č. 06'!$B$68=\"jiné\",M71,IF('List č. 06'!$B$68=\"právo stavby\",M58,\"\"))))))","v":""},"  "]
[null,null,null,null,null,null,null,null,null,null,null,{"$f":"IF('List č. 06'!$B$68=\"vyberte druh nemovité věci\",\"\",IF('List č. 06'!$B$68=\"pozemek\",M20,IF('List č. 06'!$B$68=\"stavba\",M33,IF('List č. 06'!$B$68=\"jednotka\",M46,IF('List č. 06'!$B$68=\"jiné\",M72,IF('List č. 06'!$B$68=\"právo stavby\",M59,\"\"))))))","v":""}]
[null,null,null,null,null,null,null,null,null,null,null,{"$f":"IF('List č. 06'!$B$68=\"vyberte druh nemovité věci\",\"\",IF('List č. 06'!$B$68=\"pozemek\",M21,IF('List č. 06'!$B$68=\"stavba\",M34,IF('List č. 06'!$B$68=\"jednotka\",M47,IF('List č. 06'!$B$68=\"jiné\",M73,IF('List č. 06'!$B$68=\"právo stavby\",M60,\"\"))))))","v":""}]
[null,null,null,null,null,null,null,null,null,null,null,{"$f":"IF('List č. 06'!$B$68=\"vyberte druh nemovité věci\",\"\",IF('List č. 06'!$B$68=\"pozemek\",M22,IF('List č. 06'!$B$68=\"stavba\",M35,IF('List č. 06'!$B$68=\"jednotka\",M48,IF('List č. 06'!$B$68=\"jiné\",M74,IF('List č. 06'!$B$68=\"právo stavby\",M61,\"\"))))))","v":""}]
[null,null,null,null,null,null,null,null,null,null,null,{"$f":"IF('List č. 06'!$B$68=\"vyberte druh nemovité věci\",\"\",IF('List č. 06'!$B$68=\"pozemek\",M23,IF('List č. 06'!$B$68=\"stavba\",M36,IF('List č. 06'!$B$68=\"jednotka\",M49,IF('List č. 06'!$B$68=\"jiné\",M75,IF('List č. 06'!$B$68=\"právo stavby\",M62,\"\"))))))","v":""}]
[null,null,null,null,null,null,null,null,null,null,null,{"$f":"IF('List č. 06'!$B$68=\"vyberte druh nemovité věci\",\"\",IF('List č. 06'!$B$68=\"pozemek\",M24,IF('List č. 06'!$B$68=\"stavba\",M37,IF('List č. 06'!$B$68=\"jednotka\",M50,IF('List č. 06'!$B$68=\"jiné\",M76,IF('List č. 06'!$B$68=\"právo stavby\",M63,\"\"))))))","v":""}]
[null,null,null,null,null,null,null,null,null,null,null,{"$f":"IF('List č. 06'!$B$68=\"vyberte druh nemovité věci\",\"\",IF('List č. 06'!$B$68=\"pozemek\",M25,IF('List č. 06'!$B$68=\"stavba\",M38,IF('List č. 06'!$B$68=\"jednotka\",M51,IF('List č. 06'!$B$68=\"jiné\",M77,IF('List č. 06'!$B$68=\"právo stavby\",M64,\"\"))))))","v":""}]
[null,null,null,null,null,null,null,null,null,null,null,{"$f":"IF('List č. 06'!$B$68=\"vyberte druh nemovité věci\",\"\",IF('List č. 06'!$B$68=\"pozemek\",M26,IF('List č. 06'!$B$68=\"stavba\",M39,IF('List č. 06'!$B$68=\"jednotka\",M52,IF('List č. 06'!$B$68=\"jiné\",M78,IF('List č. 06'!$B$68=\"právo stavby\",M65,\"\"))))))","v":""}]
[null,null,null,null,null,null,null,null,null,null,null,"8 nemovitost"]
[null,null,null,null,null,null,null,null,null,null,null,{"$f":"IF('List č. 06'!$B$84=\"vyberte druh nemovité věci\",\"Vyberte specifikaci druhu\",IF('List č. 06'!$B$84=\"pozemek\",M16,IF('List č. 06'!$B$84=\"stavba\",M29,IF('List č. 06'!$B$84=\"jednotka\",M42,IF('List č. 06'!$B$84=\"jiné\",M68,IF('List č. 06'!$B$84=\"právo stavby\",M55,\"\"))))))","v":"Vyberte specifikaci druhu"}]
[null,null,null,null,null,null,null,null,null,null,null,{"$f":"IF('List č. 06'!$B$84=\"vyberte druh nemovité věci\",\"Nezvolili jste druh nemovité věci\",IF('List č. 06'!$B$84=\"pozemek\",M17,IF('List č. 06'!$B$84=\"stavba\",M30,IF('List č. 06'!$B$84=\"jednotka\",M43,IF('List č. 06'!$B$84=\"jiné\",M69,IF('List č. 06'!$B$84=\"právo stavby\",M56,\"\"))))))","v":"Nezvolili jste druh nemovité věci"}]
[null,null,null,null,null,null,null,null,null,null,null,{"$f":"IF('List č. 06'!$B$84=\"vyberte druh nemovité věci\",\"\",IF('List č. 06'!$B$84=\"pozemek\",M18,IF('List č. 06'!$B$84=\"stavba\",M31,IF('List č. 06'!$B$84=\"jednotka\",M44,IF('List č. 06'!$B$84=\"jiné\",M70,IF('List č. 06'!$B$84=\"právo stavby\",M57,\"\"))))))","v":""}]
[null,null,null,null,null,null,null,null,null,null,null,{"$f":"IF('List č. 06'!$B$84=\"vyberte druh nemovité věci\",\"\",IF('List č. 06'!$B$84=\"pozemek\",M19,IF('List č. 06'!$B$84=\"stavba\",M32,IF('List č. 06'!$B$84=\"jednotka\",M45,IF('List č. 06'!$B$84=\"jiné\",M71,IF('List č. 06'!$B$84=\"právo stavby\",M58,\"\"))))))","v":""}]
[null,null,null,null,null,null,null,null,null,null,null,{"$f":"IF('List č. 06'!$B$84=\"vyberte druh nemovité věci\",\"\",IF('List č. 06'!$B$84=\"pozemek\",M20,IF('List č. 06'!$B$84=\"stavba\",M33,IF('List č. 06'!$B$84=\"jednotka\",M46,IF('List č. 06'!$B$84=\"jiné\",M72,IF('List č. 06'!$B$84=\"právo stavby\",M59,\"\"))))))","v":""}]
[null,null,null,null,null,null,null,null,null,null,null,{"$f":"IF('List č. 06'!$B$84=\"vyberte druh nemovité věci\",\"\",IF('List č. 06'!$B$84=\"pozemek\",M21,IF('List č. 06'!$B$84=\"stavba\",M34,IF('List č. 06'!$B$84=\"jednotka\",M47,IF('List č. 06'!$B$84=\"jiné\",M73,IF('List č. 06'!$B$84=\"právo stavby\",M60,\"\"))))))","v":""}]
[null,null,null,null,null,null,null,null,null,null,null,{"$f":"IF('List č. 06'!$B$84=\"vyberte druh nemovité věci\",\"\",IF('List č. 06'!$B$84=\"pozemek\",M22,IF('List č. 06'!$B$84=\"stavba\",M35,IF('List č. 06'!$B$84=\"jednotka\",M48,IF('List č. 06'!$B$84=\"jiné\",M74,IF('List č. 06'!$B$84=\"právo stavby\",M61,\"\"))))))","v":""}]
[null,null,null,null,null,null,null,null,null,null,null,{"$f":"IF('List č. 06'!$B$84=\"vyberte druh nemovité věci\",\"\",IF('List č. 06'!$B$84=\"pozemek\",M23,IF('List č. 06'!$B$84=\"stavba\",M36,IF('List č. 06'!$B$84=\"jednotka\",M49,IF('List č. 06'!$B$84=\"jiné\",M75,IF('List č. 06'!$B$84=\"právo stavby\",M62,\"\"))))))","v":""}]
[null,null,null,null,null,null,null,null,null,null,null,{"$f":"IF('List č. 06'!$B$84=\"vyberte druh nemovité věci\",\"\",IF('List č. 06'!$B$84=\"pozemek\",M24,IF('List č. 06'!$B$84=\"stavba\",M37,IF('List č. 06'!$B$84=\"jednotka\",M50,IF('List č. 06'!$B$84=\"jiné\",M76,IF('List č. 06'!$B$84=\"právo stavby\",M63,\"\"))))))","v":""}]
[null,null,null,null,null,null,null,null,null,null,null,{"$f":"IF('List č. 06'!$B$84=\"vyberte druh nemovité věci\",\"\",IF('List č. 06'!$B$84=\"pozemek\",M25,IF('List č. 06'!$B$84=\"stavba\",M38,IF('List č. 06'!$B$84=\"jednotka\",M51,IF('List č. 06'!$B$84=\"jiné\",M77,IF('List č. 06'!$B$84=\"právo stavby\",M64,\"\"))))))","v":""}]
[null,null,null,null,null,null,null,null,null,null,null,{"$f":"IF('List č. 06'!$B$84=\"vyberte druh nemovité věci\",\"\",IF('List č. 06'!$B$84=\"pozemek\",M26,IF('List č. 06'!$B$84=\"stavba\",M39,IF('List č. 06'!$B$84=\"jednotka\",M52,IF('List č. 06'!$B$84=\"jiné\",M78,IF('List č. 06'!$B$84=\"právo stavby\",M65,\"\"))))))","v":""}]
[null,null,null,null,null,null,null,null,null,null,null,"9 nemovitost"]
[null,null,null,null,null,null,null,null,null,null,null,{"$f":"IF('List č. 06'!$B$95=\"vyberte druh nemovité věci\",\"Vyberte specifikaci druhu\",IF('List č. 06'!$B$95=\"pozemek\",M16,IF('List č. 06'!$B$95=\"stavba\",M29,IF('List č. 06'!$B$95=\"jednotka\",M42,IF('List č. 06'!$B$95=\"jiné\",M68,IF('List č. 06'!$B$95=\"právo stavby\",M55,\"\"))))))","v":"Vyberte specifikaci druhu"}]
[null,null,null,null,null,null,null,null,null,null,null,{"$f":"IF('List č. 06'!$B$95=\"vyberte druh nemovité věci\",\"Nezvolili jste druh nemovité věci\",IF('List č. 06'!$B$95=\"pozemek\",M17,IF('List č. 06'!$B$95=\"stavba\",M30,IF('List č. 06'!$B$95=\"jednotka\",M43,IF('List č. 06'!$B$95=\"jiné\",M69,IF('List č. 06'!$B$95=\"právo stavby\",M56,\"\"))))))","v":"Nezvolili jste druh nemovité věci"}]
[null,null,null,null,null,null,null,null,null,null,null,{"$f":"IF('List č. 06'!$B$95=\"vyberte druh nemovité věci\",\"\",IF('List č. 06'!$B$95=\"pozemek\",M18,IF('List č. 06'!$B$95=\"stavba\",M31,IF('List č. 06'!$B$95=\"jednotka\",M44,IF('List č. 06'!$B$95=\"jiné\",M70,IF('List č. 06'!$B$95=\"právo stavby\",M57,\"\"))))))","v":""}]
[null,null,null,null,null,null,null,null,null,null,null,{"$f":"IF('List č. 06'!$B$95=\"vyberte druh nemovité věci\",\"\",IF('List č. 06'!$B$95=\"pozemek\",M19,IF('List č. 06'!$B$95=\"stavba\",M32,IF('List č. 06'!$B$95=\"jednotka\",M45,IF('List č. 06'!$B$95=\"jiné\",M71,IF('List č. 06'!$B$95=\"právo stavby\",M58,\"\"))))))","v":""}]
[null,null,null,null,null,null,null,null,null,null,null,{"$f":"IF('List č. 06'!$B$95=\"vyberte druh nemovité věci\",\"\",IF('List č. 06'!$B$95=\"pozemek\",M20,IF('List č. 06'!$B$95=\"stavba\",M33,IF('List č. 06'!$B$95=\"jednotka\",M46,IF('List č. 06'!$B$95=\"jiné\",M72,IF('List č. 06'!$B$95=\"právo stavby\",M59,\"\"))))))","v":""}]
[null,null,null,null,null,null,null,null,null,null,null,{"$f":"IF('List č. 06'!$B$95=\"vyberte druh nemovité věci\",\"\",IF('List č. 06'!$B$95=\"pozemek\",M21,IF('List č. 06'!$B$95=\"stavba\",M34,IF('List č. 06'!$B$95=\"jednotka\",M47,IF('List č. 06'!$B$95=\"jiné\",M73,IF('List č. 06'!$B$95=\"právo stavby\",M60,\"\"))))))","v":""}]
[null,null,null,null,null,null,null,null,null,null,null,{"$f":"IF('List č. 06'!$B$95=\"vyberte druh nemovité věci\",\"\",IF('List č. 06'!$B$95=\"pozemek\",M22,IF('List č. 06'!$B$95=\"stavba\",M35,IF('List č. 06'!$B$95=\"jednotka\",M48,IF('List č. 06'!$B$95=\"jiné\",M74,IF('List č. 06'!$B$95=\"právo stavby\",M61,\"\"))))))","v":""}]
[null,null,null,null,null,null,null,null,null,null,null,{"$f":"IF('List č. 06'!$B$95=\"vyberte druh nemovité věci\",\"\",IF('List č. 06'!$B$95=\"pozemek\",M23,IF('List č. 06'!$B$95=\"stavba\",M36,IF('List č. 06'!$B$95=\"jednotka\",M49,IF('List č. 06'!$B$95=\"jiné\",M75,IF('List č. 06'!$B$95=\"právo stavby\",M62,\"\"))))))","v":""}]
[null,null,null,null,null,null,null,null,null,null,null,{"$f":"IF('List č. 06'!$B$95=\"vyberte druh nemovité věci\",\"\",IF('List č. 06'!$B$95=\"pozemek\",M24,IF('List č. 06'!$B$95=\"stavba\",M37,IF('List č. 06'!$B$95=\"jednotka\",M50,IF('List č. 06'!$B$95=\"jiné\",M76,IF('List č. 06'!$B$95=\"právo stavby\",M63,\"\"))))))","v":""}]
[null,null,null,null,null,null,null,null,null,null,null,{"$f":"IF('List č. 06'!$B$95=\"vyberte druh nemovité věci\",\"\",IF('List č. 06'!$B$95=\"pozemek\",M25,IF('List č. 06'!$B$95=\"stavba\",M38,IF('List č. 06'!$B$95=\"jednotka\",M51,IF('List č. 06'!$B$95=\"jiné\",M77,IF('List č. 06'!$B$95=\"právo stavby\",M64,\"\"))))))","v":""}]
[null,null,null,null,null,null,null,null,null,null,null,{"$f":"IF('List č. 06'!$B$95=\"vyberte druh nemovité věci\",\"\",IF('List č. 06'!$B$95=\"pozemek\",M26,IF('List č. 06'!$B$95=\"stavba\",M39,IF('List č. 06'!$B$95=\"jednotka\",M52,IF('List č. 06'!$B$95=\"jiné\",M78,IF('List č. 06'!$B$95=\"právo stavby\",M65,\"\"))))))","v":""}]
[null,null,null,null,null,null,null,null,null,null,null,"10 nemovitost"]
[null,null,null,null,null,null,null,null,null,null,null,{"$f":"IF('List č. 06'!$B$106=\"vyberte druh nemovité věci\",\"Vyberte specifikaci druhu\",IF('List č. 06'!$B$106=\"pozemek\",M16,IF('List č. 06'!$B$106=\"stavba\",M29,IF('List č. 06'!$B$106=\"jednotka\",M42,IF('List č. 06'!$B$106=\"jiné\",M68,IF('List č. 06'!$B$106=\"právo stavby\",M55,\"\"))))))","v":"Vyberte specifikaci druhu"}]
[null,null,null,null,null,null,null,null,null,null,null,{"$f":"IF('List č. 06'!$B$106=\"vyberte druh nemovité věci\",\"Nezvolili jste druh nemovité věci\",IF('List č. 06'!$B$106=\"pozemek\",M17,IF('List č. 06'!$B$106=\"stavba\",M30,IF('List č. 06'!$B$106=\"jednotka\",M43,IF('List č. 06'!$B$106=\"jiné\",M69,IF('List č. 06'!$B$106=\"právo stavby\",M56,\"\"))))))","v":"Nezvolili jste druh nemovité věci"}]
[null,null,null,null,null,null,null,null,null,null,null,{"$f":"IF('List č. 06'!$B$106=\"vyberte druh nemovité věci\",\"\",IF('List č. 06'!$B$106=\"pozemek\",M18,IF('List č. 06'!$B$106=\"stavba\",M31,IF('List č. 06'!$B$106=\"jednotka\",M44,IF('List č. 06'!$B$106=\"jiné\",M70,IF('List č. 06'!$B$106=\"právo stavby\",M57,\"\"))))))","v":""}]
[null,null,null,null,null,null,null,null,null,null,null,{"$f":"IF('List č. 06'!$B$106=\"vyberte druh nemovité věci\",\"\",IF('List č. 06'!$B$106=\"pozemek\",M19,IF('List č. 06'!$B$106=\"stavba\",M32,IF('List č. 06'!$B$106=\"jednotka\",M45,IF('List č. 06'!$B$106=\"jiné\",M71,IF('List č. 06'!$B$106=\"právo stavby\",M58,\"\"))))))","v":""}]
[null,null,null,null,null,null,null,null,null,null,null,{"$f":"IF('List č. 06'!$B$106=\"vyberte druh nemovité věci\",\"\",IF('List č. 06'!$B$106=\"pozemek\",M20,IF('List č. 06'!$B$106=\"stavba\",M33,IF('List č. 06'!$B$106=\"jednotka\",M46,IF('List č. 06'!$B$106=\"jiné\",M72,IF('List č. 06'!$B$106=\"právo stavby\",M59,\"\"))))))","v":""}]
[null,null,null,null,null,null,null,null,null,null,null,{"$f":"IF('List č. 06'!$B$106=\"vyberte druh nemovité věci\",\"\",IF('List č. 06'!$B$106=\"pozemek\",M21,IF('List č. 06'!$B$106=\"stavba\",M34,IF('List č. 06'!$B$106=\"jednotka\",M47,IF('List č. 06'!$B$106=\"jiné\",M73,IF('List č. 06'!$B$106=\"právo stavby\",M60,\"\"))))))","v":""}]
[null,null,null,null,null,null,null,null,null,null,null,{"$f":"IF('List č. 06'!$B$106=\"vyberte druh nemovité věci\",\"\",IF('List č. 06'!$B$106=\"pozemek\",M22,IF('List č. 06'!$B$106=\"stavba\",M35,IF('List č. 06'!$B$106=\"jednotka\",M48,IF('List č. 06'!$B$106=\"jiné\",M74,IF('List č. 06'!$B$106=\"právo stavby\",M61,\"\"))))))","v":""}]
[null,null,null,null,null,null,null,null,null,null,null,{"$f":"IF('List č. 06'!$B$106=\"vyberte druh nemovité věci\",\"\",IF('List č. 06'!$B$106=\"pozemek\",M23,IF('List č. 06'!$B$106=\"stavba\",M36,IF('List č. 06'!$B$106=\"jednotka\",M49,IF('List č. 06'!$B$106=\"jiné\",M75,IF('List č. 06'!$B$106=\"právo stavby\",M62,\"\"))))))","v":""}]
[null,null,null,null,null,null,null,null,null,null,null,{"$f":"IF('List č. 06'!$B$106=\"vyberte druh nemovité věci\",\"\",IF('List č. 06'!$B$106=\"pozemek\",M24,IF('List č. 06'!$B$106=\"stavba\",M37,IF('List č. 06'!$B$106=\"jednotka\",M50,IF('List č. 06'!$B$106=\"jiné\",M76,IF('List č. 06'!$B$106=\"právo stavby\",M63,\"\"))))))","v":""}]
[null,null,null,null,null,null,null,null,null,null,null,{"$f":"IF('List č. 06'!$B$106=\"vyberte druh nemovité věci\",\"\",IF('List č. 06'!$B$106=\"pozemek\",M25,IF('List č. 06'!$B$106=\"stavba\",M38,IF('List č. 06'!$B$106=\"jednotka\",M51,IF('List č. 06'!$B$106=\"jiné\",M77,IF('List č. 06'!$B$106=\"právo stavby\",M64,\"\"))))))","v":""}]
[null,null,null,null,null,null,null,null,null,null,null,{"$f":"IF('List č. 06'!$B$106=\"vyberte druh nemovité věci\",\"\",IF('List č. 06'!$B$106=\"pozemek\",M26,IF('List č. 06'!$B$106=\"stavba\",M39,IF('List č. 06'!$B$106=\"jednotka\",M52,IF('List č. 06'!$B$106=\"jiné\",M78,IF('List č. 06'!$B$106=\"právo stavby\",M65,\"\"))))))","v":""}]
[null,null,null,null,null,null,null,null,null,null,null,"11 nemovitost"]
[null,null,null,null,null,null,null,null,null,null,null,{"$f":"IF('List č. 06'!$B$117=\"vyberte druh nemovité věci\",\"Vyberte specifikaci druhu\",IF('List č. 06'!$B$117=\"pozemek\",M16,IF('List č. 06'!$B$117=\"stavba\",M29,IF('List č. 06'!$B$117=\"jednotka\",M42,IF('List č. 06'!$B$117=\"jiné\",M68,IF('List č. 06'!$B$117=\"právo stavby\",M55,\"\"))))))","v":"Vyberte specifikaci druhu"}]
[null,null,null,null,null,null,null,null,null,null,null,{"$f":"IF('List č. 06'!$B$117=\"vyberte druh nemovité věci\",\"Nezvolili jste druh nemovité věci\",IF('List č. 06'!$B$117=\"pozemek\",M17,IF('List č. 06'!$B$117=\"stavba\",M30,IF('List č. 06'!$B$117=\"jednotka\",M43,IF('List č. 06'!$B$117=\"jiné\",M69,IF('List č. 06'!$B$117=\"právo stavby\",M56,\"\"))))))","v":"Nezvolili jste druh nemovité věci"}]
[null,null,null,null,null,null,null,null,null,null,null,{"$f":"IF('List č. 06'!$B$117=\"vyberte druh nemovité věci\",\"\",IF('List č. 06'!$B$117=\"pozemek\",M18,IF('List č. 06'!$B$117=\"stavba\",M31,IF('List č. 06'!$B$117=\"jednotka\",M44,IF('List č. 06'!$B$117=\"jiné\",M70,IF('List č. 06'!$B$117=\"právo stavby\",M57,\"\"))))))","v":""}]
[null,null,null,null,null,null,null,null,null,null,null,{"$f":"IF('List č. 06'!$B$117=\"vyberte druh nemovité věci\",\"\",IF('List č. 06'!$B$117=\"pozemek\",M19,IF('List č. 06'!$B$117=\"stavba\",M32,IF('List č. 06'!$B$117=\"jednotka\",M45,IF('List č. 06'!$B$117=\"jiné\",M71,IF('List č. 06'!$B$117=\"právo stavby\",M58,\"\"))))))","v":""}]
[null,null,null,null,null,null,null,null,null,null,null,{"$f":"IF('List č. 06'!$B$117=\"vyberte druh nemovité věci\",\"\",IF('List č. 06'!$B$117=\"pozemek\",M20,IF('List č. 06'!$B$117=\"stavba\",M33,IF('List č. 06'!$B$117=\"jednotka\",M46,IF('List č. 06'!$B$117=\"jiné\",M72,IF('List č. 06'!$B$117=\"právo stavby\",M59,\"\"))))))","v":""}]
[null,null,null,null,null,null,null,null,null,null,null,{"$f":"IF('List č. 06'!$B$117=\"vyberte druh nemovité věci\",\"\",IF('List č. 06'!$B$117=\"pozemek\",M21,IF('List č. 06'!$B$117=\"stavba\",M34,IF('List č. 06'!$B$117=\"jednotka\",M47,IF('List č. 06'!$B$117=\"jiné\",M73,IF('List č. 06'!$B$117=\"právo stavby\",M60,\"\"))))))","v":""}]
[null,null,null,null,null,null,null,null,null,null,null,{"$f":"IF('List č. 06'!$B$117=\"vyberte druh nemovité věci\",\"\",IF('List č. 06'!$B$117=\"pozemek\",M22,IF('List č. 06'!$B$117=\"stavba\",M35,IF('List č. 06'!$B$117=\"jednotka\",M48,IF('List č. 06'!$B$117=\"jiné\",M74,IF('List č. 06'!$B$117=\"právo stavby\",M61,\"\"))))))","v":""}]
[null,null,null,null,null,null,null,null,null,null,null,{"$f":"IF('List č. 06'!$B$117=\"vyberte druh nemovité věci\",\"\",IF('List č. 06'!$B$117=\"pozemek\",M23,IF('List č. 06'!$B$117=\"stavba\",M36,IF('List č. 06'!$B$117=\"jednotka\",M49,IF('List č. 06'!$B$117=\"jiné\",M75,IF('List č. 06'!$B$117=\"právo stavby\",M62,\"\"))))))","v":""}]
[null,null,null,null,null,null,null,null,null,null,null,{"$f":"IF('List č. 06'!$B$117=\"vyberte druh nemovité věci\",\"\",IF('List č. 06'!$B$117=\"pozemek\",M24,IF('List č. 06'!$B$117=\"stavba\",M37,IF('List č. 06'!$B$117=\"jednotka\",M50,IF('List č. 06'!$B$117=\"jiné\",M76,IF('List č. 06'!$B$117=\"právo stavby\",M63,\"\"))))))","v":""}]
[null,null,null,null,null,null,null,null,null,null,null,{"$f":"IF('List č. 06'!$B$117=\"vyberte druh nemovité věci\",\"\",IF('List č. 06'!$B$117=\"pozemek\",M25,IF('List č. 06'!$B$117=\"stavba\",M38,IF('List č. 06'!$B$117=\"jednotka\",M51,IF('List č. 06'!$B$117=\"jiné\",M77,IF('List č. 06'!$B$117=\"právo stavby\",M64,\"\"))))))","v":""}]
[null,null,null,null,null,null,null,null,null,null,null,{"$f":"IF('List č. 06'!$B$117=\"vyberte druh nemovité věci\",\"\",IF('List č. 06'!$B$117=\"pozemek\",M26,IF('List č. 06'!$B$117=\"stavba\",M39,IF('List č. 06'!$B$117=\"jednotka\",M52,IF('List č. 06'!$B$117=\"jiné\",M78,IF('List č. 06'!$B$117=\"právo stavby\",M65,\"\"))))))","v":""}]
[null,null,null,null,null,null,null,null,null,null,null,"12 nemovitost"]
[null,null,null,null,null,null,null,null,null,null,null,{"$f":"IF('List č. 06'!$B$128=\"vyberte druh nemovité věci\",\"Vyberte specifikaci druhu\",IF('List č. 06'!$B$128=\"pozemek\",M16,IF('List č. 06'!$B$128=\"stavba\",M29,IF('List č. 06'!$B$128=\"jednotka\",M42,IF('List č. 06'!$B$128=\"jiné\",M68,IF('List č. 06'!$B$128=\"právo stavby\",M55,\"\"))))))","v":"Vyberte specifikaci druhu"}]
[null,null,null,null,null,null,null,null,null,null,null,{"$f":"IF('List č. 06'!$B$128=\"vyberte druh nemovité věci\",\"Nezvolili jste druh nemovité věci\",IF('List č. 06'!$B$128=\"pozemek\",M17,IF('List č. 06'!$B$128=\"stavba\",M30,IF('List č. 06'!$B$128=\"jednotka\",M43,IF('List č. 06'!$B$128=\"jiné\",M69,IF('List č. 06'!$B$128=\"právo stavby\",M56,\"\"))))))","v":"Nezvolili jste druh nemovité věci"}]
[null,null,null,null,null,null,null,null,null,null,null,{"$f":"IF('List č. 06'!$B$128=\"vyberte druh nemovité věci\",\"\",IF('List č. 06'!$B$128=\"pozemek\",M18,IF('List č. 06'!$B$128=\"stavba\",M31,IF('List č. 06'!$B$128=\"jednotka\",M44,IF('List č. 06'!$B$128=\"jiné\",M70,IF('List č. 06'!$B$128=\"právo stavby\",M57,\"\"))))))","v":""}]
[null,null,null,null,null,null,null,null,null,null,null,{"$f":"IF('List č. 06'!$B$128=\"vyberte druh nemovité věci\",\"\",IF('List č. 06'!$B$128=\"pozemek\",M19,IF('List č. 06'!$B$128=\"stavba\",M32,IF('List č. 06'!$B$128=\"jednotka\",M45,IF('List č. 06'!$B$128=\"jiné\",M71,IF('List č. 06'!$B$128=\"právo stavby\",M58,\"\"))))))","v":""}]
[null,null,null,null,null,null,null,null,null,null,null,{"$f":"IF('List č. 06'!$B$128=\"vyberte druh nemovité věci\",\"\",IF('List č. 06'!$B$128=\"pozemek\",M20,IF('List č. 06'!$B$128=\"stavba\",M33,IF('List č. 06'!$B$128=\"jednotka\",M46,IF('List č. 06'!$B$128=\"jiné\",M72,IF('List č. 06'!$B$128=\"právo stavby\",M59,\"\"))))))","v":""}]
[null,null,null,null,null,null,null,null,null,null,null,{"$f":"IF('List č. 06'!$B$128=\"vyberte druh nemovité věci\",\"\",IF('List č. 06'!$B$128=\"pozemek\",M21,IF('List č. 06'!$B$128=\"stavba\",M34,IF('List č. 06'!$B$128=\"jednotka\",M47,IF('List č. 06'!$B$128=\"jiné\",M73,IF('List č. 06'!$B$128=\"právo stavby\",M60,\"\"))))))","v":""}]
[null,null,null,null,null,null,null,null,null,null,null,{"$f":"IF('List č. 06'!$B$128=\"vyberte druh nemovité věci\",\"\",IF('List č. 06'!$B$128=\"pozemek\",M22,IF('List č. 06'!$B$128=\"stavba\",M35,IF('List č. 06'!$B$128=\"jednotka\",M48,IF('List č. 06'!$B$128=\"jiné\",M74,IF('List č. 06'!$B$128=\"právo stavby\",M61,\"\"))))))","v":""}]
[null,null,null,null,null,null,null,null,null,null,null,{"$f":"IF('List č. 06'!$B$128=\"vyberte druh nemovité věci\",\"\",IF('List č. 06'!$B$128=\"pozemek\",M23,IF('List č. 06'!$B$128=\"stavba\",M36,IF('List č. 06'!$B$128=\"jednotka\",M49,IF('List č. 06'!$B$128=\"jiné\",M75,IF('List č. 06'!$B$128=\"právo stavby\",M62,\"\"))))))","v":""}]
[null,null,null,null,null,null,null,null,null,null,null,{"$f":"IF('List č. 06'!$B$128=\"vyberte druh nemovité věci\",\"\",IF('List č. 06'!$B$128=\"pozemek\",M24,IF('List č. 06'!$B$128=\"stavba\",M37,IF('List č. 06'!$B$128=\"jednotka\",M50,IF('List č. 06'!$B$128=\"jiné\",M76,IF('List č. 06'!$B$128=\"právo stavby\",M63,\"\"))))))","v":""}]
[null,null,null,null,null,null,null,null,null,null,null,{"$f":"IF('List č. 06'!$B$128=\"vyberte druh nemovité věci\",\"\",IF('List č. 06'!$B$128=\"pozemek\",M25,IF('List č. 06'!$B$128=\"stavba\",M38,IF('List č. 06'!$B$128=\"jednotka\",M51,IF('List č. 06'!$B$128=\"jiné\",M77,IF('List č. 06'!$B$128=\"právo stavby\",M64,\"\"))))))","v":""}]
[null,null,null,null,null,null,null,null,null,null,null,{"$f":"IF('List č. 06'!$B$128=\"vyberte druh nemovité věci\",\"\",IF('List č. 06'!$B$128=\"pozemek\",M26,IF('List č. 06'!$B$128=\"stavba\",M39,IF('List č. 06'!$B$128=\"jednotka\",M52,IF('List č. 06'!$B$128=\"jiné\",M78,IF('List č. 06'!$B$128=\"právo stavby\",M65,\"\"))))))","v":""}]
[null,null,null,null,null,null,null,null,null,null,null,"13 nemovisto"]
[null,null,null,null,null,null,null,null,null,null,null,{"$f":"IF('List č. 06'!$B$139=\"vyberte druh nemovité věci\",\"Vyberte specifikaci druhu\",IF('List č. 06'!$B$139=\"pozemek\",M16,IF('List č. 06'!$B$139=\"stavba\",M29,IF('List č. 06'!$B$139=\"jednotka\",M42,IF('List č. 06'!$B$139=\"jiné\",M68,IF('List č. 06'!$B$139=\"právo stavby\",M55,\"\"))))))","v":"Vyberte specifikaci druhu"}]
[null,null,null,null,null,null,null,null,null,null,null,{"$f":"IF('List č. 06'!$B$139=\"vyberte druh nemovité věci\",\"Nezvolili jste druh nemovité věci\",IF('List č. 06'!$B$139=\"pozemek\",M17,IF('List č. 06'!$B$139=\"stavba\",M30,IF('List č. 06'!$B$139=\"jednotka\",M43,IF('List č. 06'!$B$139=\"jiné\",M69,IF('List č. 06'!$B$139=\"právo stavby\",M56,\"\"))))))","v":"Nezvolili jste druh nemovité věci"}]
[null,null,null,null,null,null,null,null,null,null,null,{"$f":"IF('List č. 06'!$B$139=\"vyberte druh nemovité věci\",\"\",IF('List č. 06'!$B$139=\"pozemek\",M18,IF('List č. 06'!$B$139=\"stavba\",M31,IF('List č. 06'!$B$139=\"jednotka\",M44,IF('List č. 06'!$B$139=\"jiné\",M70,IF('List č. 06'!$B$139=\"právo stavby\",M57,\"\"))))))","v":""}]
[null,null,null,null,null,null,null,null,null,null,null,{"$f":"IF('List č. 06'!$B$139=\"vyberte druh nemovité věci\",\"\",IF('List č. 06'!$B$139=\"pozemek\",M19,IF('List č. 06'!$B$139=\"stavba\",M32,IF('List č. 06'!$B$139=\"jednotka\",M45,IF('List č. 06'!$B$139=\"jiné\",M71,IF('List č. 06'!$B$139=\"právo stavby\",M58,\"\"))))))","v":""}]
[null,null,null,null,null,null,null,null,null,null,null,{"$f":"IF('List č. 06'!$B$139=\"vyberte druh nemovité věci\",\"\",IF('List č. 06'!$B$139=\"pozemek\",M20,IF('List č. 06'!$B$139=\"stavba\",M33,IF('List č. 06'!$B$139=\"jednotka\",M46,IF('List č. 06'!$B$139=\"jiné\",M72,IF('List č. 06'!$B$139=\"právo stavby\",M59,\"\"))))))","v":""}]
[null,null,null,null,null,null,null,null,null,null,null,{"$f":"IF('List č. 06'!$B$139=\"vyberte druh nemovité věci\",\"\",IF('List č. 06'!$B$139=\"pozemek\",M21,IF('List č. 06'!$B$139=\"stavba\",M34,IF('List č. 06'!$B$139=\"jednotka\",M47,IF('List č. 06'!$B$139=\"jiné\",M73,IF('List č. 06'!$B$139=\"právo stavby\",M60,\"\"))))))","v":""}]
[null,null,null,null,null,null,null,null,null,null,null,{"$f":"IF('List č. 06'!$B$139=\"vyberte druh nemovité věci\",\"\",IF('List č. 06'!$B$139=\"pozemek\",M22,IF('List č. 06'!$B$139=\"stavba\",M35,IF('List č. 06'!$B$139=\"jednotka\",M48,IF('List č. 06'!$B$139=\"jiné\",M74,IF('List č. 06'!$B$139=\"právo stavby\",M61,\"\"))))))","v":""}]
[null,null,null,null,null,null,null,null,null,null,null,{"$f":"IF('List č. 06'!$B$139=\"vyberte druh nemovité věci\",\"\",IF('List č. 06'!$B$139=\"pozemek\",M23,IF('List č. 06'!$B$139=\"stavba\",M36,IF('List č. 06'!$B$139=\"jednotka\",M49,IF('List č. 06'!$B$139=\"jiné\",M75,IF('List č. 06'!$B$139=\"právo stavby\",M62,\"\"))))))","v":""}]
[null,null,null,null,null,null,null,null,null,null,null,{"$f":"IF('List č. 06'!$B$139=\"vyberte druh nemovité věci\",\"\",IF('List č. 06'!$B$139=\"pozemek\",M24,IF('List č. 06'!$B$139=\"stavba\",M37,IF('List č. 06'!$B$139=\"jednotka\",M50,IF('List č. 06'!$B$139=\"jiné\",M76,IF('List č. 06'!$B$139=\"právo stavby\",M63,\"\"))))))","v":""}]
[null,null,null,null,null,null,null,null,null,null,null,{"$f":"IF('List č. 06'!$B$139=\"vyberte druh nemovité věci\",\"\",IF('List č. 06'!$B$139=\"pozemek\",M25,IF('List č. 06'!$B$139=\"stavba\",M38,IF('List č. 06'!$B$139=\"jednotka\",M51,IF('List č. 06'!$B$139=\"jiné\",M77,IF('List č. 06'!$B$139=\"právo stavby\",M64,\"\"))))))","v":""}]
[null,null,null,null,null,null,null,null,null,null,null,{"$f":"IF('List č. 06'!$B$139=\"vyberte druh nemovité věci\",\"\",IF('List č. 06'!$B$139=\"pozemek\",M26,IF('List č. 06'!$B$139=\"stavba\",M39,IF('List č. 06'!$B$139=\"jednotka\",M52,IF('List č. 06'!$B$139=\"jiné\",M78,IF('List č. 06'!$B$139=\"právo stavby\",M65,\"\"))))))","v":""}]

{"sheet":"List č. 01","index":2,"n_rows":84,"n_cols":5,"rows_kept":84,"cut":false,"hidden":false,"merged":[[78,0,78,2],[5,1,5,2],[12,0,12,2],[18,0,18,2],[24,0,24,2],[30,0,30,2],[36,0,36,2],[48,0,48,2],[54,0,54,2],[60,0,60,2],[42,0,42,2],[8,0,9,2],[6,1,6,2],[7,1,7,2],[0,0,0,3],[66,0,66,2],[2,1,2,2],[4,1,4,2],[72,0,72,2]]}
[{"$f":"IF(Data!W2=1,\"Prazdný list netiskněte. Vyplňte pouze v případě, že počet políček v Oznámení nebude dostatečný.\",\"Vytiskněte a vyplňte pouze v případě, že počet políček v Oznámení nebude dostatečný\")","v":"Prazdný list netiskněte. Vyplňte pouze v případě, že počet políček v Oznámení nebude dostatečný."},null,null,null,{"$f":"Data!W2","v":1}]
[]
["OZ 3 - NS/12/2021","List  č. 01 - Podnikání nebo provozování jiné samostatné výdělečné činnosti"]
[null,"List číslo"]
["Jméno, příjmení, datum narození",{"$f":"IF(Oznámení!B8=\"\",\"\",CONCATENATE(Oznámení!B8,\", nar. \",TEXT(Oznámení!B9,\"dd.mm.rrrr\")))","v":""}]
["Organizace",{"$f":"IF(Oznámení!B22=\"\",\"\",Oznámení!B22)","v":""}]
["Typ oznámení",{"$f":"IF(Data!W2=1,\"Průběžné oznámení; řádné\",IF(Data!W2=2,\"Průběžné oznámení; doplnění\",IF(Data!W2=0,\"Průběžné oznámení;       ⃝   řádné              ⃝   doplnění\")))","v":"Průběžné oznámení; řádné"}]
["Období od - do",{"$f":"IF(Oznámení!B34=\"\",CONCATENATE(TEXT(Oznámení!B32,\"dd.mm.rrrr\")),Oznámení!B34)","v":"1.1.2021 - 31.12.2021"}]
["Podnikání nebo provozování jiné samostatné výdělečné činnosti 5)"]
[]
["Předmět 6)*"]
[{"$f":"IF(Data!W2=0,\"Způsob 7)*  �\",\"Způsob 7)*\")","v":"Způsob 7)*"},"Vyberte způsob podnikání"]
["Místo výkonu podnikání nebo provozování jiné samostatné výdělečné činnosti 8)*"]
[{"$f":"IF(C9=\"NE\",\"Obec, PSČ, stát\",\"Obec*, PSČ*, stát*\")","v":"Obec*, PSČ*, stát*"}]
["Ulice*, č.p./č.o.*"]
["Poznámka  9)"]
["Předmět 6)*"]
[{"$f":"IF(Data!W2=0,\"Způsob 7)*  �\",\"Způsob 7)*\")","v":"Způsob 7)*"},"Vyberte způsob podnikání"]
["Místo výkonu podnikání nebo provozování jiné samostatné výdělečné činnosti 8)*"]
["Obec*, PSČ*, stát*"]
["Ulice*, č.p./č.o.*"]
["Poznámka  9)"]
["Předmět 6)*"]
[{"$f":"IF(Data!W2=0,\"Způsob 7)*  �\",\"Způsob 7)*\")","v":"Způsob 7)*"},"Vyberte způsob podnikání"]
["Místo výkonu podnikání nebo provozování jiné samostatné výdělečné činnosti 8)*"]
["Obec*, PSČ*, stát*"]
["Ulice*, č.p./č.o.*"]
["Poznámka  9)"]
["Předmět 6)*"]
[{"$f":"IF(Data!W2=0,\"Způsob 7)*  �\",\"Způsob 7)*\")","v":"Způsob 7)*"},"Vyberte způsob podnikání"]
["Místo výkonu podnikání nebo provozování jiné samostatné výdělečné činnosti 8)*"]
["Obec*, PSČ*, stát*"]
["Ulice*, č.p./č.o.*"]
["Poznámka  9)"]
["Předmět 6)*"]
[{"$f":"IF(Data!W2=0,\"Způsob 7)*  �\",\"Způsob 7)*\")","v":"Způsob 7)*"},"Vyberte způsob podnikání"]
["Místo výkonu podnikání nebo provozování jiné samostatné výdělečné činnosti 8)*"]
["Obec*, PSČ*, stát*"]
["Ulice*, č.p./č.o.*"]
["Poznámka  9)"]
["Předmět 6)*"]
[{"$f":"IF(Data!W2=0,\"Způsob 7)*  �\",\"Způsob 7)*\")","v":"Způsob 7)*"},"Vyberte způsob podnikání"]
["Místo výkonu podnikání nebo provozování jiné samostatné výdělečné činnosti 8)*"]
["Obec*, PSČ*, stát*"]
["Ulice*, č.p./č.o.*"]
["Poznámka  9)"]
["Předmět 6)*"]
[{"$f":"IF(Data!W2=0,\"Způsob 7)*  �\",\"Způsob 7)*\")","v":"Způsob 7)*"},"Vyberte způsob podnikání"]
["Místo výkonu podnikání nebo provozování jiné samostatné výdělečné činnosti 8)*"]
["Obec*, PSČ*, stát*"]
["Ulice*, č.p./č.o.*"]
["Poznámka  9)"]
["Předmět 6)*"]
[{"$f":"IF(Data!W2=0,\"Způsob 7)*  �\",\"Způsob 7)*\")","v":"Způsob 7)*"},"Vyberte způsob podnikání"]
["Místo výkonu podnikání nebo provozování jiné samostatné výdělečné činnosti 8)*"]
["Obec*, PSČ*, stát*"]
["Ulice*, č.p./č.o.*"]
["Poznámka  9)"]
["Předmět 6)*"]
[{"$f":"IF(Data!W2=0,\"Způsob 7)*  �\",\"Způsob 7)*\")","v":"Způsob 7)*"},"Vyberte způsob podnikání"]
["Místo výkonu podnikání nebo provozování jiné samostatné výdělečné činnosti 8)*"]
["Obec*, PSČ*, stát*"]
["Ulice*, č.p./č.o.*"]
["Poznámka  9)"]
["Předmět 6)*"]
[{"$f":"IF(Data!W2=0,\"Způsob 7)*  �\",\"Způsob 7)*\")","v":"Způsob 7)*"},"Vyberte způsob podnikání"]
["Místo výkonu podnikání nebo provozování jiné samostatné výdělečné činnosti 8)*"]
["Obec*, PSČ*, stát*"]
["Ulice*, č.p./č.o.*"]
["Poznámka  9)"]
["Předmět 6)*"]
[{"$f":"IF(Data!W2=0,\"Způsob 7)*  �\",\"Způsob 7)*\")","v":"Způsob 7)*"},"Vyberte způsob podnikání"]
["Místo výkonu podnikání nebo provozování jiné samostatné výdělečné činnosti 8)*"]
["Obec*, PSČ*, stát*"]
["Ulice*, č.p./č.o.*"]
["Poznámka  9)"]
["Předmět 6)*"]
[{"$f":"IF(Data!W2=0,\"Způsob 7)*  �\",\"Způsob 7)*\")","v":"Způsob 7)*"},"Vyberte způsob podnikání"]
["Místo výkonu podnikání nebo provozování jiné samostatné výdělečné činnosti 8)*"]
["Obec*, PSČ*, stát*"]
["Ulice*, č.p./č.o.*"]
["Poznámka  9)"]
[]
["Datum a podpis"]

{"sheet":"List č. 02","index":3,"n_rows":84,"n_cols":2,"rows_kept":84,"cut":false,"hidden":false,"merged":[[0,0,0,2],[2,1,2,2],[4,1,4,2],[8,0,9,2],[6,1,6,2],[7,1,7,2],[5,1,5,2]]}
[{"$f":"IF(Data!W2=1,\"Prazdný list netiskněte. Vyplňte pouze v případě, že počet políček v Oznámení nebude dostatečný.\",\"Vytiskněte a vyplňte pouze v případě, že počet políček v Oznámení nebude dostatečný\")","v":"Prazdný list netiskněte. Vyplňte pouze v případě, že počet políček v Oznámení nebude dostatečný."}]
[]
["OZ 3 - NS/12/2021","List č. 02 - Společník nebo člen podnikající právnické osoby"]
[null,"List číslo"]
["Jméno, příjmení, datum narození",{"$f":"IF(Oznámení!B8=\"\",\"\",CONCATENATE(Oznámení!B8,\", nar. \",TEXT(Oznámení!B9,\"dd.mm.rrrr\")))","v":""}]
["Organizace",{"$f":"IF(Oznámení!B22=\"\",\"\",Oznámení!B22)","v":""}]
["Typ oznámení",{"$f":"IF(Data!W2=1,\"Průběžné oznámení; řádné\",IF(Data!W2=2,\"Průběžné oznámení; doplnění\",IF(Data!W2=0,\"Průběžné oznámení;       ⃝   řádné              ⃝   doplnění\")))","v":"Průběžné oznámení; řádné"}]
["Období od - do",{"$f":"IF(Oznámení!B34=\"\",CONCATENATE(TEXT(Oznámení!B32,\"dd.mm.rrrr\")),Oznámení!B34)","v":"1.1.2021 - 31.12.2021"}]
["Společník nebo člen podnikající právnické osoby 10)"]
[]
["Obchodní firma/název 11)*"]
["IČO 12)*"]
["Sídlo právnické osoby 13)*"]
["Obec*, PSČ*, stát*"]
["Ulice*, č.p./č.o.*"]
["Poznámka 14)"]
["Obchodní firma/název 11)*"]
["IČO 12)*"]
["Sídlo právnické osoby 13)*"]
["Obec*, PSČ*, stát*"]
["Ulice*, č.p./č.o.*"]
["Poznámka 14)"]
["Obchodní firma/název 11)*"]
["IČO 12)*"]
["Sídlo právnické osoby 13)*"]
["Obec*, PSČ*, stát*"]
["Ulice*, č.p./č.o.*"]
["Poznámka 14)"]
["Obchodní firma/název 11)*"]
["IČO 12)*"]
["Sídlo právnické osoby 13)*"]
["Obec*, PSČ*, stát*"]
["Ulice*, č.p./č.o.*"]
["Poznámka 14)"]
["Obchodní firma/název 11)*"]
["IČO 12)*"]
["Sídlo právnické osoby 13)*"]
["Obec*, PSČ*, stát*"]
["Ulice*, č.p./č.o.*"]
["Poznámka 14)"]
["Obchodní firma/název 11)*"]
["IČO 12)*"]
["Sídlo právnické osoby 13)*"]
["Obec*, PSČ*, stát*"]
["Ulice*, č.p./č.o.*"]
["Poznámka 14)"]
["Obchodní firma/název 11)*"]
["IČO 12)*"]
["Sídlo právnické osoby 13)*"]
["Obec*, PSČ*, stát*"]
["Ulice*, č.p./č.o.*"]
["Poznámka 14)"]
["Obchodní firma/název 11)*"]
["IČO 12)*"]
["Sídlo právnické osoby 13)*"]
["Obec*, PSČ*, stát*"]
["Ulice*, č.p./č.o.*"]
["Poznámka 14)"]
["Obchodní firma/název 11)*"]
["IČO 12)*"]
["Sídlo právnické osoby 13)*"]
["Obec*, PSČ*, stát*"]
["Ulice*, č.p./č.o.*"]
["Poznámka 14)"]
["Obchodní firma/název 11)*"]
["IČO 12)*"]
["Sídlo právnické osoby 13)*"]
["Obec*, PSČ*, stát*"]
["Ulice*, č.p./č.o.*"]
["Poznámka 14)"]
["Obchodní firma/název 11)*"]
["IČO 12)*"]
["Sídlo právnické osoby 13)*"]
["Obec*, PSČ*, stát*"]
["Ulice*, č.p./č.o.*"]
["Poznámka 14)"]
["Obchodní firma/název 11)*"]
["IČO 12)*"]
["Sídlo právnické osoby 13)*"]
["Obec*, PSČ*, stát*"]
["Ulice*, č.p./č.o.*"]
["Poznámka 14)"]
[]
["Datum a podpis"]

{"sheet":"List č. 03","index":4,"n_rows":82,"n_cols":5,"rows_kept":82,"cut":false,"hidden":false,"merged":[[0,0,0,2],[8,0,9,2],[4,1,4,2],[6,1,6,2],[7,1,7,2]]}
[{"$f":"IF(Data!W2=1,\"Prazdný list netiskněte. Vyplňte pouze v případě, že počet políček v Oznámení nebude dostatečný.\",\"Vytiskněte a vyplňte pouze v případě, že počet políček v Oznámení nebude dostatečný\")","v":"Prazdný list netiskněte. Vyplňte pouze v případě, že počet políček v Oznámení nebude dostatečný."},null,null,null,{"$f":"Data!W2","v":1}]
[]
["OZ 3 - NS/12/2021                List č. 03 - Člen statutárního orgánu, člen řídícího, dozorčího nebo kontrolního orgánu podnikající právnické osoby"]
[null,"List číslo"]
["Jméno, příjmení, datum narození",{"$f":"IF(Oznámení!B8=\"\",\"\",CONCATENATE(Oznámení!B8,\", nar. \",TEXT(Oznámení!B9,\"dd.mm.rrrr\")))","v":""}]
["Organizace",{"$f":"IF(Oznámení!B22=\"\",\"\",Oznámení!B22)","v":""}]
["Typ oznámení",{"$f":"IF(Data!W2=1,\"Průběžné oznámení; řádné\",IF(Data!W2=2,\"Průběžné oznámení; doplnění\",IF(Data!W2=0,\"Průběžné oznámení;       ⃝   řádné              ⃝   doplnění\")))","v":"Průběžné oznámení; řádné"}]
["Období od - do",{"$f":"IF(Oznámení!B34=\"\",CONCATENATE(TEXT(Oznámení!B32,\"dd.mm.rrrr\")),Oznámení!B34)","v":"1.1.2021 - 31.12.2021"}]
["Člen statutárního orgánu, člen řídícího, dozorčího nebo kontrolního orgánu podnikající právnické osoby 15)"]
[]
["Obchodní firma/název 16)*"]
["IČO 17)*"]
[{"$f":"IF(Data!W2=0,\"Druh orgánu 18)*  �\",\"Druh orgánu 18)*\")","v":"Druh orgánu 18)*"},"Vyberte druh orgánu"]
["Sídlo právnické osoby 19)*"]
["Obec*, PSČ*, stát*"]
["Ulice*, č.p./č.o.*"]
["Poznámka 20)"]
["Obchodní firma/název 16)*"]
["IČO 17)*"]
[{"$f":"IF(Data!W2=0,\"Druh orgánu 18)*  �\",\"Druh orgánu 18)*\")","v":"Druh orgánu 18)*"},"Vyberte druh orgánu"]
["Sídlo právnické osoby 19)*"]
["Obec*, PSČ*, stát*"]
["Ulice*, č.p./č.o.*"]
["Poznámka 20)"]
["Obchodní firma/název 16)*"]
["IČO 17)*"]
[{"$f":"IF(Data!W2=0,\"Druh orgánu 18)*  �\",\"Druh orgánu 18)*\")","v":"Druh orgánu 18)*"},"Vyberte druh orgánu"]
["Sídlo právnické osoby 19)*"]
["Obec*, PSČ*, stát*"]
["Ulice*, č.p./č.o.*"]
["Poznámka 20)"]
["Obchodní firma/název 16)*"]
["IČO 17)*"]
[{"$f":"IF(Data!W2=0,\"Druh orgánu 18)*  �\",\"Druh orgánu 18)*\")","v":"Druh orgánu 18)*"},"Vyberte druh orgánu"]
["Sídlo právnické osoby 19)*"]
["Obec*, PSČ*, stát*"]
["Ulice*, č.p./č.o.*"]
["Poznámka 20)"]
["Obchodní firma/název 16)*"]
["IČO 17)*"]
[{"$f":"IF(Data!W2=0,\"Druh orgánu 18)*  �\",\"Druh orgánu 18)*\")","v":"Druh orgánu 18)*"},"Vyberte druh orgánu"]
["Sídlo právnické osoby 19)*"]
["Obec*, PSČ*, stát*"]
["Ulice*, č.p./č.o.*"]
["Poznámka 20)"]
["Obchodní firma/název 16)*"]
["IČO 17)*"]
[{"$f":"IF(Data!W2=0,\"Druh orgánu 18)*  �\",\"Druh orgánu 18)*\")","v":"Druh orgánu 18)*"},"Vyberte druh orgánu"]
["Sídlo právnické osoby 19)*"]
["Obec*, PSČ*, stát*"]
["Ulice*, č.p./č.o.*"]
["Poznámka 20)"]
["Obchodní firma/název 16)*"]
["IČO 17)*"]
[{"$f":"IF(Data!W2=0,\"Druh orgánu 18)*  �\",\"Druh orgánu 18)*\")","v":"Druh orgánu 18)*"},"Vyberte druh orgánu"]
["Sídlo právnické osoby 19)*"]
["Obec*, PSČ*, stát*"]
["Ulice*, č.p./č.o.*"]
["Poznámka 20)"]
["Obchodní firma/název 16)*"]
["IČO 17)*"]
[{"$f":"IF(Data!W2=0,\"Druh orgánu 18)*  �\",\"Druh orgánu 18)*\")","v":"Druh orgánu 18)*"},"Vyberte druh orgánu"]
["Sídlo právnické osoby 19)*"]
["Obec*, PSČ*, stát*"]
["Ulice*, č.p./č.o.*"]
["Poznámka 20)"]
["Obchodní firma/název 16)*"]
["IČO 17)*"]
[{"$f":"IF(Data!W2=0,\"Druh orgánu 18)*  �\",\"Druh orgánu 18)*\")","v":"Druh orgánu 18)*"},"Vyberte druh orgánu"]
["Sídlo právnické osoby 19)*"]
["Obec*, PSČ*, stát*"]
["Ulice*, č.p./č.o.*"]
["Poznámka 20)"]
["Obchodní firma/název 16)*"]
["IČO 17)*"]
[{"$f":"IF(Data!W2=0,\"Druh orgánu 18)*  �\",\"Druh orgánu 18)*\")","v":"Druh orgánu 18)*"},"Vyberte druh orgánu"]
["Sídlo právnické osoby 19)*"]
["Obec*, PSČ*, stát*"]
["Ulice*, č.p./č.o.*"]
["Poznámka 20)"]
[]
["Datum a podpis"]

{"sheet":"List č. 04","index":5,"n_rows":78,"n_cols":5,"rows_kept":78,"cut":false,"hidden":false,"merged":[[68,0,69,1],[57,0,58,1],[35,0,36,1],[24,0,25,1],[13,0,14,1],[46,0,47,1],[0,0,0,2],[2,1,2,2],[4,1,4,2],[8,0,9,2],[6,1,6,2],[7,1,7,2],[5,1,5,2]]}
[{"$f":"IF(Data!W2=1,\"Prazdný list netiskněte. Vyplňte pouze v případě, že počet políček v Oznámení nebude dostatečný.\",\"Vytiskněte a vyplňte pouze v případě, že počet políček v Oznámení nebude dostatečný\")","v":"Prazdný list netiskněte. Vyplňte pouze v případě, že počet políček v Oznámení nebude dostatečný."},null,null,null,{"$f":"Data!$W$2","v":1}]
[]
["OZ 3 - NS/12/2021","List  č. 04 - Provozování rozhlasového nebo televizního vysílání nebo vydávání periodického tisku"]
[null,"List číslo"]
["Jméno, příjmení, datum narození",{"$f":"IF(Oznámení!B8=\"\",\"\",CONCATENATE(Oznámení!B8,\", nar. \",TEXT(Oznámení!B9,\"dd.mm.rrrr\")))","v":""}]
["Organizace",{"$f":"IF(Oznámení!B22=\"\",\"\",Oznámení!B22)","v":""}]
["Typ oznámení",{"$f":"IF(Data!W2=1,\"Průběžné oznámení; řádné\",IF(Data!W2=2,\"Průběžné oznámení; doplnění\",IF(Data!W2=0,\"Průběžné oznámení;       ⃝   řádné              ⃝   doplnění\")))","v":"Průběžné oznámení; řádné"}]
["Období od - do",{"$f":"IF(Oznámení!B34=\"\",CONCATENATE(TEXT(Oznámení!B32,\"dd.mm.rrrr\")),Oznámení!B34)","v":"1.1.2021 - 31.12.2021"}]
["Provozování rozhlasového nebo televizního vysílání nebo vydávání periodického tisku 21)"]
[]
[{"$f":"IF(Data!W2=0,\"Předmět 22)* �\",\"Předmět 22)*\")","v":"Předmět 22)*"},"Vyberte předmět"]
[{"$f":"IF(Data!W2=0,\"Způsob 23)*   �\",\"Způsob 23)*\")","v":"Způsob 23)*"},"Vyberte způsob"]
["Název média 24)"]
["V případě, že zvolíte jako způsob provozování: \"jako společník, člen nebo ovládající osoba právnické osoby\", vyplňte dále obchodní firmu (název, IČO a sídlo této právnické osoby)."]
[]
[{"$f":"IF(OR(B12=\"samostatně\",B12=\"Vyberte způsob\"),\"Obchodní firma/název (provozovatele/vydavatele) 25)\",\"Obchodní firma/název (provozovatele/vydavatele) 25)*\")","v":"Obchodní firma/název (provozovatele/vydavatele) 25)"}]
[{"$f":"IF(OR(B12=\"samostatně\",B12=\"Vyberte způsob\"),\"IČO 26)\",\"IČO 26)*\")","v":"IČO 26)"}]
[{"$f":"IF(OR(B12=\"samostatně\",B12=\"Vyberte způsob\"),\"Sídlo právnické osoby 27)\",\"Sídlo právnické osoby 27)*\")","v":"Sídlo právnické osoby 27)"}]
[{"$f":"IF(OR(B12=\"samostatně\",B12=\"Vyberte způsob\"),\"Obec, PSČ, stát\",\"Obec*, PSČ*, stát*\")","v":"Obec, PSČ, stát"}]
[{"$f":"IF(OR(B12=\"samostatně\",B12=\"Vyberte způsob\"),\"Ulice, č.p./č.o.\",\"Ulice*, č.p./č.o.*\")","v":"Ulice, č.p./č.o."}]
["Poznámka 28)"]
[{"$f":"IF(Data!W2=0,\"Předmět 22)* �\",\"Předmět 22)*\")","v":"Předmět 22)*"},"Vyberte předmět"]
[{"$f":"IF(Data!W2=0,\"Způsob 23)*   �\",\"Způsob 23)*\")","v":"Způsob 23)*"},"Vyberte způsob"]
["Název média 24)"]
["V případě, že zvolíte jako způsob provozování: \"jako společník, člen nebo ovládající osoba právnické osoby\", vyplňte dále obchodní firmu (název, IČO a sídlo této právnické osoby)."]
[]
[{"$f":"IF(OR(B23=\"samostatně\",B23=\"Vyberte způsob\"),\"Obchodní firma/název (provozovatele/vydavatele) 25)\",\"Obchodní firma/název (provozovatele/vydavatele) 25)*\")","v":"Obchodní firma/název (provozovatele/vydavatele) 25)"}]
[{"$f":"IF(OR(B23=\"samostatně\",B23=\"Vyberte způsob\"),\"IČO 26)\",\"IČO 26)*\")","v":"IČO 26)"}]
[{"$f":"IF(OR(B23=\"samostatně\",B23=\"Vyberte způsob\"),\"Sídlo právnické osoby 27)\",\"Sídlo právnické osoby 27)*\")","v":"Sídlo právnické osoby 27)"}]
[{"$f":"IF(OR(B23=\"samostatně\",B23=\"Vyberte způsob\"),\"Obec, PSČ, stát\",\"Obec*, PSČ*, stát*\")","v":"Obec, PSČ, stát"}]
[{"$f":"IF(OR(B23=\"samostatně\",B23=\"Vyberte způsob\"),\"Ulice, č.p./č.o.\",\"Ulice*, č.p./č.o.*\")","v":"Ulice, č.p./č.o."}]
["Poznámka 28)"]
[{"$f":"IF(Data!W2=0,\"Předmět 22)* �\",\"Předmět 22)*\")","v":"Předmět 22)*"},"Vyberte předmět"]
[{"$f":"IF(Data!W2=0,\"Způsob 23)*   �\",\"Způsob 23)*\")","v":"Způsob 23)*"},"Vyberte způsob"]
["Název média 24)"]
["V případě, že zvolíte jako způsob provozování: \"jako společník, člen nebo ovládající osoba právnické osoby\", vyplňte dále obchodní firmu (název, IČO a sídlo této právnické osoby)."]
[]
[{"$f":"IF(C29=\"NE\",\"Obchodní firma/název (provozovatele/vydavatele) 26)\",IF(OR(B34=\"samostatně\",B34=\"Vyberte způsob\"),\"Obchodní firma/název (provozovatele/vydavatele) 25)\",\"Obchodní firma/název (provozovatele/vydavatele) 25)*\"))","v":"Obchodní firma/název (provozovatele/vydavatele) 25)"}]
[{"$f":"IF(C29=\"NE\",\"IČO 26)\",IF(OR(B34=\"samostatně\",B34=\"Vyberte způsob\"),\"IČO 26)\",\"IČO 26)*\"))","v":"IČO 26)"}]
[{"$f":"IF(OR(B34=\"samostatně\",B34=\"Vyberte způsob\"),\"Sídlo právnické osoby 27)\",\"Sídlo právnické osoby 27)*\")","v":"Sídlo právnické osoby 27)"}]
[{"$f":"IF(OR(B34=\"samostatně\",B34=\"Vyberte způsob\"),\"Obec, PSČ, stát\",\"Obec*, PSČ*, stát*\")","v":"Obec, PSČ, stát"}]
[{"$f":"IF(OR(B34=\"samostatně\",B34=\"Vyberte způsob\"),\"Ulice, č.p./č.o.\",\"Ulice*, č.p./č.o.*\")","v":"Ulice, č.p./č.o."}]
["Poznámka 28)"]
[{"$f":"IF(Data!W2=0,\"Předmět 22)* �\",\"Předmět 22)*\")","v":"Předmět 22)*"},"Vyberte předmět"]
[{"$f":"IF(Data!W2=0,\"Způsob 23)*   �\",\"Způsob 23)*\")","v":"Způsob 23)*"},"Vyberte způsob"]
["Název média 24)"]
["V případě, že zvolíte jako způsob provozování: \"jako společník, člen nebo ovládající osoba právnické osoby\", vyplňte dále obchodní firmu (název, IČO a sídlo této právnické osoby)."]
[]
[{"$f":"IF(OR(B45=\"samostatně\",B45=\"Vyberte způsob\"),\"Obchodní firma/název (provozovatele/vydavatele) 25)\",\"Obchodní firma/název (provozovatele/vydavatele) 25)*\")","v":"Obchodní firma/název (provozovatele/vydavatele) 25)"}]
[{"$f":"IF(OR(B45=\"samostatně\",B45=\"Vyberte způsob\"),\"IČO 26)\",\"IČO 26)*\")","v":"IČO 26)"}]
[{"$f":"IF(OR(B45=\"samostatně\",B45=\"Vyberte způsob\"),\"Sídlo právnické osoby 27)\",\"Sídlo právnické osoby 27)*\")","v":"Sídlo právnické osoby 27)"}]
[{"$f":"IF(OR(B45=\"samostatně\",B45=\"Vyberte způsob\"),\"Obec, PSČ, stát\",\"Obec*, PSČ*, stát*\")","v":"Obec, PSČ, stát"}]
[{"$f":"IF(OR(B45=\"samostatně\",B45=\"Vyberte způsob\"),\"Ulice, č.p./č.o.\",\"Ulice*, č.p./č.o.*\")","v":"Ulice, č.p./č.o."}]
["Poznámka 28)"]
[{"$f":"IF(Data!W2=0,\"Předmět 22)* �\",\"Předmět 22)*\")","v":"Předmět 22)*"},"Vyberte předmět"]
[{"$f":"IF(Data!W2=0,\"Způsob 23)*   �\",\"Způsob 23)*\")","v":"Způsob 23)*"},"Vyberte způsob"]
["Název média 24)"]
["V případě, že zvolíte jako způsob provozování: \"jako společník, člen nebo ovládající osoba právnické osoby\", vyplňte dále obchodní firmu (název, IČO a sídlo této právnické osoby)."]
[]
[{"$f":"IF(OR(B56=\"samostatně\",B56=\"Vyberte způsob\"),\"Obchodní firma/název (provozovatele/vydavatele) 25)\",\"Obchodní firma/název (provozovatele/vydavatele) 25)*\")","v":"Obchodní firma/název (provozovatele/vydavatele) 25)"}]
[{"$f":"IF(OR(B56=\"samostatně\",B56=\"Vyberte způsob\"),\"IČO 26)\",\"IČO 26)*\")","v":"IČO 26)"}]
[{"$f":"IF(OR(B56=\"samostatně\",B56=\"Vyberte způsob\"),\"Sídlo právnické osoby 27)\",\"Sídlo právnické osoby 27)*\")","v":"Sídlo právnické osoby 27)"}]
[{"$f":"IF(OR(B56=\"samostatně\",B56=\"Vyberte způsob\"),\"Obec, PSČ, stát\",\"Obec*, PSČ*, stát*\")","v":"Obec, PSČ, stát"}]
[{"$f":"IF(OR(B56=\"samostatně\",B56=\"Vyberte způsob\"),\"Ulice, č.p./č.o.\",\"Ulice*, č.p./č.o.*\")","v":"Ulice, č.p./č.o."}]
["Poznámka 28)"]
[{"$f":"IF(Data!W2=0,\"Předmět 22)* �\",\"Předmět 22)*\")","v":"Předmět 22)*"},"Vyberte předmět"]
[{"$f":"IF(Data!W2=0,\"Způsob 23)*   �\",\"Způsob 23)*\")","v":"Způsob 23)*"},"Vyberte způsob"]
["Název média 24)"]
["V případě, že zvolíte jako způsob provozování: \"jako společník, člen nebo ovládající osoba právnické osoby\", vyplňte dále obchodní firmu (název, IČO a sídlo této právnické osoby)."]
[]
[{"$f":"IF(C60=\"NE\",\"Obchodní firma/název (provozovatele/vydavatele) 25)\",IF(OR(B67=\"samostatně\",B67=\"Vyberte způsob\"),\"Obchodní firma/název (provozovatele/vydavatele) 25)\",\"Obchodní firma/název (provozovatele/vydavatele) 25)*\"))","v":"Obchodní firma/název (provozovatele/vydavatele) 25)"}]
[{"$f":"IF(C60=\"NE\",\"IČO 26)\",IF(OR(B67=\"samostatně\",B67=\"Vyberte způsob\"),\"IČO 26)\",\"IČO 26)*\"))","v":"IČO 26)"}]
[{"$f":"IF(OR(B67=\"samostatně\",B67=\"Vyberte způsob\"),\"Sídlo právnické osoby 27)\",\"Sídlo právnické osoby 27)*\")","v":"Sídlo právnické osoby 27)"}]
[{"$f":"IF(OR(B67=\"samostatně\",B67=\"Vyberte způsob\"),\"Obec, PSČ, stát\",\"Obec*, PSČ*, stát*\")","v":"Obec, PSČ, stát"}]
[{"$f":"IF(OR(B67=\"samostatně\",B67=\"Vyberte způsob\"),\"Ulice, č.p./č.o.\",\"Ulice*, č.p./č.o.*\")","v":"Ulice, č.p./č.o."}]
["Poznámka 28)"]
[]
["Datum a podpis"]

{"sheet":"List č. 05","index":6,"n_rows":83,"n_cols":5,"rows_kept":83,"cut":false,"hidden":false,"merged":[[33,0,33,2],[42,0,42,2],[6,1,6,2],[7,1,7,2],[5,1,5,2],[0,0,0,2],[2,1,2,2],[8,0,9,2],[15,0,15,2],[24,0,24,2],[4,1,4,2]]}
[{"$f":"IF(Data!W2=1,\"Prazdný list netiskněte. Vyplňte pouze v případě, že počet políček v Oznámení nebude dostatečný.\",\"Vytiskněte a vyplňte pouze v případě, že počet políček v Oznámení nebude dostatečný\")","v":"Prazdný list netiskněte. Vyplňte pouze v případě, že počet políček v Oznámení nebude dostatečný."},null,null,null,{"$f":"Data!W2","v":1}]
[]
["OZ 3 - NS/12/2021","List č. 05 - Další činnosti v pracovněprávním nebo obdobném vztahu nebo ve služebním poměru"]
[null,"List číslo"]
["Jméno, příjmení, datum narození",{"$f":"IF(Oznámení!B8=\"\",\"\",CONCATENATE(Oznámení!B8,\", nar. \",TEXT(Oznámení!B9,\"dd.mm.rrrr\")))","v":""}]
["Organizace",{"$f":"IF(Oznámení!B22=\"\",\"\",Oznámení!B22)","v":""}]
["Typ oznámení",{"$f":"IF(Data!W2=1,\"Průběžné oznámení; řádné\",IF(Data!W2=2,\"Průběžné oznámení; doplnění\",IF(Data!W2=0,\"Průběžné oznámení;       ⃝   řádné              ⃝   doplnění\")))","v":"Průběžné oznámení; řádné"}]
["Období od - do",{"$f":"IF(Oznámení!B34=\"\",CONCATENATE(TEXT(Oznámení!B32,\"dd.mm.rrrr\")),Oznámení!B34)","v":"1.1.2021 - 31.12.2021"}]
["Další činnost v pracovněprávním nebo obdobném vztahu nebo ve služebním poměru, nejde-li o vztah nebo poměr, v němž působí jako veřejný funkcionář 29)"]
[]
[null,{"$f":"IF(C9=\"Ne\",\"Zaměstnavatel - podnikající fyzická osoba nebo právnická osoba\",\"Zaměstnavatel - podnikající fyzická osoba nebo právnická osoba*\")","v":"Zaměstnavatel - podnikající fyzická osoba nebo právnická osoba*"}]
[{"$f":"IF(Data!W2=0,\"Druh činnosti 30)*  �\",\"Druh činnosti 30)*\")","v":"Druh činnosti 30)*"},"Vyberte druh činnosti"]
["Specifikace"]
["Jméno/název 31)*"]
["IČO 32)*"]
["Místo výkonu podnikaní/sídlo právnické osoby  33)*"]
["Obec*, PSČ*, stát*"]
["Ulice*, č.p./č.o.*"]
["Poznámka 34)"]
[null,{"$f":"IF(C9=\"Ne\",\"Zaměstnavatel - podnikající fyzická osoba nebo právnická osoba\",\"Zaměstnavatel - podnikající fyzická osoba nebo právnická osoba*\")","v":"Zaměstnavatel - podnikající fyzická osoba nebo právnická osoba*"}]
[{"$f":"IF(Data!W2=0,\"Druh činnosti 30)*  �\",\"Druh činnosti 30)*\")","v":"Druh činnosti 30)*"},"Vyberte druh činnosti"]
["Specifikace"]
["Jméno/název 31)*"]
["IČO 32)*"]
["Místo výkonu podnikaní/sídlo právnické osoby  33)*"]
["Obec*, PSČ*, stát*"]
["Ulice*, č.p./č.o.*"]
["Poznámka 34)"]
[null,{"$f":"IF(C9=\"Ne\",\"Zaměstnavatel - podnikající fyzická osoba nebo právnická osoba\",\"Zaměstnavatel - podnikající fyzická osoba nebo právnická osoba*\")","v":"Zaměstnavatel - podnikající fyzická osoba nebo právnická osoba*"}]
[{"$f":"IF(Data!W2=0,\"Druh činnosti 30)*  �\",\"Druh činnosti 30)*\")","v":"Druh činnosti 30)*"},"Vyberte druh činnosti"]
["Specifikace"]
["Jméno/název 31)*"]
["IČO 32)*"]
["Místo výkonu podnikaní/sídlo právnické osoby  33)*"]
["Obec*, PSČ*, stát*"]
["Ulice*, č.p./č.o.*"]
["Poznámka 34)"]
[null,{"$f":"IF(C18=\"Ne\",\"Zaměstnavatel - podnikající fyzická osoba nebo právnická osoba\",\"Zaměstnavatel - podnikající fyzická osoba nebo právnická osoba*\")","v":"Zaměstnavatel - podnikající fyzická osoba nebo právnická osoba*"}]
[{"$f":"IF(Data!W2=0,\"Druh činnosti 30)*  �\",\"Druh činnosti 30)*\")","v":"Druh činnosti 30)*"},"Vyberte druh činnosti"]
["Specifikace"]
["Jméno/název 31)*"]
["IČO 32)*"]
["Místo výkonu podnikaní/sídlo právnické osoby  33)*"]
["Obec*, PSČ*, stát*"]
["Ulice*, č.p./č.o.*"]
["Poznámka 34)"]
[null,{"$f":"IF(C9=\"Ne\",\"Zaměstnavatel - nepodnikající fyzická osoba\",\"Zaměstnavatel - nepodnikající fyzická osoba*\")","v":"Zaměstnavatel - nepodnikající fyzická osoba*"}]
[{"$f":"IF(Data!W2=0,\"Druh činnosti 30)*  �\",\"Druh činnosti 30)*\")","v":"Druh činnosti 30)*"},"Vyberte druh činnosti"]
["Specifikace"]
["Jméno*, příjmení 35)*"]
["Poznámka 34)"]
[null,{"$f":"IF(C14=\"Ne\",\"Zaměstnavatel - nepodnikající fyzická osoba\",\"Zaměstnavatel - nepodnikající fyzická osoba*\")","v":"Zaměstnavatel - nepodnikající fyzická osoba*"}]
[{"$f":"IF(Data!W2=0,\"Druh činnosti 30)*  �\",\"Druh činnosti 30)*\")","v":"Druh činnosti 30)*"},"Vyberte druh činnosti"]
["Specifikace"]
["Jméno*, příjmení 35)*"]
["Poznámka 34)"]
[null,{"$f":"IF(C19=\"Ne\",\"Zaměstnavatel - nepodnikající fyzická osoba\",\"Zaměstnavatel - nepodnikající fyzická osoba*\")","v":"Zaměstnavatel - nepodnikající fyzická osoba*"}]
[{"$f":"IF(Data!W2=0,\"Druh činnosti 30)*  �\",\"Druh činnosti 30)*\")","v":"Druh činnosti 30)*"},"Vyberte druh činnosti"]
["Specifikace"]
["Jméno*, příjmení 35)*"]
["Poznámka 34)"]
[null,{"$f":"IF(C24=\"Ne\",\"Zaměstnavatel - nepodnikající fyzická osoba\",\"Zaměstnavatel - nepodnikající fyzická osoba*\")","v":"Zaměstnavatel - nepodnikající fyzická osoba*"}]
[{"$f":"IF(Data!W2=0,\"Druh činnosti 30)*  �\",\"Druh činnosti 30)*\")","v":"Druh činnosti 30)*"},"Vyberte druh činnosti"]
["Specifikace"]
["Jméno*, příjmení 35)*"]
["Poznámka 34)"]
[null,{"$f":"IF(C29=\"Ne\",\"Zaměstnavatel - nepodnikající fyzická osoba\",\"Zaměstnavatel - nepodnikající fyzická osoba*\")","v":"Zaměstnavatel - nepodnikající fyzická osoba*"}]
[{"$f":"IF(Data!W2=0,\"Druh činnosti 30)*  �\",\"Druh činnosti 30)*\")","v":"Druh činnosti 30)*"},"Vyberte druh činnosti"]
["Specifikace"]
["Jméno*, příjmení 35)*"]
["Poznámka 34)"]
[null,{"$f":"IF(C34=\"Ne\",\"Zaměstnavatel - nepodnikající fyzická osoba\",\"Zaměstnavatel - nepodnikající fyzická osoba*\")","v":"Zaměstnavatel - nepodnikající fyzická osoba*"}]
[{"$f":"IF(Data!W2=0,\"Druh činnosti 30)*  �\",\"Druh činnosti 30*\")","v":"Druh činnosti 30*"},"Vyberte druh činnosti"]
["Specifikace"]
["Jméno*, příjmení 35)*"]
["Poznámka 34)"]
[null,{"$f":"IF(C39=\"Ne\",\"Zaměstnavatel - nepodnikající fyzická osoba\",\"Zaměstnavatel - nepodnikající fyzická osoba*\")","v":"Zaměstnavatel - nepodnikající fyzická osoba*"}]
[{"$f":"IF(Data!W2=0,\"Druh činnosti 30)*  �\",\"Druh činnosti 30)*\")","v":"Druh činnosti 30)*"},"Vyberte druh činnosti"]
["Specifikace"]
["Jméno*, příjmení 35)*"]
["Poznámka 34)"]
[]
["Datum a podpis"]

{"sheet":"List č. 06","index":7,"n_rows":151,"n_cols":5,"rows_kept":151,"cut":false,"hidden":false,"merged":[[81,0,82,2],[0,0,0,2],[2,1,2,2],[4,1,4,2],[8,0,9,2],[6,1,6,2],[7,1,7,2],[5,1,5,2],[10,0,11,2]]}
[{"$f":"IF(Data!W2=1,\"Prazdný list netiskněte. Vyplňte pouze v případě, že počet políček v Oznámení nebude dostatečný.\",\"Vytiskněte a vyplňte pouze v případě, že počet políček v Oznámení nebude dostatečný\")","v":"Prazdný list netiskněte. Vyplňte pouze v případě, že počet políček v Oznámení nebude dostatečný."},null,null,null,{"$f":"Data!W2","v":1}]
[]
["OZ 3 - NS/12/2021","List č. 06 - Věci nemovité"]
[null,"List číslo"]
["Jméno, příjmení, datum narození",{"$f":"IF(Oznámení!B8=\"\",\"\",CONCATENATE(Oznámení!B8,\", nar. \",TEXT(Oznámení!B9,\"dd.mm.rrrr\")))","v":""}]
["Organizace",{"$f":"IF(Oznámení!B22=\"\",\"\",Oznámení!B22)","v":""}]
["Typ oznámení",{"$f":"IF(Data!W2=1,\"Průběžné oznámení; řádné\",IF(Data!W2=2,\"Průběžné oznámení; doplnění\",IF(Data!W2=0,\"Průběžné oznámení;       ⃝   řádné              ⃝   doplnění\")))","v":"Průběžné oznámení; řádné"}]
["Období od - do",{"$f":"IF(Oznámení!B34=\"\",CONCATENATE(TEXT(Oznámení!B32,\"dd.mm.rrrr\")),Oznámení!B34)","v":"1.1.2021 - 31.12.2021"}]
["Věci nemovité 36)"]
[]
["Podzemní stavby se samostatným účelovým určením a drobné stavby se označí jménem ulice, názvem obce a poštovním směrovacím číslem. Nemovitosti v zahraničí se označí za pomoci dostupných identifikátorů (např.: obec, ulice, č. p.)."]
[]
[{"$f":"IF(Data!W2=0,\"Druh nemovité věci 38)*�\",\"Druh nemovité věci 38)*\")","v":"Druh nemovité věci 38)*"},"Vyberte druh nemovité věci"]
[{"$f":"IF(Data!W2=0,\"Specifikace druhu 39)*�\",IF(OR(B13=\"jiné\",B13=\"právo stavby\"),\"Specifikace druhu 39)\",\"Specifikace druhu 39)*\"))","v":"Specifikace druhu 39)*"},"Vyberte specifikaci druhu"]
[{"$f":"IF(Data!W2=0,\"Způsob nabytí 40)*        �\",\"Způsob nabytí 40)*\")","v":"Způsob nabytí 40)*"},"Vyberte způsob nabytí"]
["Pořizovací cena v Kč 41)*"]
[{"$f":"IF(OR(B13=Data!$I$4,B13=Data!$I$5,B13=Data!$I$6,B13=Data!$I$7,B13=Data!$I$3),\"Obec - katastrální území*\",\"Obec - katastrální území\")","v":"Obec - katastrální území*"}]
[{"$f":"IF(OR(B13=Data!$I$4,B13=Data!$I$5,B13=Data!$I$6,B13=Data!$I$7,B13=Data!$I$3),\"Číslo LV 42)*\",\"Číslo LV 42)\")","v":"Číslo LV 42)*"},null,2]
[{"$f":"IF(OR(B13=\"Vyberte druh nemovité věci\",B13=\"pozemek\",B13=\"stavba\",B13=\"jednotka\",B13=\"právo stavby\",B13=\"jiné\"),\"Parcelní číslo 42)*\",\"Parcelní číslo 42)\")","v":"Parcelní číslo 42)*"}]
[{"$f":"IF(OR(AND(B13=\"stavba\",B14=Data!$M$31),AND(B13=\"stavba\",B14=Data!$M$32),AND(B13=\"stavba\",Oznámení!B14=Data!$M$29),AND(B13=\"stavba\",B14=\"\")),\"Číslo popisné/evidenční 43)*\",IF(OR(B13=\"jiné\",B13=\"pozemek\",B13=\"právo stavby\",B13=\"jednotka\",B14=Data!$M$30,B14=Data!$M$33,B14=Data!$M$34,B14=Data!$M$35),\"Číslo popisné/evidenční 43)\",\"Číslo popisné/evidenční 43)*\"))","v":"Číslo popisné/evidenční 43)*"}]
["Stát, Obec, PSČ"]
[{"$f":"IF(Data!W2=0,\"Vlastnictví 44)                 �\",\"Vlastnictví 44)\")","v":"Vlastnictví 44)"},"Vyberte typ vlastnictví"]
["Poznámka 45)"]
[{"$f":"IF(Data!W2=0,\"Druh nemovité věci 38)*�\",\"Druh nemovité věci 38)*\")","v":"Druh nemovité věci 38)*"},"Vyberte druh nemovité věci"]
[{"$f":"IF(Data!W2=0,\"Specifikace druhu 39)*�\",IF(OR(B24=\"jiné\",B24=\"právo stavby\"),\"Specifikace druhu 39)\",\"Specifikace druhu 39)*\"))","v":"Specifikace druhu 39)*"},"Vyberte specifikaci druhu"]
[{"$f":"IF(Data!W2=0,\"Způsob nabytí 40)*        �\",\"Způsob nabytí 40)*\")","v":"Způsob nabytí 40)*"},"Vyberte způsob nabytí"]
["Pořizovací cena v Kč 41)*"]
[{"$f":"IF(OR(B24=Data!$I$4,B24=Data!$I$5,B24=Data!$I$6,B24=Data!$I$7,B24=Data!$I$3),\"Obec - katastrální území*\",\"Obec - katastrální území\")","v":"Obec - katastrální území*"},null,3]
[{"$f":"IF(OR(B24=Data!$I$4,B24=Data!$I$5,B24=Data!$I$6,B24=Data!$I$7,B24=Data!$I$3),\"Číslo LV 42)*\",\"Číslo LV 42)\")","v":"Číslo LV 42)*"}]
[{"$f":"IF(OR(B24=\"Vyberte druh nemovité věci\",B24=\"pozemek\",B24=\"stavba\",B24=\"jednotka\",B24=\"právo stavby\",B24=\"jiné\"),\"Parcelní číslo 42)*\",\"Parcelní číslo 42)\")","v":"Parcelní číslo 42)*"}]
[{"$f":"IF(OR(AND(B24=\"stavba\",B25=Data!$M$31),AND(B24=\"stavba\",B25=Data!$M$32),AND(B24=\"stavba\",Oznámení!B25=Data!$M$29),AND(B24=\"stavba\",B25=\"\")),\"Číslo popisné/evidenční 43)*\",IF(OR(B24=\"jiné\",B24=\"pozemek\",B24=\"právo stavby\",B24=\"jednotka\",B25=Data!$M$30,B25=Data!$M$33,B25=Data!$M$34,B25=Data!$M$35),\"Číslo popisné/evidenční 43)\",\"Číslo popisné/evidenční 43)*\"))","v":"Číslo popisné/evidenční 43)*"}]
["Stát, Obec, PSČ"]
[{"$f":"IF(Data!W2=0,\"Vlastnictví 44)                 �\",\"Vlastnictví 44)\")","v":"Vlastnictví 44)"},"Vyberte typ vlastnictví"]
["Poznámka 45)"]
[{"$f":"IF(Data!W2=0,\"Druh nemovité věci 38)*�\",\"Druh nemovité věci 38)*\")","v":"Druh nemovité věci 38)*"},"Vyberte druh nemovité věci"]
[{"$f":"IF(Data!W2=0,\"Specifikace druhu 39)*�\",IF(OR(B35=\"jiné\",B35=\"právo stavby\"),\"Specifikace druhu 39)\",\"Specifikace druhu 39)*\"))","v":"Specifikace druhu 39)*"},"Vyberte specifikaci druhu"]
[{"$f":"IF(Data!W2=0,\"Způsob nabytí 40)*        �\",\"Způsob nabytí 40)*\")","v":"Způsob nabytí 40)*"},"Vyberte způsob nabytí"]
["Pořizovací cena v Kč 41)*"]
[{"$f":"IF(OR(B35=Data!$I$4,B35=Data!$I$5,B35=Data!$I$6,B35=Data!$I$7,B35=Data!$I$3),\"Obec - katastrální území*\",\"Obec - katastrální území\")","v":"Obec - katastrální území*"},null," "]
[{"$f":"IF(OR(B35=Data!$I$4,B35=Data!$I$5,B35=Data!$I$6,B35=Data!$I$7,B35=Data!$I$3),\"Číslo LV 42)*\",\"Číslo LV 42)\")","v":"Číslo LV 42)*"},null,4]
[{"$f":"IF(OR(B35=\"Vyberte druh nemovité věci\",B35=\"pozemek\",B35=\"stavba\",B35=\"jednotka\",B35=\"právo stavby\",B35=\"jiné\"),\"Parcelní číslo 42)*\",\"Parcelní číslo 42)\")","v":"Parcelní číslo 42)*"}]
[{"$f":"IF(OR(AND(B35=\"stavba\",B36=Data!$M$31),AND(B35=\"stavba\",B36=Data!$M$32),AND(B35=\"stavba\",Oznámení!B36=Data!$M$29),AND(B35=\"stavba\",B36=\"\")),\"Číslo popisné/evidenční 43)*\",IF(OR(B35=\"jiné\",B35=\"pozemek\",B35=\"právo stavby\",B35=\"jednotka\",B36=Data!$M$30,B36=Data!$M$33,B36=Data!$M$34,B36=Data!$M$35),\"Číslo popisné/evidenční 43)\",\"Číslo popisné/evidenční 43)*\"))","v":"Číslo popisné/evidenční 43)*"}]
["Stát, Obec, PSČ"]
[{"$f":"IF(Data!W2=0,\"Vlastnictví 44)                 �\",\"Vlastnictví 44)\")","v":"Vlastnictví 44)"},"Vyberte typ vlastnictví"]
["Poznámka 45)"]
[{"$f":"IF(Data!W2=0,\"Druh nemovité věci 38)*�\",\"Druh nemovité věci 38)*\")","v":"Druh nemovité věci 38)*"},"Vyberte druh nemovité věci"]
[{"$f":"IF(Data!W2=0,\"Specifikace druhu 39)*�\",IF(OR(B46=\"jiné\",B46=\"právo stavby\"),\"Specifikace druhu 39)\",\"Specifikace druhu 39)*\"))","v":"Specifikace druhu 39)*"},"Vyberte specifikaci druhu"]
[{"$f":"IF(Data!W2=0,\"Způsob nabytí 40)*        �\",\"Způsob nabytí 40)*\")","v":"Způsob nabytí 40)*"},"Vyberte způsob nabytí"]
["Pořizovací cena v Kč 41)*"]
[{"$f":"IF(OR(B46=Data!$I$4,B46=Data!$I$5,B46=Data!$I$6,B46=Data!$I$7,B46=Data!$I$3),\"Obec - katastrální území*\",\"Obec - katastrální území\")","v":"Obec - katastrální území*"},null,5]
[{"$f":"IF(OR(B46=Data!$I$4,B46=Data!$I$5,B46=Data!$I$6,B46=Data!$I$7,B46=Data!$I$3),\"Číslo LV 42)*\",\"Číslo LV 42)\")","v":"Číslo LV 42)*"}]
[{"$f":"IF(OR(B46=\"Vyberte druh nemovité věci\",B46=\"pozemek\",B46=\"stavba\",B46=\"jednotka\",B46=\"právo stavby\",B46=\"jiné\"),\"Parcelní číslo 42)*\",\"Parcelní číslo 42)\")","v":"Parcelní číslo 42)*"}]
[{"$f":"IF(OR(AND(B46=\"stavba\",B47=Data!$M$31),AND(B46=\"stavba\",B47=Data!$M$32),AND(B46=\"stavba\",Oznámení!B47=Data!$M$29),AND(B46=\"stavba\",B47=\"\")),\"Číslo popisné/evidenční 43)*\",IF(OR(B46=\"jiné\",B46=\"pozemek\",B46=\"právo stavby\",B46=\"jednotka\",B47=Data!$M$30,B47=Data!$M$33,B47=Data!$M$34,B47=Data!$M$35),\"Číslo popisné/evidenční 43)\",\"Číslo popisné/evidenční 43)*\"))","v":"Číslo popisné/evidenční 43)*"}]
["Stát, Obec, PSČ"]
[{"$f":"IF(Data!W2=0,\"Vlastnictví 44)                 �\",\"Vlastnictví 44)\")","v":"Vlastnictví 44)"},"Vyberte typ vlastnictví"]
["Poznámka 45)"]
[{"$f":"IF(Data!W2=0,\"Druh nemovité věci 38)*�\",\"Druh nemovité věci 38)*\")","v":"Druh nemovité věci 38)*"},"Vyberte druh nemovité věci"]
[{"$f":"IF(Data!W2=0,\"Specifikace druhu 39)*�\",IF(OR(B57=\"jiné\",B57=\"právo stavby\"),\"Specifikace druhu 39)\",\"Specifikace druhu 39)*\"))","v":"Specifikace druhu 39)*"},"Vyberte specifikaci druhu"]
[{"$f":"IF(Data!W2=0,\"Způsob nabytí 40)*        �\",\"Způsob nabytí 40)*\")","v":"Způsob nabytí 40)*"},"Vyberte způsob nabytí"]
["Pořizovací cena v Kč 41)*"]
[{"$f":"IF(OR(B57=Data!$I$4,B57=Data!$I$5,B57=Data!$I$6,B57=Data!$I$7,B57=Data!$I$3),\"Obec - katastrální území*\",\"Obec - katastrální území\")","v":"Obec - katastrální území*"},null,6]
[{"$f":"IF(OR(B57=Data!$I$4,B57=Data!$I$5,B57=Data!$I$6,B57=Data!$I$7,B57=Data!$I$3),\"Číslo LV 42)*\",\"Číslo LV 42)\")","v":"Číslo LV 42)*"}]
[{"$f":"IF(OR(B57=\"Vyberte druh nemovité věci\",B57=\"pozemek\",B57=\"stavba\",B57=\"jednotka\",B57=\"právo stavby\",B57=\"jiné\"),\"Parcelní číslo 42)*\",\"Parcelní číslo 42)\")","v":"Parcelní číslo 42)*"}]
[{"$f":"IF(OR(AND(B57=\"stavba\",B58=Data!$M$31),AND(B57=\"stavba\",B58=Data!$M$32),AND(B57=\"stavba\",Oznámení!B58=Data!$M$29),AND(B57=\"stavba\",B58=\"\")),\"Číslo popisné/evidenční 43)*\",IF(OR(B57=\"jiné\",B57=\"pozemek\",B57=\"právo stavby\",B57=\"jednotka\",B58=Data!$M$30,B58=Data!$M$33,B58=Data!$M$34,B58=Data!$M$35),\"Číslo popisné/evidenční 43)\",\"Číslo popisné/evidenční 43)*\"))","v":"Číslo popisné/evidenční 43)*"}]
["Stát, Obec, PSČ"]
[{"$f":"IF(Data!W2=0,\"Vlastnictví 44)                 �\",\"Vlastnictví 44)\")","v":"Vlastnictví 44)"},"Vyberte typ vlastnictví"]
["Poznámka 45)"]
[{"$f":"IF(Data!W2=0,\"Druh nemovité věci 38)*�\",\"Druh nemovité věci 38)*\")","v":"Druh nemovité věci 38)*"},"Vyberte druh nemovité věci"]
[{"$f":"IF(Data!W2=0,\"Specifikace druhu 39)*�\",IF(OR(B68=\"jiné\",B68=\"právo stavby\"),\"Specifikace druhu 39)\",\"Specifikace druhu 39)*\"))","v":"Specifikace druhu 39)*"},"Vyberte specifikaci druhu"]
[{"$f":"IF(Data!W2=0,\"Způsob nabytí 40)*        �\",\"Způsob nabytí 40)*\")","v":"Způsob nabytí 40)*"},"Vyberte způsob nabytí"]
["Pořizovací cena v Kč 41)*",null,7]
[{"$f":"IF(OR(B68=Data!$I$4,B68=Data!$I$5,B68=Data!$I$6,B68=Data!$I$7,B68=Data!$I$3),\"Obec - katastrální území*\",\"Obec - katastrální území\")","v":"Obec - katastrální území*"},null," "]
[{"$f":"IF(OR(B68=Data!$I$4,B68=Data!$I$5,B68=Data!$I$6,B68=Data!$I$7,B68=Data!$I$3),\"Číslo LV 42)*\",\"Číslo LV 42)\")","v":"Číslo LV 42)*"}]
[{"$f":"IF(OR(B68=\"Vyberte druh nemovité věci\",B68=\"pozemek\",B68=\"stavba\",B68=\"jednotka\",B68=\"právo stavby\",B68=\"jiné\"),\"Parcelní číslo 42)*\",\"Parcelní číslo 42)\")","v":"Parcelní číslo 42)*"}]
[{"$f":"IF(OR(AND(B68=\"stavba\",B69=Data!$M$31),AND(B68=\"stavba\",B69=Data!$M$32),AND(B68=\"stavba\",Oznámení!B69=Data!$M$29),AND(B68=\"stavba\",B69=\"\")),\"Číslo popisné/evidenční 43)*\",IF(OR(B68=\"jiné\",B68=\"pozemek\",B68=\"právo stavby\",B68=\"jednotka\",B69=Data!$M$30,B69=Data!$M$33,B69=Data!$M$34,B69=Data!$M$35),\"Číslo popisné/evidenční 43)\",\"Číslo popisné/evidenční 43)*\"))","v":"Číslo popisné/evidenční 43)*"}]
["Stát, Obec, PSČ"]
[{"$f":"IF(Data!W2=0,\"Vlastnictví 44)                 �\",\"Vlastnictví 44)\")","v":"Vlastnictví 44)"},"Vyberte typ vlastnictví"]
["Poznámka 45)"]
[]
["Datum a podpis"]
[]
["Podzemní stavby se samostatným účelovým určením a drobné stavby se označí jménem ulice, názvem obce a poštovním směrovacím číslem. Nemovitosti v zahraničí se označí za pomoci dostupných identifikátorů (např.: obec, ulice, č. p.)."]
[]
[{"$f":"IF(Data!W2=0,\"Druh nemovité věci 38)*�\",\"Druh nemovité věci 38)*\")","v":"Druh nemovité věci 38)*"},"Vyberte druh nemovité věci"]
[{"$f":"IF(Data!W2=0,\"Specifikace druhu 39)*�\",IF(OR(B84=\"jiné\",B84=\"právo stavby\"),\"Specifikace druhu 39)\",\"Specifikace druhu 39)*\"))","v":"Specifikace druhu 39)*"},"Vyberte specifikaci druhu"]
[{"$f":"IF(Data!W2=0,\"Způsob nabytí 40)*        �\",\"Způsob nabytí 40)*\")","v":"Způsob nabytí 40)*"},"Vyberte způsob nabytí",8]
["Pořizovací cena v Kč 41)*"]
[{"$f":"IF(OR(B84=Data!$I$4,B84=Data!$I$5,B84=Data!$I$6,B84=Data!$I$7,B84=Data!$I$3),\"Obec - katastrální území*\",\"Obec - katastrální území\")","v":"Obec - katastrální území*"},null," "]
[{"$f":"IF(OR(B84=Data!$I$4,B84=Data!$I$5,B84=Data!$I$6,B84=Data!$I$7,B84=Data!$I$3),\"Číslo LV 42)*\",\"Číslo LV 42)\")","v":"Číslo LV 42)*"}]
[{"$f":"IF(OR(B84=\"Vyberte druh nemovité věci\",B84=\"pozemek\",B84=\"stavba\",B84=\"jednotka\",B84=\"právo stavby\",B84=\"jiné\"),\"Parcelní číslo 42)*\",\"Parcelní číslo 42)\")","v":"Parcelní číslo 42)*"}]
[{"$f":"IF(OR(AND(B84=\"stavba\",B85=Data!$M$31),AND(B84=\"stavba\",B85=Data!$M$32),AND(B84=\"stavba\",Oznámení!B85=Data!$M$29),AND(B84=\"stavba\",B85=\"\")),\"Číslo popisné/evidenční 43)*\",IF(OR(B84=\"jiné\",B84=\"pozemek\",B84=\"právo stavby\",B84=\"jednotka\",B85=Data!$M$30,B85=Data!$M$33,B85=Data!$M$34,B85=Data!$M$35),\"Číslo popisné/evidenční 43)\",\"Číslo popisné/evidenční 43)*\"))","v":"Číslo popisné/evidenční 43)*"}]
["Stát, Obec, PSČ"]
[{"$f":"IF(Data!W2=0,\"Vlastnictví 44)                 �\",\"Vlastnictví 44)\")","v":"Vlastnictví 44)"},"Vyberte typ vlastnictví"]
["Poznámka 45)"]
[{"$f":"IF(Data!W2=0,\"Druh nemovité věci 38)*�\",\"Druh nemovité věci 38)*\")","v":"Druh nemovité věci 38)*"},"Vyberte druh nemovité věci"]
[{"$f":"IF(Data!W2=0,\"Specifikace druhu 39)*�\",IF(OR(B95=\"jiné\",B95=\"právo stavby\"),\"Specifikace druhu 39)\",\"Specifikace druhu 39)*\"))","v":"Specifikace druhu 39)*"},"Vyberte specifikaci druhu"]
[{"$f":"IF(Data!W2=0,\"Způsob nabytí 40)*        �\",\"Způsob nabytí 40)*\")","v":"Způsob nabytí 40)*"},"Vyberte způsob nabytí",9]
["Pořizovací cena v Kč 41)*"]
[{"$f":"IF(OR(B95=Data!$I$4,B95=Data!$I$5,B95=Data!$I$6,B95=Data!$I$7,B95=Data!$I$3),\"Obec - katastrální území*\",\"Obec - katastrální území\")","v":"Obec - katastrální území*"},null," "]
[{"$f":"IF(OR(B95=Data!$I$4,B95=Data!$I$5,B95=Data!$I$6,B95=Data!$I$7,B95=Data!$I$3),\"Číslo LV 42)*\",\"Číslo LV 42)\")","v":"Číslo LV 42)*"}]
[{"$f":"IF(OR(B95=\"Vyberte druh nemovité věci\",B95=\"pozemek\",B95=\"stavba\",B95=\"jednotka\",B95=\"právo stavby\",B95=\"jiné\"),\"Parcelní číslo 42)*\",\"Parcelní číslo 42)\")","v":"Parcelní číslo 42)*"}]
[{"$f":"IF(OR(AND(B95=\"stavba\",B96=Data!$M$31),AND(B95=\"stavba\",B96=Data!$M$32),AND(B95=\"stavba\",Oznámení!B96=Data!$M$29),AND(B95=\"stavba\",B96=\"\")),\"Číslo popisné/evidenční 43)*\",IF(OR(B95=\"jiné\",B95=\"pozemek\",B95=\"právo stavby\",B95=\"jednotka\",B96=Data!$M$30,B96=Data!$M$33,B96=Data!$M$34,B96=Data!$M$35),\"Číslo popisné/evidenční 43)\",\"Číslo popisné/evidenční 43)*\"))","v":"Číslo popisné/evidenční 43)*"}]
["Stát, Obec, PSČ"]
[{"$f":"IF(Data!W2=0,\"Vlastnictví 44)                 �\",\"Vlastnictví 44)\")","v":"Vlastnictví 44)"},"Vyberte typ vlastnictví"]
["Poznámka 45)"]
[{"$f":"IF(Data!W2=0,\"Druh nemovité věci 38)*�\",\"Druh nemovité věci 38)*\")","v":"Druh nemovité věci 38)*"},"Vyberte druh nemovité věci"]
[{"$f":"IF(Data!$W$2=0,\"Specifikace druhu 39)*�\",IF(OR(B106=\"jiné\",B106=\"právo stavby\"),\"Specifikace druhu 39)\",\"Specifikace druhu 39)*\"))","v":"Specifikace druhu 39)*"},"Vyberte specifikaci druhu"]
[{"$f":"IF(Data!W2=0,\"Způsob nabytí 40)*        �\",\"Způsob nabytí 40)*\")","v":"Způsob nabytí 40)*"},"Vyberte způsob nabytí",10]
["Pořizovací cena v Kč 41)*"]
[{"$f":"IF(OR(B106=Data!$I$4,B106=Data!$I$5,B106=Data!$I$6,B106=Data!$I$7,B106=Data!$I$3),\"Obec - katastrální území*\",\"Obec - katastrální území\")","v":"Obec - katastrální území*"},null," "]
[{"$f":"IF(OR(B106=Data!$I$4,B106=Data!$I$5,B106=Data!$I$6,B106=Data!$I$7,B106=Data!$I$3),\"Číslo LV 42)*\",\"Číslo LV 42)\")","v":"Číslo LV 42)*"}]
[{"$f":"IF(OR(B106=\"Vyberte druh nemovité věci\",B106=\"pozemek\",B106=\"stavba\",B106=\"jednotka\",B106=\"právo stavby\",B106=\"jiné\"),\"Parcelní číslo 42)*\",\"Parcelní číslo 42)\")","v":"Parcelní číslo 42)*"}]
[{"$f":"IF(OR(AND(B106=\"stavba\",B107=Data!$M$31),AND(B106=\"stavba\",B107=Data!$M$32),AND(B106=\"stavba\",Oznámení!B107=Data!$M$29),AND(B106=\"stavba\",B107=\"\")),\"Číslo popisné/evidenční 43)*\",IF(OR(B106=\"jiné\",B106=\"pozemek\",B106=\"právo stavby\",B106=\"jednotka\",B107=Data!$M$30,B107=Data!$M$33,B107=Data!$M$34,B107=Data!$M$35),\"Číslo popisné/evidenční 43)\",\"Číslo popisné/evidenční 43)*\"))","v":"Číslo popisné/evidenční 43)*"}]
["Stát, Obec, PSČ"]
[{"$f":"IF(Data!W2=0,\"Vlastnictví 44)                 �\",\"Vlastnictví 44)\")","v":"Vlastnictví 44)"},"Vyberte typ vlastnictví"]
["Poznámka 45)"]
[{"$f":"IF(Data!W2=0,\"Druh nemovité věci 38)*�\",\"Druh nemovité věci 38)*\")","v":"Druh nemovité věci 38)*"},"Vyberte druh nemovité věci"]
[{"$f":"IF(Data!$W$2=0,\"Specifikace druhu 39)*�\",IF(OR(B117=\"jiné\",B117=\"právo stavby\"),\"Specifikace druhu 39)\",\"Specifikace druhu 39)*\"))","v":"Specifikace druhu 39)*"},"Vyberte specifikaci druhu"]
[{"$f":"IF(Data!W2=0,\"Způsob nabytí 40)*        �\",\"Způsob nabytí 40)*\")","v":"Způsob nabytí 40)*"},"Vyberte způsob nabytí",11]
["Pořizovací cena v Kč 41)*"]
[{"$f":"IF(OR(B117=Data!$I$4,B117=Data!$I$5,B117=Data!$I$6,B117=Data!$I$7,B117=Data!$I$3),\"Obec - katastrální území*\",\"Obec - katastrální území\")","v":"Obec - katastrální území*"},null," "]
[{"$f":"IF(OR(B117=Data!$I$4,B117=Data!$I$5,B117=Data!$I$6,B117=Data!$I$7,B117=Data!$I$3),\"Číslo LV 42)*\",\"Číslo LV 42)\")","v":"Číslo LV 42)*"}]
[{"$f":"IF(OR(B117=\"Vyberte druh nemovité věci\",B117=\"pozemek\",B117=\"stavba\",B117=\"jednotka\",B117=\"právo stavby\",B117=\"jiné\"),\"Parcelní číslo 42)*\",\"Parcelní číslo 42)\")","v":"Parcelní číslo 42)*"}]
[{"$f":"IF(OR(AND(B117=\"stavba\",B118=Data!$M$31),AND(B117=\"stavba\",B118=Data!$M$32),AND(B117=\"stavba\",Oznámení!B118=Data!$M$29),AND(B117=\"stavba\",B118=\"\")),\"Číslo popisné/evidenční 43)*\",IF(OR(B117=\"jiné\",B117=\"pozemek\",B117=\"právo stavby\",B117=\"jednotka\",B118=Data!$M$30,B118=Data!$M$33,B118=Data!$M$34,B118=Data!$M$35),\"Číslo popisné/evidenční 43)\",\"Číslo popisné/evidenční 43)*\"))","v":"Číslo popisné/evidenční 43)*"}]
["Stát, Obec, PSČ"]
[{"$f":"IF(Data!W2=0,\"Vlastnictví 44)                 �\",\"Vlastnictví 44)\")","v":"Vlastnictví 44)"},"Vyberte typ vlastnictví"]
["Poznámka 45)"]
[{"$f":"IF(Data!W2=0,\"Druh nemovité věci 38)*�\",\"Druh nemovité věci 38)*\")","v":"Druh nemovité věci 38)*"},"Vyberte druh nemovité věci"]
[{"$f":"IF(Data!$W$2=0,\"Specifikace druhu 39)*�\",IF(OR(B128=\"jiné\",B128=\"právo stavby\"),\"Specifikace druhu 39)\",\"Specifikace druhu 39)*\"))","v":"Specifikace druhu 39)*"},"Vyberte specifikaci druhu"]
[{"$f":"IF(Data!W2=0,\"Způsob nabytí 40)*        �\",\"Způsob nabytí 40)*\")","v":"Způsob nabytí 40)*"},"Vyberte způsob nabytí",12]
["Pořizovací cena v Kč 41)*"]
[{"$f":"IF(OR(B128=Data!$I$4,B128=Data!$I$5,B128=Data!$I$6,B128=Data!$I$7,B128=Data!$I$3),\"Obec - katastrální území*\",\"Obec - katastrální území\")","v":"Obec - katastrální území*"},null," "]
[{"$f":"IF(OR(B128=Data!$I$4,B128=Data!$I$5,B128=Data!$I$6,B128=Data!$I$7,B128=Data!$I$3),\"Číslo LV 42)*\",\"Číslo LV 42)\")","v":"Číslo LV 42)*"}]
[{"$f":"IF(OR(B128=\"Vyberte druh nemovité věci\",B128=\"pozemek\",B128=\"stavba\",B128=\"jednotka\",B128=\"právo stavby\",B128=\"jiné\"),\"Parcelní číslo 42)*\",\"Parcelní číslo 42)\")","v":"Parcelní číslo 42)*"}]
[{"$f":"IF(OR(AND(B128=\"stavba\",B129=Data!$M$31),AND(B128=\"stavba\",B129=Data!$M$32),AND(B128=\"stavba\",Oznámení!B129=Data!$M$29),AND(B128=\"stavba\",B129=\"\")),\"Číslo popisné/evidenční 43)*\",IF(OR(B128=\"jiné\",B128=\"pozemek\",B128=\"právo stavby\",B128=\"jednotka\",B129=Data!$M$30,B129=Data!$M$33,B129=Data!$M$34,B129=Data!$M$35),\"Číslo popisné/evidenční 43)\",\"Číslo popisné/evidenční 43)*\"))","v":"Číslo popisné/evidenční 43)*"}]
["Stát, Obec, PSČ"]
[{"$f":"IF(Data!W2=0,\"Vlastnictví 44)                 �\",\"Vlastnictví 44)\")","v":"Vlastnictví 44)"},"Vyberte typ vlastnictví"]
["Poznámka 45)"]
[{"$f":"IF(Data!W2=0,\"Druh nemovité věci 38)*�\",\"Druh nemovité věci 38)*\")","v":"Druh nemovité věci 38)*"},"Vyberte druh nemovité věci"]
[{"$f":"IF(Data!$W$2=0,\"Specifikace druhu 39)*�\",IF(OR(B139=\"jiné\",B139=\"právo stavby\"),\"Specifikace druhu 39)\",\"Specifikace druhu 39)*\"))","v":"Specifikace druhu 39)*"},"Vyberte specifikaci druhu"]
[{"$f":"IF(Data!W2=0,\"Způsob nabytí 40)*        �\",\"Způsob nabytí 40)*\")","v":"Způsob nabytí 40)*"},"Vyberte způsob nabytí",13]
["Pořizovací cena v Kč 41)*"]
[{"$f":"IF(OR(B139=Data!$I$4,B139=Data!$I$5,B139=Data!$I$6,B139=Data!$I$7,B139=Data!$I$3),\"Obec - katastrální území*\",\"Obec - katastrální území\")","v":"Obec - katastrální území*"},null," "]
[{"$f":"IF(OR(B139=Data!$I$4,B139=Data!$I$5,B139=Data!$I$6,B139=Data!$I$7,B139=Data!$I$3),\"Číslo LV 42)*\",\"Číslo LV 42)\")","v":"Číslo LV 42)*"}]
[{"$f":"IF(OR(B139=\"Vyberte druh nemovité věci\",B139=\"pozemek\",B139=\"stavba\",B139=\"jednotka\",B139=\"právo stavby\",B139=\"jiné\"),\"Parcelní číslo 42)*\",\"Parcelní číslo 42)\")","v":"Parcelní číslo 42)*"}]
[{"$f":"IF(OR(AND(B139=\"stavba\",B140=Data!$M$31),AND(B139=\"stavba\",B140=Data!$M$32),AND(B139=\"stavba\",Oznámení!B140=Data!$M$29),AND(B139=\"stavba\",B140=\"\")),\"Číslo popisné/evidenční 43)*\",IF(OR(B139=\"jiné\",B139=\"pozemek\",B139=\"právo stavby\",B139=\"jednotka\",B140=Data!$M$30,B140=Data!$M$33,B140=Data!$M$34,B140=Data!$M$35),\"Číslo popisné/evidenční 43)\",\"Číslo popisné/evidenční 43)*\"))","v":"Číslo popisné/evidenční 43)*"}]
["Stát, Obec, PSČ"]
[{"$f":"IF(Data!W2=0,\"Vlastnictví 44)                 �\",\"Vlastnictví 44)\")","v":"Vlastnictví 44)"},"Vyberte typ vlastnictví"]
["Poznámka 45)"]
[]
["Datum a podpis"]

{"sheet":"List č. 07","index":8,"n_rows":84,"n_cols":5,"rows_kept":84,"cut":false,"hidden":false,"merged":[[0,0,0,2],[2,1,2,2],[4,1,4,2],[8,0,9,2],[6,1,6,2],[7,1,7,2],[5,1,5,2]]}
[{"$f":"IF(Data!W2=1,\"Prazdný list netiskněte. Vyplňte pouze v případě, že počet políček v Oznámení nebude dostatečný.\",\"Vytiskněte a vyplňte pouze v případě, že počet políček v Oznámení nebude dostatečný\")","v":"Prazdný list netiskněte. Vyplňte pouze v případě, že počet políček v Oznámení nebude dostatečný."},null,null,null,{"$f":"Data!W2","v":1}]
[]
["OZ 3 - NS/12/2021","List č. 07 - Cenné papíry, zaknihované cenné papíry nebo práva s nimi spojená"]
[null,"List číslo"]
["Jméno, příjmení, datum narození",{"$f":"IF(Oznámení!B8=\"\",\"\",CONCATENATE(Oznámení!B8,\", nar. \",TEXT(Oznámení!B9,\"dd.mm.rrrr\")))","v":""}]
["Organizace",{"$f":"IF(Oznámení!B22=\"\",\"\",Oznámení!B22)","v":""}]
["Typ oznámení",{"$f":"IF(Data!W2=1,\"Průběžné oznámení; řádné\",IF(Data!W2=2,\"Průběžné oznámení; doplnění\",IF(Data!W2=0,\"Průběžné oznámení;       ⃝   řádné              ⃝   doplnění\")))","v":"Průběžné oznámení; řádné"}]
["Období od - do",{"$f":"IF(Oznámení!B34=\"\",CONCATENATE(TEXT(Oznámení!B32,\"dd.mm.rrrr\")),Oznámení!B34)","v":"1.1.2021 - 31.12.2021"}]
["Cenné papíry, zaknihované cenné papíry nebo práva s nimi spojená 46)"]
[]
[{"$f":"IF(Data!W2=0,\"Druh 47)*            �\",\"Druh 47)*\")","v":"Druh 47)*"},"Vyberte druh"]
["Emitent 48)*"]
["Počet"]
[{"$f":"IF(Data!W2=0,\"Vlastnictví 49)     �\",\"Vlastnictví 49)\")","v":"Vlastnictví 49)"},"Vyberte typ vlastnictví"]
["Pořizovací cena v Kč 50)"]
["Poznámka 51)"]
[{"$f":"IF(Data!W2=0,\"Druh 47)*            �\",\"Druh 47)*\")","v":"Druh 47)*"},"Vyberte druh"]
["Emitent 48)*"]
["Počet"]
[{"$f":"IF(Data!W2=0,\"Vlastnictví 49)     �\",\"Vlastnictví 49)\")","v":"Vlastnictví 49)"},"Vyberte typ vlastnictví"]
["Pořizovací cena v Kč 50)"]
["Poznámka 51)"]
[{"$f":"IF(Data!W2=0,\"Druh 47)*            �\",\"Druh 47)*\")","v":"Druh 47)*"},"Vyberte druh"]
["Emitent 48)*"]
["Počet"]
[{"$f":"IF(Data!W2=0,\"Vlastnictví 49)     �\",\"Vlastnictví 49)\")","v":"Vlastnictví 49)"},"Vyberte typ vlastnictví"]
["Pořizovací cena v Kč 50)"]
["Poznámka 51)"]
[{"$f":"IF(Data!W2=0,\"Druh 47)*            �\",\"Druh 47)*\")","v":"Druh 47)*"},"Vyberte druh"]
["Emitent 48)*"]
["Počet"]
[{"$f":"IF(Data!W2=0,\"Vlastnictví 49)     �\",\"Vlastnictví 49)\")","v":"Vlastnictví 49)"},"Vyberte typ vlastnictví"]
["Pořizovací cena v Kč 50)"]
["Poznámka 51)"]
[{"$f":"IF(Data!W2=0,\"Druh 47)*            �\",\"Druh 47)*\")","v":"Druh 47)*"},"Vyberte druh"]
["Emitent 48)*"]
["Počet"]
[{"$f":"IF(Data!W2=0,\"Vlastnictví 49)     �\",\"Vlastnictví 49)\")","v":"Vlastnictví 49)"},"Vyberte typ vlastnictví"]
["Pořizovací cena v Kč 50)"]
["Poznámka 51)"]
[{"$f":"IF(Data!W2=0,\"Druh 47)*            �\",\"Druh 47)*\")","v":"Druh 47)*"},"Vyberte druh"]
["Emitent 48)*"]
["Počet"]
[{"$f":"IF(Data!W2=0,\"Vlastnictví 49)     �\",\"Vlastnictví 49)\")","v":"Vlastnictví 49)"},"Vyberte typ vlastnictví"]
["Pořizovací cena v Kč 50)"]
["Poznámka 51)"]
[{"$f":"IF(Data!W2=0,\"Druh 47)*            �\",\"Druh 47)*\")","v":"Druh 47)*"},"Vyberte druh"]
["Emitent 48)*"]
["Počet"]
[{"$f":"IF(Data!W2=0,\"Vlastnictví 49)     �\",\"Vlastnictví 49)\")","v":"Vlastnictví 49)"},"Vyberte typ vlastnictví"]
["Pořizovací cena v Kč 50)"]
["Poznámka 51)"]
[{"$f":"IF(Data!W2=0,\"Druh 47)*            �\",\"Druh 47)*\")","v":"Druh 47)*"},"Vyberte druh"]
["Emitent 48)*"]
["Počet"]
[{"$f":"IF(Data!W2=0,\"Vlastnictví 49)     �\",\"Vlastnictví 49)\")","v":"Vlastnictví 49)"},"Vyberte typ vlastnictví"]
["Pořizovací cena v Kč 50)"]
["Poznámka 51)"]
[{"$f":"IF(Data!W2=0,\"Druh 47)*            �\",\"Druh 47)*\")","v":"Druh 47)*"},"Vyberte druh"]
["Emitent 48)*"]
["Počet"]
[{"$f":"IF(Data!W2=0,\"Vlastnictví 49)     �\",\"Vlastnictví 49)\")","v":"Vlastnictví 49)"},"Vyberte typ vlastnictví"]
["Pořizovací cena v Kč 50)"]
["Poznámka 51)"]
[{"$f":"IF(Data!W2=0,\"Druh 47)*            �\",\"Druh 47)*\")","v":"Druh 47)*"},"Vyberte druh"]
["Emitent 48)*"]
["Počet"]
[{"$f":"IF(Data!W2=0,\"Vlastnictví 49)     �\",\"Vlastnictví 49)\")","v":"Vlastnictví 49)"},"Vyberte typ vlastnictví"]
["Pořizovací cena v Kč 50)"]
["Poznámka 51)"]
[{"$f":"IF(Data!W2=0,\"Druh 47)*            �\",\"Druh 47)*\")","v":"Druh 47)*"},"Vyberte druh"]
["Emitent 48)*"]
["Počet"]
[{"$f":"IF(Data!W2=0,\"Vlastnictví 49)     �\",\"Vlastnictví 49)\")","v":"Vlastnictví 49)"},"Vyberte typ vlastnictví"]
["Pořizovací cena v Kč 50)"]
["Poznámka 51)"]
[{"$f":"IF(Data!W2=0,\"Druh 47)*            �\",\"Druh 47)*\")","v":"Druh 47)*"},"Vyberte druh"]
["Emitent 48)*"]
["Počet"]
[{"$f":"IF(Data!W2=0,\"Vlastnictví 49)     �\",\"Vlastnictví 49)\")","v":"Vlastnictví 49)"},"Vyberte typ vlastnictví"]
["Pořizovací cena v Kč 50)"]
["Poznámka 51)"]
[]
["Datum a podpis"]

{"sheet":"List č. 08","index":9,"n_rows":76,"n_cols":5,"rows_kept":76,"cut":false,"hidden":false,"merged":[[2,0,2,2],[0,0,0,2],[70,0,70,2],[30,0,30,2],[38,0,38,2],[46,0,46,2],[62,0,62,2],[54,0,54,2],[14,0,14,2],[22,0,22,2],[4,1,4,2],[8,0,9,2],[5,1,5,2],[6,1,6,2],[7,1,7,2]]}
[{"$f":"IF(Data!W2=1,\"Prazdný list netiskněte. Vyplňte pouze v případě, že počet políček v Oznámení nebude dostatečný.\",\"Vytiskněte a vyplňte pouze v případě, že počet políček v Oznámení nebude dostatečný\")","v":"Prazdný list netiskněte. Vyplňte pouze v případě, že počet políček v Oznámení nebude dostatečný."},null,null,null,{"$f":"Data!W2","v":1}]
[]
["OZ 3 - NS/12/2021                              List č. 08 - Podíl v obchodní korporaci nepředstavovaný cenným papírem nebo zaknihovaným cenným papírem"]
[null,"List číslo"]
["Jméno, příjmení, datum narození",{"$f":"IF(Oznámení!B8=\"\",\"\",CONCATENATE(Oznámení!B8,\", nar. \",TEXT(Oznámení!B9,\"dd.mm.rrrr\")))","v":""}]
["Organizace",{"$f":"IF(Oznámení!B22=\"\",\"\",Oznámení!B22)","v":""}]
["Typ oznámení",{"$f":"IF(Data!W2=1,\"Průběžné oznámení; řádné\",IF(Data!W2=2,\"Průběžné oznámení; doplnění\",IF(Data!W2=0,\"Průběžné oznámení;       ⃝   řádné              ⃝   doplnění\")))","v":"Průběžné oznámení; řádné"}]
["Období od - do",{"$f":"IF(Oznámení!B34=\"\",CONCATENATE(TEXT(Oznámení!B32,\"dd.mm.rrrr\")),Oznámení!B34)","v":"1.1.2021 - 31.12.2021"}]
["Podíl v obchodní korporaci nepředstavovaný cenným papírem nebo zaknihovaným cenným papírem 52)"]
[]
["Obchodní firma/název obchodní korporace 53)*"]
["IČO 54)*"]
["Velikost podílu v %*"]
[{"$f":"IF(Data!W2=0,\"Vlastnictví 55)       �\",\"Vlastnictví 55)\")","v":"Vlastnictví 55)"},"Vyberte typ vlastnictví"]
["Sídlo obchodní korporace 56)*"]
["Obec*, PSČ*, stát*"]
["Ulice*, č.p./č.o.*"]
["Poznámka  57)"]
["Obchodní firma/název obchodní korporace 53)*"]
["IČO 54)*"]
["Velikost podílu v %*"]
[{"$f":"IF(Data!W2=0,\"Vlastnictví 55)       �\",\"Vlastnictví 55)\")","v":"Vlastnictví 55)"},"Vyberte typ vlastnictví"]
["Sídlo obchodní korporace 56)*"]
["Obec*, PSČ*, stát*"]
["Ulice*, č.p./č.o.*"]
["Poznámka  57)"]
["Obchodní firma/název obchodní korporace 53)*"]
["IČO 54)*"]
["Velikost podílu v %*"]
[{"$f":"IF(Data!W2=0,\"Vlastnictví 55)       �\",\"Vlastnictví 55)\")","v":"Vlastnictví 55)"},"Vyberte typ vlastnictví"]
["Sídlo obchodní korporace 56)*"]
["Obec*, PSČ*, stát*"]
["Ulice*, č.p./č.o.*"]
["Poznámka  57)"]
["Obchodní firma/název obchodní korporace 53)*"]
["IČO 54)*"]
["Velikost podílu v %*"]
[{"$f":"IF(Data!W2=0,\"Vlastnictví 55)       �\",\"Vlastnictví 55)\")","v":"Vlastnictví 55)"},"Vyberte typ vlastnictví"]
["Sídlo obchodní korporace 56)*"]
["Obec*, PSČ*, stát*"]
["Ulice*, č.p./č.o.*"]
["Poznámka  57)"]
["Obchodní firma/název obchodní korporace 53)*"]
["IČO 54)*"]
["Velikost podílu v %*"]
[{"$f":"IF(Data!W2=0,\"Vlastnictví 55)       �\",\"Vlastnictví 55)\")","v":"Vlastnictví 55)"},"Vyberte typ vlastnictví"]
["Sídlo obchodní korporace 56)*"]
["Obec*, PSČ*, stát*"]
["Ulice*, č.p./č.o.*"]
["Poznámka  57)"]
["Obchodní firma/název obchodní korporace 53)*"]
["IČO 54)*"]
["Velikost podílu v %*"]
[{"$f":"IF(Data!W2=0,\"Vlastnictví 55)       �\",\"Vlastnictví 55)\")","v":"Vlastnictví 55)"},"Vyberte typ vlastnictví"]
["Sídlo obchodní korporace 56)*"]
["Obec*, PSČ*, stát*"]
["Ulice*, č.p./č.o.*"]
["Poznámka  57)"]
["Obchodní firma/název obchodní korporace 53)*"]
["IČO 54)*"]
["Velikost podílu v %*"]
[{"$f":"IF(Data!W2=0,\"Vlastnictví 55)       �\",\"Vlastnictví 55)\")","v":"Vlastnictví 55)"},"Vyberte typ vlastnictví"]
["Sídlo obchodní korporace 56)*"]
["Obec*, PSČ*, stát*"]
["Ulice*, č.p./č.o.*"]
["Poznámka  57)"]
["Obchodní firma/název obchodní korporace 53)*"]
["IČO 54)*"]
["Velikost podílu v %*"]
[{"$f":"IF(Data!W2=0,\"Vlastnictví 55)       �\",\"Vlastnictví 55)\")","v":"Vlastnictví 55)"},"Vyberte typ vlastnictví"]
["Sídlo obchodní korporace 56)*"]
["Obec*, PSČ*, stát*"]
["Ulice*, č.p./č.o.*"]
["Poznámka  57)"]
[]
["Datum a podpis"]

{"sheet":"List č. 09","index":10,"n_rows":83,"n_cols":5,"rows_kept":83,"cut":false,"hidden":false,"merged":[[0,0,0,3],[2,1,2,2],[4,1,4,2],[8,0,10,2],[6,1,6,2],[7,1,7,2],[5,1,5,2]]}
[{"$f":"IF(Data!W2=1,\"Prazdný list netiskněte. Vyplňte pouze v případě, že počet políček v Oznámení nebude dostatečný.\",\"Vytiskněte a vyplňte pouze v případě, že počet políček v Oznámení nebude dostatečný\")","v":"Prazdný list netiskněte. Vyplňte pouze v případě, že počet políček v Oznámení nebude dostatečný."},null,null,null,{"$f":"Data!W2","v":1}]
[]
["OZ 3 - NS/12/2021","List č. 09 - Jiné věci movité"]
[null,"List číslo"]
["Jméno, příjmení, datum narození",{"$f":"IF(Oznámení!B8=\"\",\"\",CONCATENATE(Oznámení!B8,\", nar. \",TEXT(Oznámení!B9,\"dd.mm.rrrr\")))","v":""}]
["Organizace",{"$f":"IF(Oznámení!B22=\"\",\"\",Oznámení!B22)","v":""}]
["Typ oznámení",{"$f":"IF(Data!W2=1,\"Průběžné oznámení; řádné\",IF(Data!W2=2,\"Průběžné oznámení; doplnění\",IF(Data!W2=0,\"Průběžné oznámení;       ⃝   řádné              ⃝   doplnění\")))","v":"Průběžné oznámení; řádné"}]
["Období od - do",{"$f":"IF(Oznámení!B34=\"\",CONCATENATE(TEXT(Oznámení!B32,\"dd.mm.rrrr\")),Oznámení!B34)","v":"1.1.2021 - 31.12.2021"}]
["Jiné věci movité určené podle druhu, nabyté v průběhu kalendářního roku, jejichž hodnota ve \nsvém souhrnu, do něhož se nezapočítávají věci, jejichž hodnota je nižší než 50 000 Kč, přesáhla částku \n500 000 Kč  58)"]
[]
[]
["Druh movité věci 59)*"]
["Pořizovací cena v Kč 60)*"]
[{"$f":"IF(Data!W2=0,\"Způsob nabytí 61)*     �\",\"Způsob nabytí 61)*\")","v":"Způsob nabytí 61)*"},"Vyberte způsob nabytí"]
[{"$f":"IF(Data!W2=0,\"Vlastnictví 62)             �\",\"Vlastnictví 62)\")","v":"Vlastnictví 62)"},"Vyberte typ vlastnictví"]
["Poznámka 63)"]
["Druh movité věci 59)*"]
["Pořizovací cena v Kč 60)*"]
[{"$f":"IF(Data!W2=0,\"Způsob nabytí 61)*     �\",\"Způsob nabytí 61)*\")","v":"Způsob nabytí 61)*"},"Vyberte způsob nabytí"]
[{"$f":"IF(Data!W2=0,\"Vlastnictví 62)             �\",\"Vlastnictví 62)\")","v":"Vlastnictví 62)"},"Vyberte typ vlastnictví"]
["Poznámka 63)"]
["Druh movité věci 59)*"]
["Pořizovací cena v Kč 60)*"]
[{"$f":"IF(Data!W2=0,\"Způsob nabytí 61)*     �\",\"Způsob nabytí 61)*\")","v":"Způsob nabytí 61)*"},"Vyberte způsob nabytí"]
[{"$f":"IF(Data!W2=0,\"Vlastnictví 62)             �\",\"Vlastnictví 62)\")","v":"Vlastnictví 62)"},"Vyberte typ vlastnictví"]
["Poznámka 63)"]
["Druh movité věci 59)*"]
["Pořizovací cena v Kč 60)*"]
[{"$f":"IF(Data!W2=0,\"Způsob nabytí 61)*     �\",\"Způsob nabytí 61)*\")","v":"Způsob nabytí 61)*"},"Vyberte způsob nabytí"]
[{"$f":"IF(Data!W2=0,\"Vlastnictví 62)             �\",\"Vlastnictví 62)\")","v":"Vlastnictví 62)"},"Vyberte typ vlastnictví"]
["Poznámka 63)"]
["Druh movité věci 59)*"]
["Pořizovací cena v Kč 60)*"]
[{"$f":"IF(Data!W2=0,\"Způsob nabytí 61)*     �\",\"Způsob nabytí 61)*\")","v":"Způsob nabytí 61)*"},"Vyberte způsob nabytí"]
[{"$f":"IF(Data!W2=0,\"Vlastnictví 62)             �\",\"Vlastnictví 62)\")","v":"Vlastnictví 62)"},"Vyberte typ vlastnictví"]
["Poznámka 63)"]
["Druh movité věci 59)*"]
["Pořizovací cena v Kč 60)*"]
[{"$f":"IF(Data!W2=0,\"Způsob nabytí 61)*     �\",\"Způsob nabytí 61)*\")","v":"Způsob nabytí 61)*"},"Vyberte způsob nabytí"]
[{"$f":"IF(Data!W2=0,\"Vlastnictví 62)             �\",\"Vlastnictví 62)\")","v":"Vlastnictví 62)"},"Vyberte typ vlastnictví"]
["Poznámka 63)"]
["Druh movité věci 59)*"]
["Pořizovací cena v Kč 60)*"]
[{"$f":"IF(Data!W2=0,\"Způsob nabytí 61)*     �\",\"Způsob nabytí 61)*\")","v":"Způsob nabytí 61)*"},"Vyberte způsob nabytí"]
[{"$f":"IF(Data!W2=0,\"Vlastnictví 62)             �\",\"Vlastnictví 62)\")","v":"Vlastnictví 62)"},"Vyberte typ vlastnictví"]
["Poznámka 63)"]
["Druh movité věci 59)*"]
["Pořizovací cena v Kč 60)*"]
[{"$f":"IF(Data!W2=0,\"Způsob nabytí 61)*     �\",\"Způsob nabytí 61)*\")","v":"Způsob nabytí 61)*"},"Vyberte způsob nabytí"]
[{"$f":"IF(Data!W2=0,\"Vlastnictví 62)             �\",\"Vlastnictví 62)\")","v":"Vlastnictví 62)"},"Vyberte typ vlastnictví"]
["Poznámka 63)"]
["Druh movité věci 59)*"]
["Pořizovací cena v Kč 60)*"]
[{"$f":"IF(Data!W2=0,\"Způsob nabytí 61)*     �\",\"Způsob nabytí 61)*\")","v":"Způsob nabytí 61)*"},"Vyberte způsob nabytí"]
[{"$f":"IF(Data!W2=0,\"Vlastnictví 62)             �\",\"Vlastnictví 62)\")","v":"Vlastnictví 62)"},"Vyberte typ vlastnictví"]
["Poznámka 63)"]
["Druh movité věci 59)*"]
["Pořizovací cena v Kč 60)*"]
[{"$f":"IF(Data!W2=0,\"Způsob nabytí 61)*     �\",\"Způsob nabytí 61)*\")","v":"Způsob nabytí 61)*"},"Vyberte způsob nabytí"]
[{"$f":"IF(Data!W2=0,\"Vlastnictví 62)             �\",\"Vlastnictví 62)\")","v":"Vlastnictví 62)"},"Vyberte typ vlastnictví"]
["Poznámka 63)"]
["Druh movité věci 59)*"]
["Pořizovací cena v Kč 60)*"]
[{"$f":"IF(Data!W2=0,\"Způsob nabytí 61)*     �\",\"Způsob nabytí 61)*\")","v":"Způsob nabytí 61)*"},"Vyberte způsob nabytí"]
[{"$f":"IF(Data!W2=0,\"Vlastnictví 62)             �\",\"Vlastnictví 62)\")","v":"Vlastnictví 62)"},"Vyberte typ vlastnictví"]
["Poznámka 63)"]
["Druh movité věci 59)*"]
["Pořizovací cena v Kč 60)*"]
[{"$f":"IF(Data!W2=0,\"Způsob nabytí 61)*     �\",\"Způsob nabytí 61)*\")","v":"Způsob nabytí 61)*"},"Vyberte způsob nabytí"]
[{"$f":"IF(Data!W2=0,\"Vlastnictví 62)             �\",\"Vlastnictví 62)\")","v":"Vlastnictví 62)"},"Vyberte typ vlastnictví"]
["Poznámka 63)"]
["Druh movité věci 59)*"]
["Pořizovací cena v Kč 60)*"]
[{"$f":"IF(Data!W2=0,\"Způsob nabytí 61)*     �\",\"Způsob nabytí 61)*\")","v":"Způsob nabytí 61)*"},"Vyberte způsob nabytí"]
[{"$f":"IF(Data!W2=0,\"Vlastnictví 62)             �\",\"Vlastnictví 62)\")","v":"Vlastnictví 62)"},"Vyberte typ vlastnictví"]
["Poznámka 63)"]
["Druh movité věci 59)*"]
["Pořizovací cena v Kč 60)*"]
[{"$f":"IF(Data!W2=0,\"Způsob nabytí 61)*     �\",\"Způsob nabytí 61)*\")","v":"Způsob nabytí 61)*"},"Vyberte způsob nabytí"]
[{"$f":"IF(Data!W2=0,\"Vlastnictví 62)             �\",\"Vlastnictví 62)\")","v":"Vlastnictví 62)"},"Vyberte typ vlastnictví"]
["Poznámka 63)"]
[]
["Datum a podpis"]

{"sheet":"List č. 10 - právnická osoba","index":11,"n_rows":161,"n_cols":5,"rows_kept":161,"cut":false,"hidden":false,"merged":[[0,0,0,2],[2,1,2,2],[4,1,4,2],[8,0,9,2],[6,1,6,2],[7,1,7,2],[5,1,5,2]]}
[{"$f":"IF(Data!W2=1,\"Prazdný list netiskněte. Vyplňte pouze v případě, že počet políček v Oznámení nebude dostatečný.\",\"Vytiskněte a vyplňte pouze v případě, že počet políček v Oznámení nebude dostatečný\")","v":"Prazdný list netiskněte. Vyplňte pouze v případě, že počet políček v Oznámení nebude dostatečný."},null,null,null,{"$f":"Data!W2","v":1}]
[]
["OZ 3 - NS/12/2021","List č. 10 - Jakékoliv peněžité příjmy nebo jiné majetkové výhody a dary"]
[null,"List číslo"]
["Jméno, příjmení, datum narození",{"$f":"IF(Oznámení!B8=\"\",\"\",CONCATENATE(Oznámení!B8,\", nar. \",TEXT(Oznámení!B9,\"dd.mm.rrrr\")))","v":""}]
["Organizace",{"$f":"IF(Oznámení!B22=\"\",\"\",Oznámení!B22)","v":""}]
["Typ oznámení",{"$f":"IF(Data!W2=1,\"Průběžné oznámení; řádné\",IF(Data!W2=2,\"Průběžné oznámení; doplnění\",IF(Data!W2=0,\"Průběžné oznámení;       ⃝   řádné              ⃝   doplnění\")))","v":"Průběžné oznámení; řádné"}]
["Období od - do",{"$f":"IF(Oznámení!B34=\"\",CONCATENATE(TEXT(Oznámení!B32,\"dd.mm.rrrr\")),Oznámení!B34)","v":"1.1.2021 - 31.12.2021"}]
["Jakékoliv peněžité příjmy nebo jiné majetkové výhody a dary, pokud jejich souhrnná výše přesáhne v kalendářním roce částku 100 000 Kč 64)"]
[]
[null,{"$f":"IF(C9=\"Ne\",\"Zdroj - právnická osoba\",\"Zdroj - právnická osoba*\")","v":"Zdroj - právnická osoba*"}]
[{"$f":"IF(Data!W2=0,\"Druh příjmu 65)*        �\",\"Druh příjmu 65)*\")","v":"Druh příjmu 65)*"},"Vyberte druh příjmu"]
["Specifikace"]
["Výše příjmu v Kč 66)*"]
["Obchodní firma/název 67)*"]
["IČO 68)*"]
["Sídlo právnické osoby 69)*"]
["Obec*, PSČ*, stát*"]
["Ulice*, č.p./č.o.*"]
["Poznámka 70)"]
[{"$f":"IF(Data!W2=0,\"Druh příjmu 65)*        �\",\"Druh příjmu 65)*\")","v":"Druh příjmu 65)*"},"Vyberte druh příjmu"]
["Specifikace"]
["Výše příjmu v Kč 66)*"]
["Obchodní firma/název 67)*"]
["IČO 68)*"]
["Sídlo právnické osoby 69)*"]
["Obec*, PSČ*, stát*"]
["Ulice*, č.p./č.o.*"]
["Poznámka 70)"]
[{"$f":"IF(Data!W2=0,\"Druh příjmu 65)*        �\",\"Druh příjmu 65)*\")","v":"Druh příjmu 65)*"},"Vyberte druh příjmu"]
["Specifikace"]
["Výše příjmu v Kč 66)*"]
["Obchodní firma/název 67)*"]
["IČO 68)*"]
["Sídlo právnické osoby 69)*"]
["Obec*, PSČ*, stát*"]
["Ulice*, č.p./č.o.*"]
["Poznámka 70)"]
[{"$f":"IF(Data!W2=0,\"Druh příjmu 65)*        �\",\"Druh příjmu 65)*\")","v":"Druh příjmu 65)*"},"Vyberte druh příjmu"]
["Specifikace"]
["Výše příjmu v Kč 66)*"]
["Obchodní firma/název 67)*"]
["IČO 68)*"]
["Sídlo právnické osoby 69)*"]
["Obec*, PSČ*, stát*"]
["Ulice*, č.p./č.o.*"]
["Poznámka 70)"]
[{"$f":"IF(Data!W2=0,\"Druh příjmu 65)*        �\",\"Druh příjmu 65)*\")","v":"Druh příjmu 65)*"},"Vyberte druh příjmu"]
["Specifikace"]
["Výše příjmu v Kč 66)*"]
["Obchodní firma/název 67)*"]
["IČO 68)*"]
["Sídlo právnické osoby 69)*"]
["Obec*, PSČ*, stát*"]
["Ulice*, č.p./č.o.*"]
["Poznámka 70)"]
[{"$f":"IF(Data!W2=0,\"Druh příjmu 65)*        �\",\"Druh příjmu 65)*\")","v":"Druh příjmu 65)*"},"Vyberte druh příjmu"]
["Specifikace"]
["Výše příjmu v Kč 66)*"]
["Obchodní firma/název 67)*"]
["IČO 68)*"]
["Sídlo právnické osoby 69)*"]
["Obec*, PSČ*, stát*"]
["Ulice*, č.p./č.o.*"]
["Poznámka 70)"]
[{"$f":"IF(Data!W2=0,\"Druh příjmu 65)*        �\",\"Druh příjmu 65)*\")","v":"Druh příjmu 65)*"},"Vyberte druh příjmu"]
["Specifikace"]
["Výše příjmu v Kč 66)*"]
["Obchodní firma/název 67)*"]
["IČO 68)*"]
["Sídlo právnické osoby 69)*"]
["Obec*, PSČ*, stát*"]
["Ulice*, č.p./č.o.*"]
["Poznámka 70)"]
[{"$f":"IF(Data!W2=0,\"Druh příjmu 65)*        �\",\"Druh příjmu 65)*\")","v":"Druh příjmu 65)*"},"Vyberte druh příjmu"]
["Specifikace"]
["Výše příjmu v Kč 66)*"]
["Obchodní firma/název 67)*"]
["IČO 68)*"]
["Sídlo právnické osoby 69)*"]
["Obec*, PSČ*, stát*"]
["Ulice*, č.p./č.o.*"]
["Poznámka 70)"]
[]
["Datum a podpis"]
[]
[]
[{"$f":"IF(Data!W2=0,\"Druh příjmu 65)*        �\",\"Druh příjmu 65)*\")","v":"Druh příjmu 65)*"},"Vyberte druh příjmu"]
["Specifikace"]
["Výše příjmu v Kč 66)*"]
["Obchodní firma/název 67)*"]
["IČO 68)*"]
["Sídlo právnické osoby 69)*"]
["Obec*, PSČ*, stát*"]
["Ulice*, č.p./č.o.*"]
["Poznámka 70)"]
[{"$f":"IF(Data!W2=0,\"Druh příjmu 65)*        �\",\"Druh příjmu 65)*\")","v":"Druh příjmu 65)*"},"Vyberte druh příjmu"]
["Specifikace"]
["Výše příjmu v Kč 66)*"]
["Obchodní firma/název 67)*"]
["IČO 68)*"]
["Sídlo právnické osoby 69)*"]
["Obec*, PSČ*, stát*"]
["Ulice*, č.p./č.o.*"]
["Poznámka 70)"]
[{"$f":"IF(Data!W2=0,\"Druh příjmu 65)*        �\",\"Druh příjmu 65)*\")","v":"Druh příjmu 65)*"},"Vyberte druh příjmu"]
["Specifikace"]
["Výše příjmu v Kč 66)*"]
["Obchodní firma/název 67)*"]
["IČO 68)*"]
["Sídlo právnické osoby 69)*"]
["Obec*, PSČ*, stát*"]
["Ulice*, č.p./č.o.*"]
["Poznámka 70)"]
[{"$f":"IF(Data!W2=0,\"Druh příjmu 65)*        �\",\"Druh příjmu 65)*\")","v":"Druh příjmu 65)*"},"Vyberte druh příjmu"]
["Specifikace"]
["Výše příjmu v Kč 66)*"]
["Obchodní firma/název 67)*"]
["IČO 68)*"]
["Sídlo právnické osoby 69)*"]
["Obec*, PSČ*, stát*"]
["Ulice*, č.p./č.o.*"]
["Poznámka 70)"]
[{"$f":"IF(Data!W2=0,\"Druh příjmu 65)*        �\",\"Druh příjmu 65)*\")","v":"Druh příjmu 65)*"},"Vyberte druh příjmu"]
["Specifikace"]
["Výše příjmu v Kč 66)*"]
["Obchodní firma/název 67)*"]
["IČO 68)*"]
["Sídlo právnické osoby 69)*"]
["Obec*, PSČ*, stát*"]
["Ulice*, č.p./č.o.*"]
["Poznámka 70)"]
[{"$f":"IF(Data!W2=0,\"Druh příjmu 65)*        �\",\"Druh příjmu 65)*\")","v":"Druh příjmu 65)*"},"Vyberte druh příjmu"]
["Specifikace"]
["Výše příjmu v Kč 66)*"]
["Obchodní firma/název 67)*"]
["IČO 68)*"]
["Sídlo právnické osoby 69)*"]
["Obec*, PSČ*, stát*"]
["Ulice*, č.p./č.o.*"]
["Poznámka 70)"]
[{"$f":"IF(Data!W2=0,\"Druh příjmu 65)*        �\",\"Druh příjmu 65)*\")","v":"Druh příjmu 65)*"},"Vyberte druh příjmu"]
["Specifikace"]
["Výše příjmu v Kč 66)*"]
["Obchodní firma/název 67)*"]
["IČO 68)*"]
["Sídlo právnické osoby 69)*"]
["Obec*, PSČ*, stát*"]
["Ulice*, č.p./č.o.*"]
["Poznámka 70)"]
[{"$f":"IF(Data!W2=0,\"Druh příjmu 65)*        �\",\"Druh příjmu 65)*\")","v":"Druh příjmu 65)*"},"Vyberte druh příjmu"]
["Specifikace"]
["Výše příjmu v Kč 66)*"]
["Obchodní firma/název 67)*"]
["IČO 68)*"]
["Sídlo právnické osoby 69)*"]
["Obec*, PSČ*, stát*"]
["Ulice*, č.p./č.o.*"]
["Poznámka 70)"]
[]
["Datum a podpis"]

{"sheet":"List č. 10 - fyzická osoba","index":12,"n_rows":83,"n_cols":5,"rows_kept":83,"cut":false,"hidden":false,"merged":[[0,0,0,2],[2,1,2,2],[4,1,4,2],[8,0,9,2],[6,1,6,2],[7,1,7,2],[5,1,5,2]]}
[{"$f":"IF(Data!W2=1,\"Prazdný list netiskněte. Vyplňte pouze v případě, že počet políček v Oznámení nebude dostatečný.\",\"Vytiskněte a vyplňte pouze v případě, že počet políček v Oznámení nebude dostatečný\")","v":"Prazdný list netiskněte. Vyplňte pouze v případě, že počet políček v Oznámení nebude dostatečný."},null,null,null,{"$f":"Data!W2","v":1}]
[]
["OZ 3 - NS/12/2021","List č. 10 - Jakékoliv peněžité příjmy nebo jiné majetkové výhody a dary"]
[null,"List číslo"]
["Jméno, příjmení, datum narození",{"$f":"IF(Oznámení!B8=\"\",\"\",CONCATENATE(Oznámení!B8,\", nar. \",TEXT(Oznámení!B9,\"dd.mm.rrrr\")))","v":""}]
["Organizace",{"$f":"IF(Oznámení!B22=\"\",\"\",Oznámení!B22)","v":""}]
["Typ oznámení",{"$f":"IF(Data!W2=1,\"Průběžné oznámení; řádné\",IF(Data!W2=2,\"Průběžné oznámení; doplnění\",IF(Data!W2=0,\"Průběžné oznámení;       ⃝   řádné              ⃝   doplnění\")))","v":"Průběžné oznámení; řádné"}]
["Období od - do",{"$f":"IF(Oznámení!B34=\"\",CONCATENATE(TEXT(Oznámení!B32,\"dd.mm.rrrr\")),Oznámení!B34)","v":"1.1.2021 - 31.12.2021"}]
["Jakékoliv peněžité příjmy nebo jiné majetkové výhody a dary, pokud jejich souhrnná výše přesáhne v kalendářním roce částku 100 000 Kč 64)"]
[]
[null,"Zdroj - fyzická osoba*"]
[{"$f":"IF(Data!W2=0,\"Druh příjmu 65)*        �\",\"Druh příjmu 65)*\")","v":"Druh příjmu 65)*"},"Vyberte druh příjmu"]
["Specifikace"]
["Výše příjmu v Kč 66)*"]
["Jméno*, příjmení*"]
["Poznámka 70)"]
[{"$f":"IF(Data!W2=0,\"Druh příjmu 65)*        �\",\"Druh příjmu 65)*\")","v":"Druh příjmu 65)*"},"Vyberte druh příjmu"]
["Specifikace"]
["Výše příjmu v Kč 66)*"]
["Jméno*, příjmení*"]
["Poznámka 70)"]
[{"$f":"IF(Data!W2=0,\"Druh příjmu 65)*        �\",\"Druh příjmu 65)*\")","v":"Druh příjmu 65)*"},"Vyberte druh příjmu"]
["Specifikace"]
["Výše příjmu v Kč 66)*"]
["Jméno*, příjmení*"]
["Poznámka 70)"]
[{"$f":"IF(Data!W2=0,\"Druh příjmu 65)*        �\",\"Druh příjmu 65)*\")","v":"Druh příjmu 65)*"},"Vyberte druh příjmu"]
["Specifikace"]
["Výše příjmu v Kč 66)*"]
["Jméno*, příjmení*"]
["Poznámka 70)"]
[{"$f":"IF(Data!W2=0,\"Druh příjmu 65)*        �\",\"Druh příjmu 65)*\")","v":"Druh příjmu 65)*"},"Vyberte druh příjmu"]
["Specifikace"]
["Výše příjmu v Kč 66)*"]
["Jméno*, příjmení*"]
["Poznámka 70)"]
[{"$f":"IF(Data!W2=0,\"Druh příjmu 65)*        �\",\"Druh příjmu 65)*\")","v":"Druh příjmu 65)*"},"Vyberte druh příjmu"]
["Specifikace"]
["Výše příjmu v Kč 66)*"]
["Jméno*, příjmení*"]
["Poznámka 70)"]
[{"$f":"IF(Data!W2=0,\"Druh příjmu 65)*        �\",\"Druh příjmu 65)*\")","v":"Druh příjmu 65)*"},"Vyberte druh příjmu"]
["Specifikace"]
["Výše příjmu v Kč 66)*"]
["Jméno*, příjmení*"]
["Poznámka 70)"]
[{"$f":"IF(Data!W2=0,\"Druh příjmu 65)*        �\",\"Druh příjmu 65)*\")","v":"Druh příjmu 65)*"},"Vyberte druh příjmu"]
["Specifikace"]
["Výše příjmu v Kč 66)*"]
["Jméno*, příjmení*"]
["Poznámka 70)"]
[{"$f":"IF(Data!W2=0,\"Druh příjmu 65)*        �\",\"Druh příjmu 65)*\")","v":"Druh příjmu 65)*"},"Vyberte druh příjmu"]
["Specifikace"]
["Výše příjmu v Kč 66)*"]
["Jméno*, příjmení*"]
["Poznámka 70)"]
[{"$f":"IF(Data!W2=0,\"Druh příjmu 65)*        �\",\"Druh příjmu 65)*\")","v":"Druh příjmu 65)*"},"Vyberte druh příjmu"]
["Specifikace"]
["Výše příjmu v Kč 66)*"]
["Jméno*, příjmení*"]
["Poznámka 70)"]
[{"$f":"IF(Data!W2=0,\"Druh příjmu 65)*        �\",\"Druh příjmu 65)*\")","v":"Druh příjmu 65)*"},"Vyberte druh příjmu"]
["Specifikace"]
["Výše příjmu v Kč 66)*"]
["Jméno*, příjmení*"]
["Poznámka 70)"]
[{"$f":"IF(Data!W2=0,\"Druh příjmu 65)*        �\",\"Druh příjmu 65)*\")","v":"Druh příjmu 65)*"},"Vyberte druh příjmu"]
["Specifikace"]
["Výše příjmu v Kč 66)*"]
["Jméno*, příjmení*"]
["Poznámka 70)"]
[{"$f":"IF(Data!W2=0,\"Druh příjmu 65)*        �\",\"Druh příjmu 65)*\")","v":"Druh příjmu 65)*"},"Vyberte druh příjmu"]
["Specifikace"]
["Výše příjmu v Kč 66)*"]
["Jméno*, příjmení*"]
["Poznámka 70)"]
[{"$f":"IF(Data!W2=0,\"Druh příjmu 65)*        �\",\"Druh příjmu 65)*\")","v":"Druh příjmu 65)*"},"Vyberte druh příjmu"]
["Specifikace"]
["Výše příjmu v Kč 66)*"]
["Jméno*, příjmení*"]
["Poznámka 70)"]
[]
["Datum a podpis"]

{"sheet":"List č. 10 - jiný zdroj","index":13,"n_rows":85,"n_cols":5,"rows_kept":85,"cut":false,"hidden":false,"merged":[[0,0,0,2],[2,1,2,2],[10,1,10,2],[4,1,4,2],[8,0,9,2],[6,1,6,2],[7,1,7,2],[5,1,5,2]]}
[{"$f":"IF(Data!W2=1,\"Prazdný list netiskněte. Vyplňte pouze v případě, že počet políček v Oznámení nebude dostatečný.\",\"Vytiskněte a vyplňte pouze v případě, že počet políček v Oznámení nebude dostatečný\")","v":"Prazdný list netiskněte. Vyplňte pouze v případě, že počet políček v Oznámení nebude dostatečný."},null,null,null,{"$f":"Data!W2","v":1}]
[]
["OZ 3 - NS/12/2021","List č. 10 - Jakékoliv peněžité příjmy nebo jiné majetkové výhody a dary"]
[null,"List číslo"]
["Jméno, příjmení, datum narození",{"$f":"IF(Oznámení!B8=\"\",\"\",CONCATENATE(Oznámení!B8,\", nar. \",TEXT(Oznámení!B9,\"dd.mm.rrrr\")))","v":""}]
["Organizace",{"$f":"IF(Oznámení!B22=\"\",\"\",Oznámení!B22)","v":""}]
["Typ oznámení",{"$f":"IF(Data!W2=1,\"Průběžné oznámení; řádné\",IF(Data!W2=2,\"Průběžné oznámení; doplnění\",IF(Data!W2=0,\"Průběžné oznámení;       ⃝   řádné              ⃝   doplnění\")))","v":"Průběžné oznámení; řádné"}]
["Období od - do",{"$f":"IF(Oznámení!B34=\"\",CONCATENATE(TEXT(Oznámení!B32,\"dd.mm.rrrr\")),Oznámení!B34)","v":"1.1.2021 - 31.12.2021"}]
["Jakékoliv peněžité příjmy nebo jiné majetkové výhody a dary, pokud jejich souhrnná výše přesáhne v kalendářním roce částku 100 000 Kč 64)"]
[]
[null,"Zdroj - jiný 71)*"]
[{"$f":"IF(Data!W2=0,\"Druh příjmu 65)*        �\",\"Druh příjmu 65)*\")","v":"Druh příjmu 65)*"},"Vyberte druh příjmu"]
["Specifikace"]
["Výše příjmu v Kč 66)*"]
["Poznámka 70)"]
[{"$f":"IF(Data!W2=0,\"Druh příjmu 65)*        �\",\"Druh příjmu 65)*\")","v":"Druh příjmu 65)*"},"Vyberte druh příjmu"]
["Specifikace"]
["Výše příjmu v Kč 66)*"]
["Poznámka 70)"]
[{"$f":"IF(Data!W2=0,\"Druh příjmu 65)*        �\",\"Druh příjmu 65)*\")","v":"Druh příjmu 65)*"},"Vyberte druh příjmu"]
["Specifikace"]
["Výše příjmu v Kč 66)*"]
["Poznámka 70)"]
[{"$f":"IF(Data!W2=0,\"Druh příjmu 65)*        �\",\"Druh příjmu 65)*\")","v":"Druh příjmu 65)*"},"Vyberte druh příjmu"]
["Specifikace"]
["Výše příjmu v Kč 66)*"]
["Poznámka 70)"]
[{"$f":"IF(Data!W2=0,\"Druh příjmu 65)*        �\",\"Druh příjmu 65)*\")","v":"Druh příjmu 65)*"},"Vyberte druh příjmu"]
["Specifikace"]
["Výše příjmu v Kč 66)*"]
["Poznámka 70)"]
[{"$f":"IF(Data!W2=0,\"Druh příjmu 65)*        �\",\"Druh příjmu 65)*\")","v":"Druh příjmu 65)*"},"Vyberte druh příjmu"]
["Specifikace"]
["Výše příjmu v Kč 66)*"]
["Poznámka 70)"]
[{"$f":"IF(Data!W2=0,\"Druh příjmu 65)*        �\",\"Druh příjmu 65)*\")","v":"Druh příjmu 65)*"},"Vyberte druh příjmu"]
["Specifikace"]
["Výše příjmu v Kč 66)*"]
["Poznámka 70)"]
[{"$f":"IF(Data!W2=0,\"Druh příjmu 65)*        �\",\"Druh příjmu 65)*\")","v":"Druh příjmu 65)*"},"Vyberte druh příjmu"]
["Specifikace"]
["Výše příjmu v Kč 66)*"]
["Poznámka 70)"]
[{"$f":"IF(Data!W2=0,\"Druh příjmu 65)*        �\",\"Druh příjmu 65)*\")","v":"Druh příjmu 65)*"},"Vyberte druh příjmu"]
["Specifikace"]
["Výše příjmu v Kč 66)*"]
["Poznámka 70)"]
[{"$f":"IF(Data!W2=0,\"Druh příjmu 65)*        �\",\"Druh příjmu 65)*\")","v":"Druh příjmu 65)*"},"Vyberte druh příjmu"]
["Specifikace"]
["Výše příjmu v Kč 66)*"]
["Poznámka 70)"]
[{"$f":"IF(Data!W2=0,\"Druh příjmu 65)*        �\",\"Druh příjmu 65)*\")","v":"Druh příjmu 65)*"},"Vyberte druh příjmu"]
["Specifikace"]
["Výše příjmu v Kč 66)*"]
["Poznámka 70)"]
[{"$f":"IF(Data!W2=0,\"Druh příjmu 65)*        �\",\"Druh příjmu 65)*\")","v":"Druh příjmu 65)*"},"Vyberte druh příjmu"]
["Specifikace"]
["Výše příjmu v Kč 66)*"]
["Poznámka 70)"]
[{"$f":"IF(Data!W2=0,\"Druh příjmu 65)*        �\",\"Druh příjmu 65)*\")","v":"Druh příjmu 65)*"},"Vyberte druh příjmu"]
["Specifikace"]
["Výše příjmu v Kč 66)*"]
["Poznámka 70)"]
[{"$f":"IF(Data!W2=0,\"Druh příjmu 65)*        �\",\"Druh příjmu 65)*\")","v":"Druh příjmu 65)*"},"Vyberte druh příjmu"]
["Specifikace"]
["Výše příjmu v Kč 66)*"]
["Poznámka 70)"]
[{"$f":"IF(Data!W2=0,\"Druh příjmu 65)*        �\",\"Druh příjmu 65)*\")","v":"Druh příjmu 65)*"},"Vyberte druh příjmu"]
["Specifikace"]
["Výše příjmu v Kč 66)*"]
["Poznámka 70)"]
[{"$f":"IF(Data!W2=0,\"Druh příjmu 65)*        �\",\"Druh příjmu 65)*\")","v":"Druh příjmu 65)*"},"Vyberte druh příjmu"]
["Specifikace"]
["Výše příjmu v Kč 66)*"]
["Poznámka 70)"]
[{"$f":"IF(Data!W2=0,\"Druh příjmu 65)*        �\",\"Druh příjmu 65)*\")","v":"Druh příjmu 65)*"},"Vyberte druh příjmu"]
["Specifikace"]
["Výše příjmu v Kč 66)*"]
["Poznámka 70)"]
[{"$f":"IF(Data!W2=0,\"Druh příjmu 65)*        �\",\"Druh příjmu 65)*\")","v":"Druh příjmu 65)*"},"Vyberte druh příjmu"]
["Specifikace"]
["Výše příjmu v Kč 66)*"]
["Poznámka 70)"]
[]
["Datum a podpis"]

{"sheet":"List č. 11","index":14,"n_rows":83,"n_cols":2,"rows_kept":83,"cut":false,"hidden":false,"merged":[[0,0,0,2],[2,1,2,2],[15,0,15,2],[24,0,24,2],[33,0,33,2],[42,0,42,2],[4,1,4,2],[8,0,9,2],[6,1,6,2],[7,1,7,2],[5,1,5,2]]}
[{"$f":"IF(Data!W2=1,\"Prazdný list netiskněte. Vyplňte pouze v případě, že počet políček v Oznámení nebude dostatečný.\",\"Vytiskněte a vyplňte pouze v případě, že počet políček v Oznámení nebude dostatečný\")","v":"Prazdný list netiskněte. Vyplňte pouze v případě, že počet políček v Oznámení nebude dostatečný."}]
[]
["OZ 3 - NS/12/2021","List č. 11 - Nesplacené závazky"]
[null,"List číslo"]
["Jméno, příjmení, datum narození",{"$f":"IF(Oznámení!B8=\"\",\"\",CONCATENATE(Oznámení!B8,\", nar. \",TEXT(Oznámení!B9,\"dd.mm.rrrr\")))","v":""}]
["Organizace",{"$f":"IF(Oznámení!B22=\"\",\"\",Oznámení!B22)","v":""}]
["Typ oznámení",{"$f":"IF(Data!W2=1,\"Průběžné oznámení; řádné\",IF(Data!W2=2,\"Průběžné oznámení; doplnění\",IF(Data!W2=0,\"Průběžné oznámení;       ⃝   řádné              ⃝   doplnění\")))","v":"Průběžné oznámení; řádné"}]
["Období od - do",{"$f":"IF(Oznámení!B34=\"\",CONCATENATE(TEXT(Oznámení!B32,\"dd.mm.rrrr\")),Oznámení!B34)","v":"1.1.2021 - 31.12.2021"}]
["Nesplacené závazky, zejména půjčky a úvěry, pokud jejich souhrnná výše přesáhla ke dni 31. prosince kalendářního roku, za který se oznámení podává, částku 100 000 Kč 72)"]
[]
[null,{"$f":"IF(C9=\"Ne\",\"Věřitel - právnická osoba\",\"Věřitel - právnická osoba*\")","v":"Věřitel - právnická osoba*"}]
["Druh závazku 73)*"]
["Výše závazku v Kč 74)*"]
["Obchodní firma/název 75)*"]
["IČO 76)*"]
["Sídlo právnické osoby 77)*"]
["Obec*, PSČ*, stát*"]
["Ulice*, č.p./č.o.*"]
["Poznámka 78)"]
[null,{"$f":"IF(C18=\"Ne\",\"Věřitel - právnická osoba\",\"Věřitel - právnická osoba*\")","v":"Věřitel - právnická osoba*"}]
["Druh závazku 73)*"]
["Výše závazku v Kč 74)*"]
["Obchodní firma/název 75)*"]
["IČO 76)*"]
["Sídlo právnické osoby 77)*"]
["Obec*, PSČ*, stát*"]
["Ulice*, č.p./č.o.*"]
["Poznámka 78)"]
[null,"Věřitel - právnická osoba*"]
["Druh závazku 73)*"]
["Výše závazku v Kč 74)*"]
["Obchodní firma/název 75)*"]
["IČO 76)*"]
["Sídlo právnické osoby 77)*"]
["Obec*, PSČ*, stát*"]
["Ulice*, č.p./č.o.*"]
["Poznámka 78)"]
[null,"Věřitel - právnická osoba*"]
["Druh závazku 73)*"]
["Výše závazku v Kč 74)*"]
["Obchodní firma/název 75)*"]
["IČO 76)*"]
["Sídlo právnické osoby 77)*"]
["Obec*, PSČ*, stát*"]
["Ulice*, č.p./č.o.*"]
["Poznámka 78)"]
[null,"Věřitel - fyzická osoba*"]
["Druh závazku 73)*"]
["Výše závazku v Kč 74)*"]
["Jméno*, příjmení*"]
["Poznámka 78)"]
[null,"Věřitel - fyzická osoba*"]
["Druh závazku 73)*"]
["Výše závazku v Kč 74)*"]
["Jméno*, příjmení*"]
["Poznámka 78)"]
[null,"Věřitel - fyzická osoba*"]
["Druh závazku 73)*"]
["Výše závazku v Kč 74)*"]
["Jméno*, příjmení*"]
["Poznámka 78)"]
[null,"Věřitel - fyzická osoba*"]
["Druh závazku 73)*"]
["Výše závazku v Kč 74)*"]
["Jméno*, příjmení*"]
["Poznámka 78)"]
[null,"Věřitel - fyzická osoba*"]
["Druh závazku 73)*"]
["Výše závazku v Kč 74)*"]
["Jméno*, příjmení*"]
["Poznámka 78)"]
[null,"Věřitel - fyzická osoba*"]
["Druh závazku 73)*"]
["Výše závazku v Kč 74)*"]
["Jméno*, příjmení*"]
["Poznámka 78)"]
[null,"Věřitel - fyzická osoba*"]
["Druh závazku 73)*"]
["Výše závazku v Kč 74)*"]
["Jméno*, příjmení*"]
["Poznámka 78)"]
[]
["Datum a podpis"]